{"text_format":"1","workbook":"xlsx","n_sheets":10,"sheets":["Menu Matrix","Day 0 - Production","Day 1 - Production","Day 2 - Production","Day 3 - Production","Day 4 - Production","Day 5 - Production","Day 6 - Production","Day 7 - Production","Menu Vessel List"],"not_rendered":{"charts":0,"images":0,"macros":0,"external_links":0,"defined_names":1,"comments":0,"pivot_tables":0},"unopened":[],"bounds":{"document_bytes":16777216,"sheet_cells":100000,"rows_first":2000,"rows_last":500,"rows_between":2000,"halvings":0,"cell_chars":16384,"cell_head_chars":4096},"cells_cut":0,"cells_raw":0,"read":"whole","date_system":"1900"}

{"sheet":"Menu Matrix","index":0,"n_rows":185,"n_cols":10,"rows_kept":185,"cut":false,"hidden":false,"merged":[[2,0,3,0],[11,9,12,9],[160,3,161,3],[160,5,161,5],[160,9,161,9],[160,1,161,1],[160,2,161,2],[160,4,161,4],[160,6,161,6],[160,7,161,7],[160,8,161,8],[18,0,18,1],[68,1,69,1],[61,1,64,1],[65,1,66,1],[73,1,87,1],[174,0,184,0],[166,0,168,0],[138,0,156,0],[133,0,136,0],[106,1,107,1],[125,1,127,1],[104,0,107,0],[110,0,111,0],[113,0,118,0],[120,0,123,0],[125,0,129,0],[88,1,96,1],[113,1,115,1],[116,1,117,1],[104,1,105,1],[61,0,66,0],[68,0,70,0],[73,0,96,0],[98,0,102,0],[29,1,30,1],[31,1,32,1],[31,0,32,0],[47,0,51,0],[53,0,58,0],[19,0,20,0],[21,0,22,0],[23,0,24,0],[25,0,26,0],[29,0,30,0],[11,4,12,4],[11,2,12,2],[11,6,12,6],[11,7,12,7],[11,8,12,8],[11,3,12,3],[11,5,12,5],[172,9,173,9],[172,1,173,1],[172,0,173,0],[19,1,20,1],[172,4,173,4],[172,5,173,5],[172,6,173,6],[172,7,173,7],[172,8,173,8],[34,0,38,0],[40,0,45,0],[172,2,173,2],[172,3,173,3],[21,1,22,1],[23,1,24,1],[25,1,26,1]]}
[null,"STATION","LUNCH / DAY 0  x 2","LUNCH / DAY 1","LUNCH / DAY 2","LUNCH / DAY 3","LUNCH / DAY 4","LUNCH / DAY 5","LUNCH / DAY 6","LUNCH / DAY 7"]
[null,null,"WESTERN DESTINATIONS","WESTERN DESTINATIONS","WESTERN DESTINATIONS","WESTERN DESTINATIONS","WESTERN DESTINATIONS","WESTERN DESTINATIONS","WESTERN DESTINATIONS","WESTERN DESTINATIONS"]
["A1","GF-PASTA","Zucchini-Peppers-Onions","Roasted Asparagus-Tomato-Carrot","Roasted Mushroom & Tomato","Roasted Carrots & Peppers","Mixed Vegetables","Zucchini-Red Pepper- Eggplant","Roasted Mushroom & Tomato","Roasted Carrots & Peppers"]
[null,"PASTA SAUCE","Marinara / Roasted Pepper","Marinara / Mushroom","Marinara / Roasted Pepper","Marinara / Mushroom","Marinara / Roasted Pepper","Marinara / Mushroom","Marinara / Roasted Pepper","Marinara / Mushroom"]
["A2","HOT SANDWICH","  Croque Monsieur - Open Face","Pastrami on Rye","Traditional Cuban Sandwich","Turkey Ciabatta w/Peppers & Mozz","Spicy Chicken & Cheese","Philly Cheese Steak","Royal w/ Cheese Sliders","Italian Salami Panini"]
["A3","TEX-MEX ITEM","1) Chicken Cheese Burritos","1) Crispy Steak & Cheese Tacos","1) Sonoro Hot Dog / Corn Salsa","1) Steak Fajita's","1) Veg Enchilada, Marinara, Mozz","1) Sonoro Hot Dogs","1) Chicken & Steak Nachos","1) Chicken Enchilada / Cheese"]
[null,"SIDE ITEM","2) Fried Tortilla Chips","2) N/A","Sriracha Mayo Drizzle Over","2) Flour Tortillas","2) Spicy Black Bean Fritters","2) Pineapple, cilantro, jalapeno salsa","black beans, cheese sauce, scallions","2) Crispy Corn Tortilla Strips"]
["A4","TOPPINGS","1) Jalapeno Slice 2) Tomato Salsa       3) Salsa Verde 4) Black bean Salsa     5) Roasted Corn Salsa 6) Guacamole   7) Sour Cream  8) Queso Fresco         9) Tabasco 10) Chipotle Mayo","1) Jalapeno Slice 2) Tomato Salsa       3) Salsa Verde 4) Black bean Salsa     5) Roasted Corn Salsa 6)Guacamole   7) Sour Cream  8) Queso Fresco 9) Tabasco 10) Chipotle Mayo","1) Jalapeno Slice 2) Tomato Salsa       3) Salsa Verde 4) Black bean Salsa     5) Roasted Corn Salsa 6) Guacamole   7) Sour Cream  8) Queso Fresco         9) Tabasco 10) Chipotle Mayo","1) Jalapeno Slice 2) Tomato Salsa       3) Salsa Verde 4) Black bean Salsa     5) Roasted Corn Salsa 6) Guacamole   7) Sour Cream  8) Queso Fresco         9) Tabasco 10) Chipotle Mayo","1) Jalapeno Slice 2) Tomato Salsa       3) Salsa Verde 4) Black bean Salsa     5) Roasted Corn Salsa 6) Guacamole   7) Sour Cream  8) Queso Fresco         9) Tabasco 10) Chipotle Mayo","1) Jalapeno Slice 2) Tomato Salsa       3) Salsa Verde 4) Black bean Salsa     5) Roasted Corn Salsa 6) Guacamole   7) Sour Cream  8) Queso Fresco         9) Tabasco 10) Chipotle Mayo","1) Jalapeno Slice 2) Tomato Salsa       3) Salsa Verde 4) Black bean Salsa     5) Roasted Corn Salsa 6) Guacamole   7) Sour Cream  8) Queso Fresco         9) Tabasco 10) Chipotle Mayo","1) Jalapeno Slice 2) Tomato Salsa       3) Salsa Verde 4) Black bean Salsa     5) Roasted Corn Salsa 6) Guacamole   7) Sour Cream  8) Queso Fresco         9) Tabasco 10) Chipotle Mayo"]
[null,null,"LUNCH BAZAAR","LUNCH BAZAAR","LUNCH BAZAAR","LUNCH BAZAAR","LUNCH BAZAAR","LUNCH BAZAAR","LUNCH BAZAAR","LUNCH BAZAAR"]
["B1","MEAT","1) Chili Glazed Pork Butt/ Napa Cab","1) Churrasco Steak w/Chimichurri","1) Chipotle Crusted Pork Butt","1) Beef Roulades w/ Tomato ","1) Sirloin Saltimbocca / Sage Sauce","1) Breaded Pork Chops","1) Mushroom-herb Flank Steak Roll","1) Shaved Leg of Lamb Mix"]
[null,"POTATO DISH","2) Roasted Garlic Potatoes","2) Chili-Garlic Steak Fries","2) Crushed Sweet Potato Mash","2) Roasted Bliss & Mushrooms","2) Crushed Potato/Olive Oil & Garlic","2) Sweet Potato Marshmallow Bake","2) Breaded Potato Croquettes","2) Garlic Mashed Potato"]
["B2","ACTION STATION","Chiffonade Caesar Salad, Caesar Dressing & Grated Parmesan","Arugula, Truffle Oil, Proscuitto Balsamic Reduction","Curry Aioli w/ Tabbouleh Salad Topping for Carving Item","Spinach Salad / Balsamic Dressing Shaved Coppa Ham","Topped with Pickled Red Onions & Gorgonzola","Shaved roast beef, white truffle mayonnaise, arugula & parmesan","Pickled Vegetable Salad w/ Herbs","Scallions & Spinach w/ Port Reduction, Gorgonzola Garnish"]
[null,"GARNISH ITEM"]
["B3","DEEP DISH   CARVING ITEM","SHRIMP CAESAR PIZZA W/ TOMATO GARLIC & OLIVE OIL","ROASTED PEAR, RICOTTA PIZZA W/ PROSCUITTO & GARNISHES","MOROCCAN LEG OF LAMB STUFFED W/QUINOA & DRIED FRUIT","CAPRESE PIZZA W/ WHITE GARLIC SAUCE & BASIL PESTO","ROSEMARY FLANK STEAK W/ GARLIC SPINACH & GORGONZOLA","WILD MUSHROOM PIZZA W/ GARLIC SPINACH, MOZZ & PARM","PORK LOIN STUFFED W/ NUTS & DRIED FRUITS, BACON WRAPPED","CARAMELIZED PEAR & FIG PIZZA W/ RICOTTA & PARMESAN CHEESE"]
["B4","FISH/SEAFOOD","1) English Fried Fish Filets","1) Lemon Caper Tilapia / S-Rice","1) Sesame Crusted Tuna / Bokchoy","1) Grilled Salmon & Cherry Tomato ","1) Blackened Snapper & Corn Salsa","1) Mediterranean Codfish / Tomato Gr","1) Lemon Pepper Salmon/Spinach","1) Citrus Crusted Tilapia / S-Rice"]
[null,"VEGETABLES","2) Peas & Carrots","2) Green Beans w/ Toasted Almonds","2) Roasted Carrots & Walnuts","2) Roasted Parmesan Veggies/ S-Rice","2) Fried Cauliflower Bites / S-Rice","2) Mixed Roasted Vegetables","2) Garlic-Lemon Broccoli","2) Roasted Garlic Tomatoes"]
["B5","CHICKEN DISH","1) Chicken Piccata /Lemon & Capers","1) Stuffed Mozz / Wrapped Bacon","1) Mushroom Crusted Chicken","1) Chicken Parm Puff Tarts","1) Cilantro-Citrus Crusted Chicken","1) Apricot Glazed Chicken/ Spinach","1) Chicken Saltimbocca/Sage Sauce","1) Chicken Piccata /Lemon & Capers"]
[null,"PASTA DISH","2) Rigatoni Alfredo w/ Parmesan","2) Wild Mushroom Cream Conghilie","2) Rigatoni Tuscan Pasta","2) Conchiglie Primavera Pasta","2) Baked Pipe Pomodoro","2) Carbonara Bowtie","2) Macaroni in Creamed Tomato","2) Pasta Amatriciana"]
["DESTINATIONS",null,"ENGLISH","FRENCH","CARIBBEAN","ITALIAN","MEXICAN ","MEDITERRANEAN","SOUTHERN  ","ASIAN   "]
["C1","CONDIMENTS","A1 / Mustard / Ketchup / Sriracha","A1 / Mustard / Ketchup / Sriracha","A1 / Mustard / Ketchup / Sriracha","A1 / Mustard / Ketchup / Sriracha","A1 / Mustard / Ketchup / Sriracha","A1 / Mustard / Ketchup / Sriracha","A1 / Mustard / Ketchup / Sriracha","A1 / Mustard / Ketchup / Sriracha"]
[null,null,"Worchestershire / Soy Sauce / Malt V","Worchestershire / Soy Sauce / Malt V","Worchestershire / Soy Sauce / Malt V","Worchestershire / Soy Sauce / Malt V","Worchestershire / Soy Sauce / Malt V","Worchestershire / Soy Sauce / Malt V","Worchestershire / Soy Sauce / Malt V","Worchestershire / Soy Sauce / Malt V"]
["C2","VEGETABLES     SIDE ITEM","1) Buttered String Beans","1) Sliced Ratatouille","1) Curry Coconut Cauliflower","1) Eggplant Parmesan","1) Roasted Elote Corn","1) Green Beans-tomato-garlic-onion","1) Cajun Roasted Okra/ Red Peppers","1) Sweet & Sour Broccoli"]
[null,null,"2) Roasted Tomatoes","2) Creamed Leeks & Spinach Parm","2) Oven Roasted Brussel Sprouts","2) Roasted Artichokes & Peppers","2) Fajita Peppers & Onions","2) Chickpeas-eggplant-peppers-olive","2) Creamed Corned & Mushrooms","2) Sesame-Soy Bok Choy"]
["C3","PROTEIN             SIDE ITEM","1) Sausage Rolls","1) Steak Au Poivre Baguette","1) Caramelized Jerk Chicken Legs","1) Meatball Mozzarella Bowl","1) Pulled Pork Soft Tacos","1) Beef Kafta - Giardiniere-olive chop","1) Chicken & Waffles-Cranberries","1) Pork & Shrimp Shumai/Ponzu Sauce"]
[null,null,"2) Green Buttered Cabbage","2) Peppercorn Cream Sauce","2) Spiced Batter Fried Pineapple ","2) Garlic Bread","2) Pineapple Salsa","2) Chili Tahini Sauce","2) Chipotle Maple Syrup ","2) Kungpao Chicken Box"]
["C4","STARCH DISH      SIDE ITEM","1) French Fries","1) Rice Pilaf","1) Caribbean Rice","1) Polenta Fries / Marinara Sauce","1) Mexican Red Rice","1) Yellow Basmati Rice","1) BBQ Bean Casserole/Puff Pastry","1) Asian Sticky Rice Bowl"]
[null,null,"2) Steamed Rice","2) Au Gratin Potatoes","2) Curried Potatoes-Plantain Roasted","2) Jasmine Rice","2) Refried Baked Beans & Cheese","2) Toasted Naan Bread","2) Steamed Rice","2) Korean Stir-fry Noodles"]
["C5","NEUTRAL"]
[null,null,"GARDEN SOUP KETTLE","GARDEN SOUP KETTLE","GARDEN SOUP KETTLE","GARDEN SOUP KETTLE","GARDEN SOUP KETTLE","GARDEN SOUP KETTLE","GARDEN SOUP KETTLE","GARDEN SOUP KETTLE"]
["D1","SOUPS","1) Daily Soup Main Dining","1) Daily Soup Main Dining","1) Daily Soup Main Dining","1) Daily Soup Main Dining","1) Daily Soup Main Dining","1) Daily Soup Main Dining","1) Daily Soup Main Dining","1) Daily Soup Main Dining"]
[null,null,"2) Daily Soup Main Dining","2) Daily Soup Main Dining","2) Daily Soup Main Dining","2) Daily Soup Main Dining","2) Daily Soup Main Dining","2) Daily Soup Main Dining","2) Daily Soup Main Dining","2) Daily Soup Main Dining"]
["D2","TOPPINGS","Scallions / Bacon Bits / Croutons ","Scallions / Bacon Bits / Croutons ","Scallions / Bacon Bits / Croutons ","Scallions / Bacon Bits / Croutons ","Scallions / Bacon Bits / Croutons ","Scallions / Bacon Bits / Croutons ","Scallions / Bacon Bits / Croutons ","Scallions / Bacon Bits / Croutons "]
[null,null,"Parmesan / Red Onion / Tofu","Parmesan / Red Onion / Tofu","Parmesan / Red Onion / Tofu","Parmesan / Red Onion / Tofu","Parmesan / Red Onion / Tofu","Parmesan / Red Onion / Tofu","Parmesan / Red Onion / Tofu","Parmesan / Red Onion / Tofu"]
[null,null,"HARVEST SALADS","HARVEST SALADS","HARVEST SALADS","HARVEST SALADS","HARVEST SALADS","HARVEST SALADS","HARVEST SALADS","HARVEST SALADS"]
["E1","Leaf Individual","Sweet-Chili Cabbage Salad","California Kale-Cranberry Salad","Tabbouleh - Parsley Salad","Chili Lime Cabbage Salad","California Kale-Cherry Salad","Tabbouleh - Parsley Salad","Chili Lime Cabbage Salad","Sweet-Chili Cabbage Salad"]
[null,"Grain Individual","French Lentil Salad","Tijuana Black Bean Salad","Tunisian Quinoa Salad","Louisiana White Bean Salad","Tijuana Black Bean Salad","Tunisian Quinoa Salad","Louisiana White Bean Salad","French Lentil Salad"]
[null,"Veg Individual ","Roasted Beet & Goat Cheese","Kentucky Cobb Salad w/ Bacon","Turkish Chickpea Salad","Caprese Salad w/ Balsamic","Kentucky Cobb Salad w/ Bacon","Turkish Chickpea Salad","Caprese Salad w/ Balsamic","Roasted Beet & Goat Cheese"]
[null,"Crunch Item","Sesame Spiced Wontons","Spicy Corn Tortilla Strips","Seasoned Pita Chips","Cajun-Garlic Bites","Spicy Corn Tortilla Strips","Seasoned Pita Chips","Cajun-Garlic Bites","Sesame Spiced Wontons"]
[null,"Garnishes","Walnuts / Almonds / Pistachio","Walnuts / Almonds / Pistachio","Walnuts / Almonds / Pistachio","Walnuts / Almonds / Pistachio","Walnuts / Almonds / Pistachio","Walnuts / Almonds / Pistachio","Walnuts / Almonds / Pistachio","Walnuts / Almonds / Pistachio"]
[null,null,"COMPOSED SALADS","COMPOSED SALADS","COMPOSED SALADS","COMPOSED SALADS","COMPOSED SALADS","COMPOSED SALADS","COMPOSED SALADS","COMPOSED SALADS"]
["E2","Grain Salad LG","French Lentil Salad","Tijuana Black Bean Salad","Turkish Chickpea Salad","Louisiana White Bean Salad","Tijuana Black Bean Salad","Turkish Chickpea Salad","Louisiana White Bean Salad","French Lentil Salad"]
[null,"Pasta Salad LG","Asian Noodle-Peanut Salad","Sicilian Ham & Pasta Salad","Mediterranean Pasta Salad","Tuscan Pasta Salad","Sicilian Ham & Pasta Salad","Mediterranean Pasta Salad","Tuscan Pasta Salad","Asian Noodle-Peanut Salad"]
[null,"Fruit Salad LG","Mango-Sesame-Chili Fruit Salad","Apricot & Cherry Fruit Salad","Spicy Pear & Pineapple Salad","Cajun Peach Salad","Apricot & Cherry Fruit Salad","Spicy Pear & Pineapple Salad","Cajun Peach Salad","Mango-Sesame-Chili Fruit Salad"]
[null,"Roasted Veg","Zucchini-Peppers-Onions","Roasted Asparagus-Tomato-Carrot","Roasted Mushroom & Tomato","Roasted Carrots & Peppers","Mixed Vegetables","Zucchini-Red Pepper- Eggplant","Roasted Mushroom & Tomato","Roasted Carrots & Peppers"]
[null,"Cheese Garnish","Blue Cheese / Parmesan Cheese","Blue Cheese / Parmesan Cheese","Blue Cheese / Parmesan Cheese","Blue Cheese / Parmesan Cheese","Blue Cheese / Parmesan Cheese","Blue Cheese / Parmesan Cheese","Blue Cheese / Parmesan Cheese","Blue Cheese / Parmesan Cheese"]
[null,"Bread Garnish","Garlic Bread / Parmesan Bread","Seasoned Bagel Chips","Garlic Bread / Parmesan Bread","Cheddar Cheese Bread","Seasoned Bagel Chips","Garlic Bread / Parmesan Bread","Cheddar Cheese Bread","Garlic Bread / Parmesan Bread"]
[null,null,"FRESH MARKET GREENS","FRESH MARKET GREENS","FRESH MARKET GREENS","FRESH MARKET GREENS","FRESH MARKET GREENS","FRESH MARKET GREENS","FRESH MARKET GREENS","FRESH MARKET GREENS"]
["F1","Leaf Lettuce","Mixed Greens / Spinach","Mixed Greens / Iceberg","Mixed Greens / Spinach","Mixed Greens / Iceberg","Mixed Greens / Spinach","Mixed Greens / Iceberg","Mixed Greens / Spinach","Mixed Greens / Iceberg"]
[null,"Leaf Lettuce","Shredded Green & Red Cabbage","Shredded Green & Red Cabbage","Shredded Green & Red Cabbage","Shredded Green & Red Cabbage","Shredded Green & Red Cabbage","Shredded Green & Red Cabbage","Shredded Green & Red Cabbage","Shredded Green & Red Cabbage"]
[null,"Tomato Salad","Sliced Tomato & Red Onion","Sliced Tomato & Red Onion","Sliced Tomato & Red Onion","Sliced Tomato & Red Onion","Sliced Tomato & Red Onion","Sliced Tomato & Red Onion","Sliced Tomato & Red Onion","Sliced Tomato & Red Onion"]
[null,"Potato Salad","Smoked Paprika Potato Salad","German Potato Salad","American Potato Salad","Lemon Pepper Potato Salad","German Potato Salad","American Potato Salad","Smoked Paprika Potato Salad","Lemon Pepper Potato Salad"]
[null,"Crudités","Carrots/Celery/Pepper/Radish","Cauliflower/Broccoli/Cherry Tomato","Cucumber/Radish/Peppers/Carrots","Carrots/Celery/Pepper/Radish","Cauliflower/Broccoli/Cherry Tomato","Cucumber/Radish/Peppers/Carrots","Carrots/Celery/Pepper/Radish","Cauliflower/Broccoli/Cherry Tomato"]
[null,null,"FRESH MARKET MEATS","FRESH MARKET MEATS","FRESH MARKET MEATS","FRESH MARKET MEATS","FRESH MARKET MEATS","FRESH MARKET MEATS","FRESH MARKET MEATS","FRESH MARKET MEATS"]
["F2","Deli Meats","Mortadella / Paprika Turkey","Rosemary Beef / Maple Glaze Ham","Mortadella / Turkey / Prosciutto","Mortadella / Paprika Turkey","Mortadella / Paprika Turkey","Mortadella / Paprika Turkey","Mortadella / Paprika Turkey","Mortadella / Paprika Turkey"]
[null,"Cured Meat","Salami ","Bresaola",null,"Salami ","Bresaola","Prosciutto","Salami ","Bresaola"]
[null,"Cheeses","Cheddar / Swiss","Cheddar / Havarti","Cheddar / Gouda","Cheddar / Swiss","Cheddar / Havarti","Cheddar / Gouda","Cheddar / Havarti","Cheddar / Gouda"]
[null,"Pickles","Red Onion-Cornichons-Giardiniera-Green Olives - Kalamata Olives","Red Onion-Cornichons-Giardiniera-Green Olives - Kalamata Olives","Red Onion-Cornichons-Giardiniera-Green Olives - Kalamata Olives","Red Onion-Cornichons-Giardiniera-Green Olives - Kalamata Olives","Red Onion-Cornichons-Giardiniera-Green Olives - Kalamata Olives","Red Onion-Cornichons-Giardiniera-Green Olives - Kalamata Olives","Red Onion-Cornichons-Giardiniera-Green Olives - Kalamata Olives","Red Onion-Cornichons-Giardiniera-Green Olives - Kalamata Olives"]
[null,"Breads","Garlic Parmesan Bread","Garlic Parmesan Bread","Garlic Parmesan Bread","Garlic Parmesan Bread","Garlic Parmesan Bread","Garlic Parmesan Bread","Garlic Parmesan Bread","Garlic Parmesan Bread"]
[null,"Condiments","Dijon Mustard - Mayonnaise","Dijon Mustard - Mayonnaise","Dijon Mustard - Mayonnaise","Dijon Mustard - Mayonnaise","Dijon Mustard - Mayonnaise","Dijon Mustard - Mayonnaise","Dijon Mustard - Mayonnaise","Dijon Mustard - Mayonnaise"]
[null,"STATION","DAY 0 ","DAY 1","DAY 2","DAY 3","DAY 4","DAY 5","DAY 6","DAY 7"]
[null,null,"ORCHARD JUICE BAR","ORCHARD JUICE BAR","ORCHARD JUICE BAR","ORCHARD JUICE BAR","ORCHARD JUICE BAR","ORCHARD JUICE BAR","ORCHARD JUICE BAR","ORCHARD JUICE BAR"]
["G1","JUICES","1) Watermelon","1) Watermelon","1) Watermelon","1) Watermelon","1) Watermelon","1) Watermelon","1) Watermelon","1) Watermelon"]
[null,null,"2) Cantaloupe","2) Cantaloupe","2) Cantaloupe","2) Cantaloupe","2) Cantaloupe","2) Cantaloupe","2) Cantaloupe","2) Cantaloupe"]
[null,null,"3) Mixed Fruit","3) Mixed Fruit","3) Mixed Fruit","3) Mixed Fruit","3) Mixed Fruit","3) Mixed Fruit","3) Mixed Fruit","3) Mixed Fruit"]
[null,null,"4) Chef's Special","4) Chef's Special","4) Chef's Special","4) Chef's Special","4) Chef's Special","4) Chef's Special","4) Chef's Special","4) Chef's Special"]
[null,"SANGRIA MIX","Awaiting Final Decision From PCL"]
[null,null,"to implement?"]
[null,null,"SWEET DELIGHTS","SWEET DELIGHTS","SWEET DELIGHTS","SWEET DELIGHTS","SWEET DELIGHTS","SWEET DELIGHTS","SWEET DELIGHTS","SWEET DELIGHTS"]
["H1","CHOCOLATE DIPPED ITEMS","Apples / Banana / Pear","Apples / Banana / Pear","Apples / Banana / Pear","Apples / Banana / Pear","Apples / Banana / Pear","Apples / Banana / Pear","Apples / Banana / Pear","Apples / Banana / Pear"]
[null,null,"Marshmallow / Banana","Marshmallow / Banana","Marshmallow / Banana","Marshmallow / Banana","Marshmallow / Banana","Marshmallow / Banana","Marshmallow / Banana","Marshmallow / Banana"]
[null,"CARAMEL FRUIT","Apples / Pears","Apples / Pears","Apples / Pears","Apples / Pears","Apples / Pears","Apples / Pears","Apples / Pears","Apples / Pears"]
[null,"PARFAITS","Classic Trifle - Raspberry Jello, Pound Cake, Vanilla Custard, Chocolate Sauce, Maraschino Cherries","Jello Trifle - Raspberry, Lemon, Watermelon Jello w/ Vanilla Custard","Fruit/Jello Trifle - Mixed Berries & Fruits, layered with Raspberry & Lemon Jello","Classic Trifle - Raspberry Jello, Pound Cake, Vanilla Custard, Chocolate Sauce, Maraschino Cherries","Jello Trifle - Raspberry, Lemon, Watermelon Jello w/ Vanilla Custard","Fruit/Jello Trifle - Mixed Berries & Fruits, layered with Raspberry & Lemon Jello","Classic Trifle - Raspberry Jello, Pound Cake, Vanilla Custard, Chocolate Sauce, Maraschino Cherries","Jello Trifle - Raspberry, Lemon, Watermelon Jello w/ Vanilla Custard"]
[null,null,"FRESH MARKET TOPPINGS","FRESH MARKET TOPPINGS","FRESH MARKET TOPPINGS","FRESH MARKET TOPPINGS","FRESH MARKET TOPPINGS","FRESH MARKET TOPPINGS","FRESH MARKET TOPPINGS","FRESH MARKET TOPPINGS"]
["H2","TOPPINGS","1) Cherry Tomato Slice","1) Cherry Tomato Slice","1) Cherry Tomato Slice","1) Cherry Tomato Slice","1) Cherry Tomato Slice","1) Cherry Tomato Slice","1) Cherry Tomato Slice","1) Cherry Tomato Slice"]
[null,null,"2) Red Onion - Dice","2) Red Onion - Dice","2) Red Onion - Dice","2) Red Onion - Dice","2) Red Onion - Dice","2) Red Onion - Dice","2) Red Onion - Dice","2) Red Onion - Dice"]
[null,null,"3) Cucumber - Dice","3) Cucumber - Dice","3) Cucumber - Dice","3) Cucumber - Dice","3) Cucumber - Dice","3) Cucumber - Dice","3) Cucumber - Dice","3) Cucumber - Dice"]
[null,null,"4) Celery Stalk - Dice","4) Celery Stalk - Dice","4) Celery Stalk - Dice","4) Celery Stalk - Dice","4) Celery Stalk - Dice","4) Celery Stalk - Dice","4) Celery Stalk - Dice","4) Celery Stalk - Dice"]
[null,null,"5) Carrots - Dice","5) Carrots - Dice","5) Carrots - Dice","5) Carrots - Dice","5) Carrots - Dice","5) Carrots - Dice","5) Carrots - Dice","5) Carrots - Dice"]
[null,null,"6) Red Radish - Dice","6) Red Radish - Dice","6) Red Radish - Dice","6) Red Radish - Dice","6) Red Radish - Dice","6) Red Radish - Dice","6) Red Radish - Dice","6) Red Radish - Dice"]
[null,null,"7) Mixed Bell Pepper - Dice","7) Mixed Bell Pepper - Dice","7) Mixed Bell Pepper - Dice","7) Mixed Bell Pepper - Dice","7) Mixed Bell Pepper - Dice","7) Mixed Bell Pepper - Dice","7) Mixed Bell Pepper - Dice","7) Mixed Bell Pepper - Dice"]
[null,null,"8) Mushrooms - Sliced","8) Mushrooms - Sliced","8) Mushrooms - Sliced","8) Mushrooms - Sliced","8) Mushrooms - Sliced","8) Mushrooms - Sliced","8) Mushrooms - Sliced","8) Mushrooms - Sliced"]
[null,null,"9) Yellow Corn","9) Yellow Corn","9) Yellow Corn","9) Yellow Corn","9) Yellow Corn","9) Yellow Corn","9) Yellow Corn","9) Yellow Corn"]
[null,null,"10) Garbanzo Beans","10) Garbanzo Beans","10) Garbanzo Beans","10) Garbanzo Beans","10) Garbanzo Beans","10) Garbanzo Beans","10) Garbanzo Beans","10) Garbanzo Beans"]
[null,null,"11) Black Beans","11) Black Beans","11) Black Beans","11) Black Beans","11) Black Beans","11) Black Beans","11) Black Beans","11) Black Beans"]
[null,null,"12) Green Olives","12) Green Olives","12) Green Olives","12) Green Olives","12) Green Olives","12) Green Olives","12) Green Olives","12) Green Olives"]
[null,null,"13) Sunflower Seeds","13) Sunflower Seeds","13) Sunflower Seeds","13) Sunflower Seeds","13) Sunflower Seeds","13) Sunflower Seeds","13) Sunflower Seeds","13) Sunflower Seeds"]
[null,null,"14) Walnuts","14) Walnuts","14) Walnuts","14) Walnuts","14) Walnuts","14) Walnuts","14) Walnuts","14) Walnuts"]
[null,null,"15) Croutons","15) Croutons","15) Croutons","15) Croutons","15) Croutons","15) Croutons","15) Croutons","15) Croutons"]
[null,"DRESSINGS","1) Ranch","1) Ranch","1) Ranch","1) Ranch","1) Ranch","1) Ranch","1) Ranch","1) Ranch"]
[null,null,"2) Caesar","2) Caesar","2) Caesar","2) Caesar","2) Caesar","2) Caesar","2) Caesar","2) Caesar"]
[null,null,"3) Balsamic","3) Balsamic","3) Balsamic","3) Balsamic","3) Balsamic","3) Balsamic","3) Balsamic","3) Balsamic"]
[null,null,"4) Italian","4) Italian","4) Italian","4) Italian","4) Italian","4) Italian","4) Italian","4) Italian"]
[null,null,"5) Low-Fat Yogurt","5) Low-Fat Yogurt","5) Low-Fat Yogurt","5) Low-Fat Yogurt","5) Low-Fat Yogurt","5) Low-Fat Yogurt","5) Low-Fat Yogurt","5) Low-Fat Yogurt"]
[null,null,"6) Blue Cheese","6) Blue Cheese","6) Blue Cheese","6) Blue Cheese","6) Blue Cheese","6) Blue Cheese","6) Blue Cheese","6) Blue Cheese"]
[null,null,"7) Thousand Island","7) Thousand Island","7) Thousand Island","7) Thousand Island","7) Thousand Island","7) Thousand Island","7) Thousand Island","7) Thousand Island"]
[null,null,"8) Shallot","8) Shallot","8) Shallot","8) Shallot","8) Shallot","8) Shallot","8) Shallot","8) Shallot"]
[null,null,"9) Dijon Mustard","9) Dijon Mustard","9) Dijon Mustard","9) Dijon Mustard","9) Dijon Mustard","9) Dijon Mustard","9) Dijon Mustard","9) Dijon Mustard"]
[null,null,"PASTRY COUNTER","PASTRY COUNTER","PASTRY COUNTER","PASTRY COUNTER","PASTRY COUNTER","PASTRY COUNTER","PASTRY COUNTER","PASTRY COUNTER"]
["H3","Fruit Tart","Fresh Fruit Tartlet","Fresh Fruit Tartlet","Fresh Fruit Tartlet","Fresh Fruit Tartlet","Fresh Fruit Tartlet","Fresh Fruit Tartlet","Fresh Fruit Tartlet","Fresh Fruit Tartlet"]
[null,"Pastry","Pecan Pie","Pecan Pie","Carrot Cake","Carrot Cake","Coconut Cream Pie","Coconut Cream Pie","Strawberry Short Cake","Strawberry Short Cake"]
[null,"Pastry","Grand Marnier Cream Horn","Chocolate Eclairs","Chocolate Eclairs","White Chocolate Cheesecake","White Chocolate Cheesecake","Mocha Profiteroles","Mocha Profiteroles","Lemon Cream Cake"]
[null,"Pastry","Macadamia Nut Brownie Mousse Cake","Apple Pie","Apple Pie","Brazilian Nut Torte","Pavlova","Pavlova","Peach Almond Torte","Peach Almond Torte"]
[null,"Cupcakes","Red Velvet / Vanilla Yogurt Frosting","Apple Cinnamon / Vanilla Frosting","Maple Walnut / Banana Frosting","Chocolate Chip / Chocolate Frosting","Carrot / Cream Cheese Frosting","Blueberry / Vanilla Yogurt Frosting","Chocolate / Raspberry Frosting","Peach / Coconut Frosting"]
[null,null,"FRESH & FAST - GF","FRESH & FAST - GF","FRESH & FAST - GF","FRESH & FAST - GF","FRESH & FAST - GF","FRESH & FAST - GF","FRESH & FAST - GF","FRESH & FAST - GF"]
["H4","Gluten Free","1) Mango Cheese Cake","1) Mango Cheesecake","1) Pineapple Fruit Cake","1) Pineapple Fruit Cake","1) Mango Sago Pudding","1) Apple Cranberry Pie","Chocolate Mousse","1) Cocktail Fruit Mousse Cake"]
[null,null,"2) Orange Tapioca Pudding","2) Raspberry Cheesecake","2) Chocolate Ganage Cake","2) Chocolate Crème Catalan","2) Strawberry Mousse Cake","2) Pineapple Upside Down Cake","2) Pineapple Upside Down Cake","2) Lemon Cream Pudding"]
[null,"Sugar Free","1) Key Lime Pie","1) Key Lime Pie","1) Yogurt Blueberry Compote","1) Yogurt Blueberry Compote","1) Chocolate Cream Puff","1) Chocolate Cream Puff","1) Strawberry Cake","1) Black Forest Cake"]
[null,null,"2) Coconut Cream Pie","2) Cappuccino Cake","2) Cappuccino Cake","2) Banana Shortcake","2) Banana Shortcake","2) French Vanilla Mousse","2) Peach Pie","2) Coconut Cream Pie"]
["H5","H5 - HOT","Roasted Banana / Chocolate/Coconut","Cinnamon-Walnut Stuffed Apples","Caramel Roasted Pears w/ Oats","GF - Bread Pudding & Choc Sauce","Roasted Peaches/Cranberries/Cstrd","Chocolate Marshmallow Bake","Vanilla Roasted Pineapple/Coconut ","Sticky Toffee Pudding / Caramel S"]
[null,null,"FRUIT STAND FAVORITES","FRUIT STAND FAVORITES","FRUIT STAND FAVORITES","FRUIT STAND FAVORITES","FRUIT STAND FAVORITES","FRUIT STAND FAVORITES","FRUIT STAND FAVORITES","FRUIT STAND FAVORITES"]
["I-1","Whole Fruits","Banana / Red Apple / Pears / Peach   Green Apple / Oranges","Banana / Red Apple / Pears / Peach   Green Apple / Oranges","Banana / Red Apple / Pears / Peach   Green Apple / Oranges","Banana / Red Apple / Pears / Peach   Green Apple / Oranges","Banana / Red Apple / Pears / Peach   Green Apple / Oranges","Banana / Red Apple / Pears / Peach   Green Apple / Oranges","Banana / Red Apple / Pears / Peach   Green Apple / Oranges","Banana / Red Apple / Pears / Peach   Green Apple / Oranges"]
[null,"Sliced Fruits","Watermelon/Pineapple/  Cantaloupe  Honeydew Melon","Watermelon/Pineapple/  Cantaloupe  Honeydew Melon","Watermelon/Pineapple/  Cantaloupe  Honeydew Melon","Watermelon/Pineapple/  Cantaloupe  Honeydew Melon","Watermelon/Pineapple/  Cantaloupe  Honeydew Melon","Watermelon/Pineapple/  Cantaloupe  Honeydew Melon","Watermelon/Pineapple/  Cantaloupe  Honeydew Melon","Watermelon/Pineapple/  Cantaloupe  Honeydew Melon"]
[null,null,"OVEN BAKED BREADS","OVEN BAKED BREADS","OVEN BAKED BREADS","OVEN BAKED BREADS","OVEN BAKED BREADS","OVEN BAKED BREADS","OVEN BAKED BREADS","OVEN BAKED BREADS"]
["I-2","Current Rolls","1) Plain Crunchy Rolls","1) Plain Crunchy Rolls","1) Plain Crunchy Rolls","1) Plain Crunchy Rolls","1) Plain Crunchy Rolls","1) Plain Crunchy Rolls","1) Plain Crunchy Rolls","1) Plain Crunchy Rolls"]
[null,null,"2) Plain Soft Rolls","2) Plain Soft Rolls","2) Plain Soft Rolls","2) Plain Soft Rolls","2) Plain Soft Rolls","2) Plain Soft Rolls","2) Plain Soft Rolls","2) Plain Soft Rolls"]
[null,null,"3) Six Cereal Rolls","3) Sunflower Seed Rolls","3) Pumpernickel Rolls","3) Sesame Seed Rolls","3) Olive Rolls","3) Whole Wheat Raisin","3) Honey Wheat Rolls","3) Six Cereal Rolls"]
[null,"Loafs","4) Muesli Loaf Sliced","4) Honey Wheat Loaf Slice","4) Six Cereal Loaf Sliced","4) Focaccia Loaf Sliced","4) Pumpernickel Loaf Sliced","4) Rye Loaf Sliced","4) Sourdough Loaf Sliced","4) Muesli Loaf Sliced"]
[null,null,"5) Olive Focaccia","5) Olive Focaccia","5) Olive Focaccia","5) Tomato Focaccia","5) Parmesan Focaccia","5) Sun-Dried Tomato Focaccia","5) Olive Focaccia","5) Rosemary Focaccia"]
[null,"Condiments","Butter & Preserves","Butter & Preserves","Butter & Preserves","Butter & Preserves","Butter & Preserves","Butter & Preserves","Butter & Preserves","Butter & Preserves"]
[null,null,"SANDWICH SHOP","SANDWICH SHOP","SANDWICH SHOP","SANDWICH SHOP","SANDWICH SHOP","SANDWICH SHOP","SANDWICH SHOP","SANDWICH SHOP"]
["I-3","Baguette or Bagel","Roasted Vegetables w/ Sundried Tomato & Basil Pesto / Parmesan","Chicken-Bacon Caesar on a Toasted Bagel w/Tomato ","Prosciutto & Tomato Baguette  w/Fresh Mozzarella & Arugula","Roasted Vegetables w/ Sundried Tomato & Basil Pesto / Parmesan","Chicken-Bacon Caesar on a Toasted Bagel w/Tomato ","Prosciutto & Tomato Baguette  w/Fresh Mozzarella & Arugula","Roasted Vegetables w/ Sundried Tomato & Basil Pesto / Parmesan","Chicken-Bacon Caesar on a Toasted Bagel w/Tomato "]
[null,"Focaccia","Italian Focaccia w. Prosciutto, Salami Buffalo Mozzarella & Arugula","Roasted Vegetables w/ Buffalo Mozz, Sundried Tom Pesto & Spinach","Roasted Broccoli & Red Pepper Feta Cheese & Arugula","Italian Focaccia w. Prosciutto, Salami Buffalo Mozzarella & Arugula","Roasted Vegetables w/ Buffalo Mozz, Sundried Tom Pesto & Spinach","Roasted Broccoli & Red Pepper Feta Cheese & Arugula","Italian Focaccia w. Prosciutto, Salami Buffalo Mozzarella & Arugula","Roasted Vegetables w/ Buffalo Mozz, Sundried Tom Pesto & Spinach"]
[null,"Hamburger Bun","Roast Beef & Chipotle Mayo w/ Romaine, Pickles & Havarti Cheese","Ham & Salami with Cheddar Cheese, Tomato, Iceberg lettuce & pickles","Lebanese Chicken with Tabbouleh, Hummus & Cucumber","Roast Beef & Chipotle Mayo w/ Romaine, Pickles & Havarti Cheese","Ham & Salami with Cheddar Cheese, Tomato, Iceberg lettuce & pickles","Lebanese Chicken with Tabbouleh, Hummus & Cucumber","Roast Beef & Chipotle Mayo w/ Romaine, Pickles & Havarti Cheese","Ham & Salami with Cheddar Cheese, Tomato, Iceberg lettuce & pickles"]
[null,"Hot Dog Bun","Roasted Turkey w/ Asian Slaw & Sweet Chili Sauce","Roasted Turkey BLT  with Swiss Cheese & Mayonnaise","Mortadella & Smoked Gouda, Tomato Pickled Vegetables","Roasted Turkey w/ Asian Slaw & Sweet Chili Sauce","Roasted Turkey BLT  with Swiss Cheese & Mayonnaise","Mortadella & Smoked Gouda, Tomato Pickled Vegetables","Roasted Turkey w/ Asian Slaw & Sweet Chili Sauce","Roasted Turkey BLT  with Swiss Cheese & Mayonnaise"]
[null,null,"FRESH & FAST STATION - 2","FRESH & FAST STATION - 2","FRESH & FAST STATION - 2","FRESH & FAST STATION - 2","FRESH & FAST STATION - 2","FRESH & FAST STATION - 2","FRESH & FAST STATION - 2","FRESH & FAST STATION - 2"]
["I-4","Chips","1) Potato Chips","1) Potato Chips","1) Potato Chips","1) Potato Chips","1) Potato Chips","1) Potato Chips","1) Potato Chips","1) Potato Chips"]
[null,null,"2) Salt & Vinegar Chips","2) Salt & Vinegar Chips","2) Salt & Vinegar Chips","2) Salt & Vinegar Chips","2) Salt & Vinegar Chips","2) Salt & Vinegar Chips","2) Salt & Vinegar Chips","2) Salt & Vinegar Chips"]
[null,null,"3) Nacho Chips","3) Nacho Chips","3) Nacho Chips","3) Nacho Chips","3) Nacho Chips","3) Nacho Chips","3) Nacho Chips","3) Nacho Chips"]
[null,"Pickles","1) Dill Pickles","1) Dill Pickles","1) Dill Pickles","1) Dill Pickles","1) Dill Pickles","1) Dill Pickles","1) Dill Pickles","1) Dill Pickles"]
[null,"Salsa","Yello Corn / Tomato / Black Bean","Yello Corn / Tomato / Black Bean","Yello Corn / Tomato / Black Bean","Yello Corn / Tomato / Black Bean","Yello Corn / Tomato / Black Bean","Yello Corn / Tomato / Black Bean","Yello Corn / Tomato / Black Bean","Yello Corn / Tomato / Black Bean"]
["I-5","Savory Hot","Bread & Butter Pudding/Vanilla Custard","Walnut Chocolate Brownie/Choc S","Apple Crumble / Warm Custard","Choc-Banana Strudel / Caramel S","Apple Turnover / Vanilla Sauce","Choc-Bread & Butter Pudding ","Washington Apple Cobbler / Vanilla S","Sticky Toffee Pudding / Caramel S"]
[null,"STATION","DAY 0 ","DAY 1","DAY 2","DAY 3","DAY 4","DAY 5","DAY 6","DAY 7"]
[null,null,"ASIAN STATION ","ASIAN STATION ","ASIAN STATION ","ASIAN STATION ","ASIAN STATION ","ASIAN STATION ","ASIAN STATION ","ASIAN STATION "]
["J1","SALAD","Sweet-Chili Cabbage Salad","California Kale-Cranberry Salad","Tabbouleh - Parsley Salad","Chili Lime Cabbage Salad","California Kale-Cherry Salad","Tabbouleh - Parsley Salad","Chili Lime Cabbage Salad","Sweet-Chili Cabbage Salad"]
[null,"SALAD","French Lentil Salad","Tijuana Black Bean Salad","Tunisian Quinoa Salad","Louisiana White Bean Salad","Tijuana Black Bean Salad","Tunisian Quinoa Salad","Louisiana White Bean Salad","French Lentil Salad"]
[null,"SALAD","Roasted Beet & Goat Cheese","Kentucky Cobb Salad","Turkish Chickpea Salad","Caprese Salad w/ Balsamic","Kentucky Cobb Salad","Turkish Chickpea Salad","Caprese Salad w/ Balsamic","Roasted Beet & Goat Cheese"]
[null,"PASTA SALAD","Asian Noodle-Peanut Salad","Sicilian Ham & Pasta Salad","Mediterranean Pasta Salad","Tuscan Pasta Salad","Sicilian Ham & Pasta Salad","Mediterranean Pasta Salad","Tuscan Pasta Salad","Asian Noodle-Peanut Salad"]
[null,null,"STIR-FRY RICE & NOODLES","STIR-FRY RICE & NOODLES","STIR-FRY RICE & NOODLES","STIR-FRY RICE & NOODLES","STIR-FRY RICE & NOODLES","STIR-FRY RICE & NOODLES","STIR-FRY RICE & NOODLES","STIR-FRY RICE & NOODLES"]
["J2","PROTEINS","1) Chinese Sausage (sliced)","1) Chinese Sausage (sliced)","1) Chinese Sausage (sliced)","1) Chinese Sausage (sliced)","1) Chinese Sausage (sliced)","1) Chinese Sausage (sliced)","1) Chinese Sausage (sliced)","1) Chinese Sausage (sliced)"]
[null,null,"2) Fried Chicken (cubed)","2) Fried Chicken (cubed)","2) Fried Chicken (cubed)","2) Fried Chicken (cubed)","2) Fried Chicken (cubed)","2) Fried Chicken (cubed)","2) Fried Chicken (cubed)","2) Fried Chicken (cubed)"]
[null,null,"3) Fried Beef (cubed)","3) Fried Beef (cubed)","3) Fried Beef (cubed)","3) Fried Beef (cubed)","3) Fried Beef (cubed)","3) Fried Beef (cubed)","3) Fried Beef (cubed)","3) Fried Beef (cubed)"]
[null,null,"4) Fried Pork (pulled)","4) Fried Pork (pulled)","4) Fried Pork (pulled)","4) Fried Pork (pulled)","4) Fried Pork (pulled)","4) Fried Pork (pulled)","4) Fried Pork (pulled)","4) Fried Pork (pulled)"]
[null,null,"5) Fried Shrimp (whole)","5) Fried Shrimp (whole)","5) Fried Shrimp (whole)","5) Fried Shrimp (whole)","5) Fried Shrimp (whole)","5) Fried Shrimp (whole)","5) Fried Shrimp (whole)","5) Fried Shrimp (whole)"]
[null,null,"6) Egg Scramble (julienne)","6) Egg Scramble (julienne)","6) Egg Scramble (julienne)","6) Egg Scramble (julienne)","6) Egg Scramble (julienne)","6) Egg Scramble (julienne)","6) Egg Scramble (julienne)","6) Egg Scramble (julienne)"]
[null,"VEGETABLES","1) Carrot (julienne)","1) Carrot (julienne)","1) Carrot (julienne)","1) Carrot (julienne)","1) Carrot (julienne)","1) Carrot (julienne)","1) Carrot (julienne)","1) Carrot (julienne)"]
[null,null,"2) Red Pepper (diced)","2) Red Pepper (diced)","2) Red Pepper (diced)","2) Red Pepper (diced)","2) Red Pepper (diced)","2) Red Pepper (diced)","2) Red Pepper (diced)","2) Red Pepper (diced)"]
[null,null,"3) Green Pepper (diced)","3) Green Pepper (diced)","3) Green Pepper (diced)","3) Green Pepper (diced)","3) Green Pepper (diced)","3) Green Pepper (diced)","3) Green Pepper (diced)","3) Green Pepper (diced)"]
[null,null,"4) Green Peas ","4) Green Peas ","4) Green Peas ","4) Green Peas ","4) Green Peas ","4) Green Peas ","4) Green Peas ","4) Green Peas "]
[null,null,"5) Green Cabbage (shredded)","5) Green Cabbage (shredded)","5) Green Cabbage (shredded)","5) Green Cabbage (shredded)","5) Green Cabbage (shredded)","5) Green Cabbage (shredded)","5) Green Cabbage (shredded)","5) Green Cabbage (shredded)"]
[null,null,"6) Bamboo Shoots (sliced, canned)","6) Bamboo Shoots (sliced, canned)","6) Bamboo Shoots (sliced, canned)","6) Bamboo Shoots (sliced, canned)","6) Bamboo Shoots (sliced, canned)","6) Bamboo Shoots (sliced, canned)","6) Bamboo Shoots (sliced, canned)","6) Bamboo Shoots (sliced, canned)"]
[null,"TOPPINGS","1) Tofu (cubed)","1) Tofu (cubed)","1) Tofu (cubed)","1) Tofu (cubed)","1) Tofu (cubed)","1) Tofu (cubed)","1) Tofu (cubed)","1) Tofu (cubed)"]
[null,null,"2) Onions (diced)","2) Onions (diced)","2) Onions (diced)","2) Onions (diced)","2) Onions (diced)","2) Onions (diced)","2) Onions (diced)","2) Onions (diced)"]
[null,null,"3) Scallions (chopped)","3) Scallions (chopped)","3) Scallions (chopped)","3) Scallions (chopped)","3) Scallions (chopped)","3) Scallions (chopped)","3) Scallions (chopped)","3) Scallions (chopped)"]
[null,null,"4) Cilantro (rough chop)","4) Cilantro (rough chop)","4) Cilantro (rough chop)","4) Cilantro (rough chop)","4) Cilantro (rough chop)","4) Cilantro (rough chop)","4) Cilantro (rough chop)","4) Cilantro (rough chop)"]
[null,null,"5) Jalapeno (sliced)","5) Jalapeno (sliced)","5) Jalapeno (sliced)","5) Jalapeno (sliced)","5) Jalapeno (sliced)","5) Jalapeno (sliced)","5) Jalapeno (sliced)","5) Jalapeno (sliced)"]
[null,null,"6) Edamame (pods)","6) Edamame (pods)","6) Edamame (pods)","6) Edamame (pods)","6) Edamame (pods)","6) Edamame (pods)","6) Edamame (pods)","6) Edamame (pods)"]
[null,"GARNISHES","Peanuts/Sesame Seed/Bonito Flakes","Peanuts/Sesame Seed/Bonito Flakes","Peanuts/Sesame Seed/Bonito Flakes","Peanuts/Sesame Seed/Bonito Flakes","Peanuts/Sesame Seed/Bonito Flakes","Peanuts/Sesame Seed/Bonito Flakes","Peanuts/Sesame Seed/Bonito Flakes","Peanuts/Sesame Seed/Bonito Flakes"]
["J3","NOODLES","Udon Noodle / Ramen Noodle","Udon Noodle / Ramen Noodle","Udon Noodle / Ramen Noodle","Udon Noodle / Ramen Noodle","Udon Noodle / Ramen Noodle","Udon Noodle / Ramen Noodle","Udon Noodle / Ramen Noodle","Udon Noodle / Ramen Noodle"]
["J4","BROTH & GARNISH","Shrimp / Chicken / Scallops/Broth","Shrimp / Chicken / Scallops/Broth","Shrimp / Chicken / Scallops/Broth","Shrimp / Chicken / Scallops/Broth","Shrimp / Chicken / Scallops/Broth","Shrimp / Chicken / Scallops/Broth","Shrimp / Chicken / Scallops/Broth","Shrimp / Chicken / Scallops/Broth"]
["K1",null,"STIR-FRY STAGING AREA","STIR-FRY STAGING AREA","STIR-FRY STAGING AREA","STIR-FRY STAGING AREA","STIR-FRY STAGING AREA","STIR-FRY STAGING AREA","STIR-FRY STAGING AREA","STIR-FRY STAGING AREA"]
["K2","ACTION GARNISH","Chiffonade Caesar Salad, Caesar Dressing & Grated Parmesan","Arugula, Truffle Oil, Proscuitto Balsamic Reduction","Curry Aioli w/ Tabbouleh Salad Topping for Carving Item","Spinach Salad / Balsamic Dressing Shaved Coppa Ham","Topped with Pickled Red Onions & Gorgonzola","Shaved roast beef, white truffle mayonnaise, arugula & parmesan","Pickled Vegetable Salad w/ Herbs","Scallions & Spinach w/ Port Reduction, Gorgonzola Garnish"]
[]
["K3","DEEP DISH PIZZA","SHRIMP CAESAR PIZZA W/ TOMATO GARLIC & OLIVE OIL","ROASTED PEAR, RICOTTA PIZZA W/ PROSCUITTO & GARNISHES","MOROCCAN LEG OF LAMB  W/QUINOA & DRIED FRUIT","CAPRESE PIZZA W/ WHITE GARLIC SAUCE & BASIL PESTO","ROSEMARY FLANK STEAK W/ GARLIC SPINACH & GORGONZOLA","WILD MUSHROOM PIZZA W/ GARLIC SPINACH, MOZZ & PARM","PORK LOIN STUFFED W/ NUTS & DRIED FRUITS, BACON WRAPPED","CARAMELIZED PEAR & FIG PIZZA W/ RICOTTA & PARMESAN CHEESE"]
["K4","HOT SANDWICH","  Croque Monsieur - Open Face","Pastrami on Rye","Traditional Cuban Sandwich","Turkey Ciabatta w/Peppers & Mozz","Spicy Chicken & Cheese","Philly Cheese Steak","Royal w/ Cheese Sliders","Italian Salami Panini"]
["K5","POTATO DISH"," Roasted Garlic Potatoes"," Chili-Garlic Steak Fries","Crushed Sweet Potato Mash"," Roasted Bliss & Mushrooms","Crushed Potato/Olive Oil & Garlic","Sweet Potato Marshmallow Bake","Breaded Potato Croquettes"," Garlic Mashed Potato"]
[null,null,"TEX-MEX STATION","TEX-MEX STATION","TEX-MEX STATION","TEX-MEX STATION","TEX-MEX STATION","TEX-MEX STATION","TEX-MEX STATION","TEX-MEX STATION"]
["L1","CAESAR SALAD STATION","Romaine Lettuce / Parmesan / Crouton  Anchovies/Caesar Dressing","Romaine Lettuce / Parmesan / Crouton  Anchovies/Caesar Dressing","Romaine Lettuce / Parmesan / Crouton  Anchovies/Caesar Dressing","Romaine Lettuce / Parmesan / Crouton  Anchovies/Caesar Dressing","Romaine Lettuce / Parmesan / Crouton  Anchovies/Caesar Dressing","Romaine Lettuce / Parmesan / Crouton  Anchovies/Caesar Dressing","Romaine Lettuce / Parmesan / Crouton  Anchovies/Caesar Dressing","Romaine Lettuce / Parmesan / Crouton  Anchovies/Caesar Dressing"]
[null,"WHOLE FRUITS","Apples/Oranges/Pears/Peaches","Apple/Orange/Pears/Peach/Banana","Apple/Orange/Pears/Peach/Banana","Apple/Orange/Pears/Peach/Banana","Apple/Orange/Pears/Peach/Banana","Apple/Orange/Pears/Peach/Banana","Apple/Orange/Pears/Peach/Banana","Apple/Orange/Pears/Peach/Banana"]
[null,"FRUIT SALAD","Mango-Sesame-Chili Fruit Salad","Apricot & Cherry Fruit Salad","Spicy Pear & Pineapple Salad","Cajun Peach Salad","Apricot & Cherry Fruit Salad","Spicy Pear & Pineapple Salad","Cajun Peach Salad","Mango-Sesame-Chili Fruit Salad"]
["L2","CHIPS & SALSA STATION","1) Jalapeno Slice 2) Tomato Salsa       3) Salsa Verde 4) Black bean Salsa     5) Roasted Corn Salsa 6) Guacamole   7) Sour Cream  8) Queso Fresco         9) Tabasco 10) Chipotle Mayo","1) Jalapeno Slice 2) Tomato Salsa       3) Salsa Verde 4) Black bean Salsa     5) Roasted Corn Salsa 6) Guacamole   7) Sour Cream  8) Queso Fresco         9) Tabasco 10) Chipotle Mayo","1) Jalapeno Slice 2) Tomato Salsa       3) Salsa Verde 4) Black bean Salsa     5) Roasted Corn Salsa 6) Guacamole   7) Sour Cream  8) Queso Fresco         9) Tabasco 10) Chipotle Mayo","1) Jalapeno Slice 2) Tomato Salsa       3) Salsa Verde 4) Black bean Salsa     5) Roasted Corn Salsa 6) Guacamole   7) Sour Cream  8) Queso Fresco         9) Tabasco 10) Chipotle Mayo","1) Jalapeno Slice 2) Tomato Salsa       3) Salsa Verde 4) Black bean Salsa     5) Roasted Corn Salsa 6) Guacamole   7) Sour Cream  8) Queso Fresco         9) Tabasco 10) Chipotle Mayo","1) Jalapeno Slice 2) Tomato Salsa       3) Salsa Verde 4) Black bean Salsa     5) Roasted Corn Salsa 6) Guacamole   7) Sour Cream  8) Queso Fresco         9) Tabasco 10) Chipotle Mayo","1) Jalapeno Slice 2) Tomato Salsa       3) Salsa Verde 4) Black bean Salsa     5) Roasted Corn Salsa 6) Guacamole   7) Sour Cream  8) Queso Fresco         9) Tabasco 10) Chipotle Mayo","1) Jalapeno Slice 2) Tomato Salsa       3) Salsa Verde 4) Black bean Salsa     5) Roasted Corn Salsa 6) Guacamole   7) Sour Cream  8) Queso Fresco         9) Tabasco 10) Chipotle Mayo"]
["L3","MEX ITEMS","1) Chicken Cheese Burritos ","1) Crispy Steak & Cheese Tacos","1) Sonoro Hot Dog / Corn Salsa","1) Steak Fajita's","1) Veg Enchilada, Marinara, Mozz","1) Sonoro Hot Dogs","1) Chicken & Steak Nachos","1)  Chicken Enchilada / Cheese"]
[null,null,null,"2) Buffalo Chicken Wings",null,"2) Buffalo Chicken Wings",null,"2) Buffalo Chicken Wings",null,"1) Buffalo Chicken Wings"]
["L4","BYO- TACOS","Beef / Chicken / Pork / Peppers / Flour Tortillas","Beef / Chicken / Pork / Peppers / Flour Tortillas","Beef / Chicken / Pork / Peppers / Flour Tortillas","Beef / Chicken / Pork / Peppers / Flour Tortillas","Beef / Chicken / Pork / Peppers / Flour Tortillas","Beef / Chicken / Pork / Peppers / Flour Tortillas","Beef / Chicken / Pork / Peppers / Flour Tortillas","Beef / Chicken / Pork / Peppers / Flour Tortillas"]
[]
["M1","M1 - COLD","CONDIMENT STATION","CONDIMENT STATION","CONDIMENT STATION","CONDIMENT STATION","CONDIMENT STATION","CONDIMENT STATION","CONDIMENT STATION","CONDIMENT STATION"]
[null,"Breads","Crisp Rolls / Sunflower Seed Rolls","Crisp Rolls / Sunflower Seed Rolls","Crisp Rolls / Sunflower Seed Rolls","Crisp Rolls / Sunflower Seed Rolls","Crisp Rolls / Sunflower Seed Rolls","Crisp Rolls / Sunflower Seed Rolls","Crisp Rolls / Sunflower Seed Rolls","Crisp Rolls / Sunflower Seed Rolls"]
[null,null,"Square Rolls / Brioche Rolls","Square Rolls / Brioche Rolls","Square Rolls / Brioche Rolls","Square Rolls / Brioche Rolls","Square Rolls / Brioche Rolls","Square Rolls / Brioche Rolls","Square Rolls / Brioche Rolls","Square Rolls / Brioche Rolls"]
[null,null,"TEX-MEX ITEMS","TEX-MEX ITEMS","TEX-MEX ITEMS","TEX-MEX ITEMS","TEX-MEX ITEMS","TEX-MEX ITEMS","TEX-MEX ITEMS","TEX-MEX ITEMS"]
[null,"Salsas","Tomato / Black Bean / Verde","Tomato / Black Bean / Verde","Tomato / Black Bean / Verde","Tomato / Black Bean / Verde","Tomato / Black Bean / Verde","Tomato / Black Bean / Verde","Tomato / Black Bean / Verde","Tomato / Black Bean / Verde"]
[null,"Bottled Sauces","Tabasco Red & Green / Tapatio","Tabasco Red & Green / Tapatio","Tabasco Red & Green / Tapatio","Tabasco Red & Green / Tapatio","Tabasco Red & Green / Tapatio","Tabasco Red & Green / Tapatio","Tabasco Red & Green / Tapatio","Tabasco Red & Green / Tapatio"]
[null,"Condiments","Lime Wedges / Sour Cream","Lime Wedges / Sour Cream","Lime Wedges / Sour Cream","Lime Wedges / Sour Cream","Lime Wedges / Sour Cream","Lime Wedges / Sour Cream","Lime Wedges / Sour Cream","Lime Wedges / Sour Cream"]
[null,null,"ASIAN ITEMS","ASIAN ITEMS","ASIAN ITEMS","ASIAN ITEMS","ASIAN ITEMS","ASIAN ITEMS","ASIAN ITEMS","ASIAN ITEMS"]
[null,"Craft Sauces","Spicy Mayo/Korean BBQ/Chili Sauce","Spicy Mayo/Korean BBQ/Chili Sauce","Spicy Mayo/Korean BBQ/Chili Sauce","Spicy Mayo/Korean BBQ/Chili Sauce","Spicy Mayo/Korean BBQ/Chili Sauce","Spicy Mayo/Korean BBQ/Chili Sauce","Spicy Mayo/Korean BBQ/Chili Sauce","Spicy Mayo/Korean BBQ/Chili Sauce"]
[null,"Bottled Sauces","Soy/Oyster/Sriracha/Ponzu/Peanut","Soy/Oyster/Sriracha/Ponzu/Peanut","Soy/Oyster/Sriracha/Ponzu/Peanut","Soy/Oyster/Sriracha/Ponzu/Peanut","Soy/Oyster/Sriracha/Ponzu/Peanut","Soy/Oyster/Sriracha/Ponzu/Peanut","Soy/Oyster/Sriracha/Ponzu/Peanut","Soy/Oyster/Sriracha/Ponzu/Peanut"]
[null,"Condiments","Pickled Ginger / Peanuts/Sesame","Pickled Ginger / Peanuts/Sesame","Pickled Ginger / Peanuts/Sesame","Pickled Ginger / Peanuts/Sesame","Pickled Ginger / Peanuts/Sesame","Pickled Ginger / Peanuts/Sesame","Pickled Ginger / Peanuts/Sesame","Pickled Ginger / Peanuts/Sesame"]

{"sheet":"Day 0 - Production","index":1,"n_rows":191,"n_cols":7,"rows_kept":191,"cut":false,"hidden":false,"merged":[[61,0,66,0],[61,1,64,1],[65,1,66,1],[23,0,24,0],[23,1,24,1],[2,0,3,0],[18,0,18,1],[19,0,20,0],[19,1,20,1],[21,0,22,0],[21,1,22,1],[73,0,96,0],[73,1,87,1],[88,1,96,1],[98,0,102,0],[25,0,26,0],[25,1,26,1],[29,0,30,0],[29,1,30,1],[31,0,32,0],[31,1,32,1],[34,0,38,0],[40,0,45,0],[47,0,51,0],[68,0,70,0],[68,1,69,1],[53,0,58,0],[104,0,107,0],[104,1,105,1],[106,1,107,1],[110,0,111,0],[125,0,129,0],[125,1,127,1],[113,0,118,0],[113,1,115,1],[116,1,117,1],[120,0,123,0],[172,0,173,0],[172,1,173,1],[174,0,184,0],[133,0,136,0],[138,0,156,0],[160,1,161,1],[166,0,168,0]]}
[null,"STATION","LUNCH / DAY 0  x 2","PROD LOCATION","QTY","CREW","SHOPPING LIST"]
[null,null,{"$f":"'Menu Matrix'!C2","v":"WESTERN DESTINATIONS"}]
["A1","GF-PASTA",{"$f":"'Menu Matrix'!C3","v":"Zucchini-Peppers-Onions"},"Lido Hot","10 Kg"]
[null,"PASTA SAUCE",{"$f":"'Menu Matrix'!C4","v":"Marinara / Roasted Pepper"},"Sauce 6","10 Ltr"]
["A2","HOT SANDWICH",{"$f":"'Menu Matrix'!C5","v":"  Croque Monsieur - Open Face"},"Grill 6","600 Portion"]
["A3","TEX-MEX ITEM",{"$f":"'Menu Matrix'!C6","v":"1) Chicken Cheese Burritos"},"Soup 6","500 Portion"]
[null,"SIDE ITEM",{"$f":"'Menu Matrix'!C7","v":"2) Fried Tortilla Chips"},"Gm 14","15 Kg"]
["A4","TOPPINGS",{"$f":"'Menu Matrix'!C8","v":"1) Jalapeno Slice 2) Tomato Salsa       3) Salsa Verde 4) Black bean Salsa     5) Roasted Corn Salsa 6) Guacamole   7) Sour Cream  8) Queso Fresco         9) Tabasco 10) Chipotle Mayo"},"GM 14","5 Kg"]
[null,null,{"$f":"'Menu Matrix'!C9","v":"LUNCH BAZAAR"}]
["B1","MEAT",{"$f":"'Menu Matrix'!C10","v":"1) Chili Glazed Pork Butt/ Napa Cab"},"Gm 6","95 Kg"]
[null,"POTATO DISH",{"$f":"'Menu Matrix'!C11","v":"2) Roasted Garlic Potatoes"},"Soup 6","60 Kg"]
["B2","ACTION STATION",{"$f":"'Menu Matrix'!C12","v":"Chiffonade Caesar Salad, Caesar Dressing & Grated Parmesan"},"Lido Hot"]
[null,"GARNISH ITEM",{"$f":"'Menu Matrix'!C13","v":0}]
["B3","DEEP DISH   CARVING ITEM",{"$f":"'Menu Matrix'!C14","v":"SHRIMP CAESAR PIZZA W/ TOMATO GARLIC & OLIVE OIL"},"Slice","18 pcs"]
["B4","FISH/SEAFOOD",{"$f":"'Menu Matrix'!C15","v":"1) English Fried Fish Filets"},"Lido Hot","500 Pcs"]
[null,"VEGETABLES",{"$f":"'Menu Matrix'!C16","v":"2) Peas & Carrots"},"Lido Hot","30 Kg"]
["B5","CHICKEN DISH",{"$f":"'Menu Matrix'!C17","v":"1) Chicken Piccata /Lemon & Capers"},"Suace 5","450 Pcs"]
[null,"PASTA DISH",{"$f":"'Menu Matrix'!C18","v":"2) Rigatoni Alfredo w/ Parmesan"},"Sauce 6","10 Ltr"]
["DESTINATIONS",null,{"$f":"'Menu Matrix'!C19","v":"ENGLISH"}]
["C1","CONDIMENTS",{"$f":"'Menu Matrix'!C20","v":"A1 / Mustard / Ketchup / Sriracha"}]
[null,null,{"$f":"'Menu Matrix'!C21","v":"Worchestershire / Soy Sauce / Malt V"}]
["C2","VEGETABLES     SIDE ITEM",{"$f":"'Menu Matrix'!C22","v":"1) Buttered String Beans"},"Lido Hot","30 Kg"]
[null,null,{"$f":"'Menu Matrix'!C23","v":"2) Roasted Tomatoes"},"Lido Hot","400 Pcs"]
["C3","PROTEIN             SIDE ITEM",{"$f":"'Menu Matrix'!C24","v":"1) Sausage Rolls"},"Sauce 6","500 Pcs"]
[null,null,{"$f":"'Menu Matrix'!C25","v":"2) Green Buttered Cabbage"},"Lido Hot ","60 Kg"]
["C4","STARCH DISH      SIDE ITEM",{"$f":"'Menu Matrix'!C26","v":"1) French Fries"},"Lido Hot","60 Kg"]
[null,null,{"$f":"'Menu Matrix'!C27","v":"2) Steamed Rice"},"Lido Hot","10 Kg"]
["C5","NEUTRAL",{"$f":"'Menu Matrix'!C28","v":0}]
[null,null,{"$f":"'Menu Matrix'!C29","v":"GARDEN SOUP KETTLE"}]
["D1","SOUPS",{"$f":"'Menu Matrix'!C30","v":"1) Daily Soup Main Dining"},"Soup 5","25 Ltr"]
[null,null,{"$f":"'Menu Matrix'!C31","v":"2) Daily Soup Main Dining"},"Soup 5","25 Ltr"]
["D2","TOPPINGS",{"$f":"'Menu Matrix'!C32","v":"Scallions / Bacon Bits / Croutons "},"Bell Box","2 Kg"]
[null,null,{"$f":"'Menu Matrix'!C33","v":"Parmesan / Red Onion / Tofu"},"Bell Box","Each"]
[null,null,{"$f":"'Menu Matrix'!C34","v":"HARVEST SALADS"}]
["E1","Leaf Individual",{"$f":"'Menu Matrix'!C35","v":"Sweet-Chili Cabbage Salad"},"GM 6","15 Kg"]
[null,"Grain Individual",{"$f":"'Menu Matrix'!C36","v":"French Lentil Salad"},"GM 6","15 Kg"]
[null,"Veg Individual ",{"$f":"'Menu Matrix'!C37","v":"Roasted Beet & Goat Cheese"},"Gm 5","15 Kg"]
[null,"Crunch Item",{"$f":"'Menu Matrix'!C38","v":"Sesame Spiced Wontons"},"Gm 14","10 Kg"]
[null,"Garnishes",{"$f":"'Menu Matrix'!C39","v":"Walnuts / Almonds / Pistachio"},"Gm 14","1 Kg"]
[null,null,{"$f":"'Menu Matrix'!C40","v":"COMPOSED SALADS"}]
["E2","Grain Salad LG",{"$f":"'Menu Matrix'!C41","v":"French Lentil Salad"},"Gm 5 ","12 Kg"]
[null,"Pasta Salad LG",{"$f":"'Menu Matrix'!C42","v":"Asian Noodle-Peanut Salad"},"Gm 5 ","12 Kg"]
[null,"Fruit Salad LG",{"$f":"'Menu Matrix'!C43","v":"Mango-Sesame-Chili Fruit Salad"},"Fruit 5","15 Can"]
[null,"Roasted Veg",{"$f":"'Menu Matrix'!C44","v":"Zucchini-Peppers-Onions"},"Gm 14","10 Kg"]
[null,"Cheese Garnish",{"$f":"'Menu Matrix'!C45","v":"Blue Cheese / Parmesan Cheese"},"Gm 14","1 Kg ea"]
[null,"Bread Garnish",{"$f":"'Menu Matrix'!C46","v":"Garlic Bread / Parmesan Bread"},"Gm 14","10 Loaf"]
[null,null,{"$f":"'Menu Matrix'!C47","v":"FRESH MARKET GREENS"}]
["F1","Leaf Lettuce",{"$f":"'Menu Matrix'!C48","v":"Mixed Greens / Spinach"},"Gm 6","40 Kg"]
[null,"Leaf Lettuce",{"$f":"'Menu Matrix'!C49","v":"Shredded Green & Red Cabbage"},"Gm 6","40 Kg"]
[null,"Tomato Salad",{"$f":"'Menu Matrix'!C50","v":"Sliced Tomato & Red Onion"},"GM 14","10 Kg"]
[null,"Potato Salad",{"$f":"'Menu Matrix'!C51","v":"Smoked Paprika Potato Salad"},"GM 14","40 Kg"]
[null,"Crudités",{"$f":"'Menu Matrix'!C52","v":"Carrots/Celery/Pepper/Radish"},"Prep","10 Kg"]
[null,null,{"$f":"'Menu Matrix'!C53","v":"FRESH MARKET MEATS"}]
["F2","Deli Meats",{"$f":"'Menu Matrix'!C54","v":"Mortadella / Paprika Turkey"},"Gm 14","5 Kg"]
[null,"Cured Meat",{"$f":"'Menu Matrix'!C55","v":"Salami "},"Gm 14","5 Kg"]
[null,"Cheeses",{"$f":"'Menu Matrix'!C56","v":"Cheddar / Swiss"},"Gm 14","5 Kg"]
[null,"Pickles",{"$f":"'Menu Matrix'!C57","v":"Red Onion-Cornichons-Giardiniera-Green Olives - Kalamata Olives"},"Gm 14","1 Kg"]
[null,"Breads",{"$f":"'Menu Matrix'!C58","v":"Garlic Parmesan Bread"},"Gm 14","1 Kg"]
[null,"Condiments",{"$f":"'Menu Matrix'!C59","v":"Dijon Mustard - Mayonnaise"},"Gm 14","1 Kg"]
[null,"STATION",{"$f":"'Menu Matrix'!C60","v":"DAY 0 "}]
[null,null,{"$f":"'Menu Matrix'!C61","v":"ORCHARD JUICE BAR"}]
["G1","JUICES",{"$f":"'Menu Matrix'!C62","v":"1) Watermelon"},"Veg Prep","20 Ltr"]
[null,null,{"$f":"'Menu Matrix'!C63","v":"2) Cantaloupe"},"Veg Prep","20 Ltr"]
[null,null,{"$f":"'Menu Matrix'!C64","v":"3) Mixed Fruit"},"Veg Prep","20 Ltr"]
[null,null,{"$f":"'Menu Matrix'!C65","v":"4) Chef's Special"},"Veg Prep","20 Ltr"]
[null,"SANGRIA MIX",{"$f":"'Menu Matrix'!C66","v":"Awaiting Final Decision From PCL"},"Veg Prep","20 Ltr"]
[null,null,{"$f":"'Menu Matrix'!C67","v":"to implement?"},"Veg Prep","20 Ltr"]
[null,null,{"$f":"'Menu Matrix'!C68","v":"SWEET DELIGHTS"}]
["H1","CHOCOLATE DIPPED ITEMS",{"$f":"'Menu Matrix'!C69","v":"Apples / Banana / Pear"}]
[null,null,{"$f":"'Menu Matrix'!C70","v":"Marshmallow / Banana"}]
[null,"CARAMEL FRUIT",{"$f":"'Menu Matrix'!C71","v":"Apples / Pears"}]
[null,"PARFAITS",{"$f":"'Menu Matrix'!C72","v":"Classic Trifle - Raspberry Jello, Pound Cake, Vanilla Custard, Chocolate Sauce, Maraschino Cherries"},"Pastry"]
[null,null,{"$f":"'Menu Matrix'!C73","v":"FRESH MARKET TOPPINGS"}]
["H2","TOPPINGS",{"$f":"'Menu Matrix'!C74","v":"1) Cherry Tomato Slice"},"Veg Prep","5 Kg ea"]
[null,null,{"$f":"'Menu Matrix'!C75","v":"2) Red Onion - Dice"},"Veg Prep","5 Kg ea"]
[null,null,{"$f":"'Menu Matrix'!C76","v":"3) Cucumber - Dice"},"Veg Prep","5 Kg ea"]
[null,null,{"$f":"'Menu Matrix'!C77","v":"4) Celery Stalk - Dice"},"Veg Prep","5 Kg ea"]
[null,null,{"$f":"'Menu Matrix'!C78","v":"5) Carrots - Dice"},"Veg Prep","5 Kg ea"]
[null,null,{"$f":"'Menu Matrix'!C79","v":"6) Red Radish - Dice"},"Veg Prep","5 Kg ea"]
[null,null,{"$f":"'Menu Matrix'!C80","v":"7) Mixed Bell Pepper - Dice"},"Veg Prep","5 Kg ea"]
[null,null,{"$f":"'Menu Matrix'!C81","v":"8) Mushrooms - Sliced"},"Veg Prep","5 Kg ea"]
[null,null,{"$f":"'Menu Matrix'!C82","v":"9) Yellow Corn"},"Veg Prep","5 Kg ea"]
[null,null,{"$f":"'Menu Matrix'!C83","v":"10) Garbanzo Beans"},"Veg Prep","5 Kg ea"]
[null,null,{"$f":"'Menu Matrix'!C84","v":"11) Black Beans"},"GM 14","5 kg"]
[null,null,{"$f":"'Menu Matrix'!C85","v":"12) Green Olives"},"GM 14","5 kg"]
[null,null,{"$f":"'Menu Matrix'!C86","v":"13) Sunflower Seeds"},"GM 14","2 Kg"]
[null,null,{"$f":"'Menu Matrix'!C87","v":"14) Walnuts"},"GM 14","2 Kg"]
[null,null,{"$f":"'Menu Matrix'!C88","v":"15) Croutons"},"GM 14","2 Kg"]
[null,"DRESSINGS",{"$f":"'Menu Matrix'!C89","v":"1) Ranch"},"GM 14","1 Gal"]
[null,null,{"$f":"'Menu Matrix'!C90","v":"2) Caesar"},"GM 14","1 Gal"]
[null,null,{"$f":"'Menu Matrix'!C91","v":"3) Balsamic"},"GM 14","1 Gal"]
[null,null,{"$f":"'Menu Matrix'!C92","v":"4) Italian"},"GM 14","1 Gal"]
[null,null,{"$f":"'Menu Matrix'!C93","v":"5) Low-Fat Yogurt"},"GM 14","1 Gal"]
[null,null,{"$f":"'Menu Matrix'!C94","v":"6) Blue Cheese"},"GM 14","1 Gal"]
[null,null,{"$f":"'Menu Matrix'!C95","v":"7) Thousand Island"},"GM 14","1 Gal"]
[null,null,{"$f":"'Menu Matrix'!C96","v":"8) Shallot"},"GM 14","3 Ltr"]
[null,null,{"$f":"'Menu Matrix'!C97","v":"9) Dijon Mustard"},"GM 14","5 Kg"]
[null,null,{"$f":"'Menu Matrix'!C98","v":"PASTRY COUNTER"}]
["H3","Fruit Tart",{"$f":"'Menu Matrix'!C99","v":"Fresh Fruit Tartlet"},"Pastry"]
[null,"Pastry",{"$f":"'Menu Matrix'!C100","v":"Pecan Pie"},"Pastry"]
[null,"Pastry",{"$f":"'Menu Matrix'!C101","v":"Grand Marnier Cream Horn"},"Pastry"]
[null,"Pastry",{"$f":"'Menu Matrix'!C102","v":"Macadamia Nut Brownie Mousse Cake"},"Pastry"]
[null,"Cupcakes",{"$f":"'Menu Matrix'!C103","v":"Red Velvet / Vanilla Yogurt Frosting"},"Pastry"]
[null,null,{"$f":"'Menu Matrix'!C104","v":"FRESH & FAST - GF"}]
["H4","Gluten Free",{"$f":"'Menu Matrix'!C105","v":"1) Mango Cheese Cake"},"Pastry"]
[null,null,{"$f":"'Menu Matrix'!C106","v":"2) Orange Tapioca Pudding"},"Pastry"]
[null,"Sugar Free",{"$f":"'Menu Matrix'!C107","v":"1) Key Lime Pie"},"Pastry"]
[null,null,{"$f":"'Menu Matrix'!C108","v":"2) Coconut Cream Pie"},"Pastry"]
["H5","H5 - HOT",{"$f":"'Menu Matrix'!C109","v":"Roasted Banana / Chocolate/Coconut"},"Pastry"]
[null,null,{"$f":"'Menu Matrix'!C110","v":"FRUIT STAND FAVORITES"}]
["I-1","Whole Fruits",{"$f":"'Menu Matrix'!C111","v":"Banana / Red Apple / Pears / Peach   Green Apple / Oranges"},"Gm 14","50 kg"]
[null,"Sliced Fruits",{"$f":"'Menu Matrix'!C112","v":"Watermelon/Pineapple/  Cantaloupe  Honeydew Melon"},"Fruit 5","100 kg ea"]
[null,null,{"$f":"'Menu Matrix'!C113","v":"OVEN BAKED BREADS"}]
["I-2","Current Rolls",{"$f":"'Menu Matrix'!C114","v":"1) Plain Crunchy Rolls"}]
[null,null,{"$f":"'Menu Matrix'!C115","v":"2) Plain Soft Rolls"},"Bakery"]
[null,null,{"$f":"'Menu Matrix'!C116","v":"3) Six Cereal Rolls"},"Bakery"]
[null,"Loafs",{"$f":"'Menu Matrix'!C117","v":"4) Muesli Loaf Sliced"},"Bakery"]
[null,null,{"$f":"'Menu Matrix'!C118","v":"5) Olive Focaccia"},"Bakery"]
[null,"Condiments",{"$f":"'Menu Matrix'!C119","v":"Butter & Preserves"}]
[null,null,{"$f":"'Menu Matrix'!C120","v":"SANDWICH SHOP"}]
["I-3","Baguette or Bagel",{"$f":"'Menu Matrix'!C121","v":"Roasted Vegetables w/ Sundried Tomato & Basil Pesto / Parmesan"},"Gm 5",180]
[null,"Focaccia",{"$f":"'Menu Matrix'!C122","v":"Italian Focaccia w. Prosciutto, Salami Buffalo Mozzarella & Arugula"},"Gm 5",180]
[null,"Hamburger Bun",{"$f":"'Menu Matrix'!C123","v":"Roast Beef & Chipotle Mayo w/ Romaine, Pickles & Havarti Cheese"},"Gm 5",180]
[null,"Hot Dog Bun",{"$f":"'Menu Matrix'!C124","v":"Roasted Turkey w/ Asian Slaw & Sweet Chili Sauce"},"Gm 5",180]
[null,null,{"$f":"'Menu Matrix'!C125","v":"FRESH & FAST STATION - 2"}]
["I-4","Chips",{"$f":"'Menu Matrix'!C126","v":"1) Potato Chips"},"Gm 14","10 packet"]
[null,null,{"$f":"'Menu Matrix'!C127","v":"2) Salt & Vinegar Chips"},"Gm 14","10 packet"]
[null,null,{"$f":"'Menu Matrix'!C128","v":"3) Nacho Chips"},"Gm 14","10 packet"]
[null,"Pickles",{"$f":"'Menu Matrix'!C129","v":"1) Dill Pickles"},"Gm 14","1 Gal"]
[null,"Salsa",{"$f":"'Menu Matrix'!C130","v":"Yello Corn / Tomato / Black Bean"},"Gm 14","10 Kg"]
["I-5","Savory Hot",{"$f":"'Menu Matrix'!C131","v":"Bread & Butter Pudding/Vanilla Custard"}]
[null,"STATION",{"$f":"'Menu Matrix'!C132","v":"DAY 0 "}]
[null,null,{"$f":"'Menu Matrix'!C133","v":"ASIAN STATION "}]
["J1","SALAD",{"$f":"'Menu Matrix'!C134","v":"Sweet-Chili Cabbage Salad"},"Gm 6","12 Kg"]
[null,"SALAD",{"$f":"'Menu Matrix'!C135","v":"French Lentil Salad"},"Gm 5","12 Kg"]
[null,"SALAD",{"$f":"'Menu Matrix'!C136","v":"Roasted Beet & Goat Cheese"},"Gm 5","12 Kg"]
[null,"PASTA SALAD",{"$f":"'Menu Matrix'!C137","v":"Asian Noodle-Peanut Salad"},"Gm 5","12 Kg"]
[null,null,{"$f":"'Menu Matrix'!C138","v":"STIR-FRY RICE & NOODLES"}]
["J2","PROTEINS",{"$f":"'Menu Matrix'!C139","v":"1) Chinese Sausage (sliced)"},"Lido Hot","3 Kg"]
[null,null,{"$f":"'Menu Matrix'!C140","v":"2) Fried Chicken (cubed)"},"Lido Hot","3 Kg"]
[null,null,{"$f":"'Menu Matrix'!C141","v":"3) Fried Beef (cubed)"},"Lido Hot","3 Kg"]
[null,null,{"$f":"'Menu Matrix'!C142","v":"4) Fried Pork (pulled)"},"Lido Hot","3 Kg"]
[null,null,{"$f":"'Menu Matrix'!C143","v":"5) Fried Shrimp (whole)"},"Lido Hot","3 Kg"]
[null,null,{"$f":"'Menu Matrix'!C144","v":"6) Egg Scramble (julienne)"},"Lido Hot","3 Kg"]
[null,"VEGETABLES",{"$f":"'Menu Matrix'!C145","v":"1) Carrot (julienne)"},"Veg Prep","3 Kg"]
[null,null,{"$f":"'Menu Matrix'!C146","v":"2) Red Pepper (diced)"},"Veg Prep","3 Kg"]
[null,null,{"$f":"'Menu Matrix'!C147","v":"3) Green Pepper (diced)"},"Veg Prep","3 Kg"]
[null,null,{"$f":"'Menu Matrix'!C148","v":"4) Green Peas "},"Veg Prep","3 Kg"]
[null,null,{"$f":"'Menu Matrix'!C149","v":"5) Green Cabbage (shredded)"},"Veg Prep","3 Kg"]
[null,null,{"$f":"'Menu Matrix'!C150","v":"6) Bamboo Shoots (sliced, canned)"},"Veg Prep","3 Kg"]
[null,"TOPPINGS",{"$f":"'Menu Matrix'!C151","v":"1) Tofu (cubed)"},"Steamers","3 Kg"]
[null,null,{"$f":"'Menu Matrix'!C152","v":"2) Onions (diced)"},"Steamers","3 Kg"]
[null,null,{"$f":"'Menu Matrix'!C153","v":"3) Scallions (chopped)"},"Steamers","3 Kg"]
[null,null,{"$f":"'Menu Matrix'!C154","v":"4) Cilantro (rough chop)"},"Steamers","3 Kg"]
[null,null,{"$f":"'Menu Matrix'!C155","v":"5) Jalapeno (sliced)"},"Steamers","3 Kg"]
[null,null,{"$f":"'Menu Matrix'!C156","v":"6) Edamame (pods)"},"Steamers","3 Kg"]
[null,"GARNISHES",{"$f":"'Menu Matrix'!C157","v":"Peanuts/Sesame Seed/Bonito Flakes"},"Steamers","2 Kg ea"]
["J3","NOODLES",{"$f":"'Menu Matrix'!C158","v":"Udon Noodle / Ramen Noodle"},"Lido Hot","20 Kg"]
["J4","BROTH & GARNISH",{"$f":"'Menu Matrix'!C159","v":"Shrimp / Chicken / Scallops/Broth"},"Lido Hot","5 Kg ea"]
["K1",null,{"$f":"'Menu Matrix'!C160","v":"STIR-FRY STAGING AREA"}]
["K2","ACTION GARNISH",{"$f":"'Menu Matrix'!C161","v":"Chiffonade Caesar Salad, Caesar Dressing & Grated Parmesan"},"Lido Hot "]
[null,null,{"$f":"'Menu Matrix'!C162","v":0}]
["K3","DEEP DISH PIZZA",{"$f":"'Menu Matrix'!C163","v":"SHRIMP CAESAR PIZZA W/ TOMATO GARLIC & OLIVE OIL"},"Bakery"]
["K4","HOT SANDWICH",{"$f":"'Menu Matrix'!C164","v":"  Croque Monsieur - Open Face"},"Grill / 6"]
["K5","POTATO DISH",{"$f":"'Menu Matrix'!C165","v":" Roasted Garlic Potatoes"},"Soup / 6"]
[null,null,{"$f":"'Menu Matrix'!C166","v":"TEX-MEX STATION"}]
["L1","CAESAR SALAD STATION",{"$f":"'Menu Matrix'!C167","v":"Romaine Lettuce / Parmesan / Crouton  Anchovies/Caesar Dressing"},"Gm 14"]
[null,"WHOLE FRUITS",{"$f":"'Menu Matrix'!C168","v":"Apples/Oranges/Pears/Peaches"},"Gm 14"]
[null,"FRUIT SALAD",{"$f":"'Menu Matrix'!C169","v":"Mango-Sesame-Chili Fruit Salad"},"Fruit 5"]
["L2","CHIPS & SALSA STATION",{"$f":"'Menu Matrix'!C170","v":"1) Jalapeno Slice 2) Tomato Salsa       3) Salsa Verde 4) Black bean Salsa     5) Roasted Corn Salsa 6) Guacamole   7) Sour Cream  8) Queso Fresco         9) Tabasco 10) Chipotle Mayo"},"Gm 14"]
["L3","MEX ITEMS",{"$f":"'Menu Matrix'!C171","v":"1) Chicken Cheese Burritos "},"Soup 6"]
[null,null,{"$f":"'Menu Matrix'!C172","v":0}]
["L4","BYO- TACOS",{"$f":"'Menu Matrix'!C173","v":"Beef / Chicken / Pork / Peppers / Flour Tortillas"},"Lido Hot"]
[null,null,{"$f":"'Menu Matrix'!C174","v":0}]
["M1","M1 - COLD",{"$f":"'Menu Matrix'!C175","v":"CONDIMENT STATION"}]
[null,"Breads",{"$f":"'Menu Matrix'!C176","v":"Crisp Rolls / Sunflower Seed Rolls"},"Bakery"]
[null,null,{"$f":"'Menu Matrix'!C177","v":"Square Rolls / Brioche Rolls"}]
[null,null,{"$f":"'Menu Matrix'!C178","v":"TEX-MEX ITEMS"}]
[null,"Salsas",{"$f":"'Menu Matrix'!C179","v":"Tomato / Black Bean / Verde"}," "]
[null,"Bottled Sauces",{"$f":"'Menu Matrix'!C180","v":"Tabasco Red & Green / Tapatio"}]
[null,"Condiments",{"$f":"'Menu Matrix'!C181","v":"Lime Wedges / Sour Cream"}]
[null,null,{"$f":"'Menu Matrix'!C182","v":"ASIAN ITEMS"}]
[null,"Craft Sauces",{"$f":"'Menu Matrix'!C183","v":"Spicy Mayo/Korean BBQ/Chili Sauce"}]
[null,"Bottled Sauces",{"$f":"'Menu Matrix'!C184","v":"Soy/Oyster/Sriracha/Ponzu/Peanut"}]
[null,"Condiments",{"$f":"'Menu Matrix'!C185","v":"Pickled Ginger / Peanuts/Sesame"}]
[]
[null,null,null,"Sous chef DK 5 / 6 check off sign                            Time"]
[]
[null,null,null,"Sous Chef recive check off sign                                Time"]
[]
[null,null,null,"Food testing ",null,"Ok","not OK"]

{"sheet":"Day 1 - Production","index":2,"n_rows":191,"n_cols":7,"rows_kept":191,"cut":false,"hidden":false,"merged":[[0,6,0,8],[1,3,1,8],[2,0,3,0],[8,3,8,8],[18,0,18,1],[18,3,18,8],[19,0,20,0],[19,1,20,1],[21,0,22,0],[21,1,22,1],[23,0,24,0],[23,1,24,1],[47,0,51,0],[25,0,26,0],[25,1,26,1],[28,3,28,8],[29,0,30,0],[29,1,30,1],[31,0,32,0],[31,1,32,1],[33,3,33,8],[34,0,38,0],[39,3,39,8],[40,0,45,0],[46,3,46,8],[52,3,52,8],[53,0,58,0],[60,3,60,8],[61,0,66,0],[61,1,64,1],[65,1,66,1],[67,3,67,8],[68,0,70,0],[68,1,69,1],[72,3,72,8],[73,0,96,0],[73,1,87,1],[88,1,96,1],[97,3,97,8],[98,0,102,0],[103,3,103,8],[104,0,107,0],[104,1,105,1],[106,1,107,1],[109,3,109,8],[110,0,111,0],[112,3,112,8],[113,0,118,0],[113,1,115,1],[116,1,117,1],[165,3,165,8],[119,3,119,8],[120,0,123,0],[124,3,124,8],[125,0,129,0],[125,1,127,1],[132,3,132,8],[133,0,136,0],[137,3,137,8],[138,0,156,0],[159,3,159,8],[160,1,161,1],[166,0,168,0],[172,0,173,0],[172,1,173,1],[174,0,184,0],[174,3,174,8]]}
[null,"STATION","LUNCH / DAY 1  x 2","PROD LOCATION","QTY","CREW","SHOPPING LIST"]
[null,null,{"$f":"'Menu Matrix'!D2","v":"WESTERN DESTINATIONS"}]
["A1","GF-PASTA",{"$f":"'Menu Matrix'!D3","v":"Roasted Asparagus-Tomato-Carrot"},"Lido Hot ","10 kg"]
[null,"PASTA SAUCE",{"$f":"'Menu Matrix'!D4","v":"Marinara / Mushroom"},"Sauce 6","10 ltr"]
["A2","HOT SANDWICH",{"$f":"'Menu Matrix'!D5","v":"Pastrami on Rye"},"Grill 6",300]
["A3","TEX-MEX ITEM",{"$f":"'Menu Matrix'!D6","v":"1) Crispy Steak & Cheese Tacos"},"Lido Hot ","20 kg"]
[null,"SIDE ITEM",{"$f":"'Menu Matrix'!D7","v":"2) N/A"}]
["A4","TOPPINGS",{"$f":"'Menu Matrix'!D8","v":"1) Jalapeno Slice 2) Tomato Salsa       3) Salsa Verde 4) Black bean Salsa     5) Roasted Corn Salsa 6)Guacamole   7) Sour Cream  8) Queso Fresco 9) Tabasco 10) Chipotle Mayo"},"GM 14","5 kg ea."]
[null,null,{"$f":"'Menu Matrix'!D9","v":"LUNCH BAZAAR"},"Lido Hot "]
["B1","MEAT",{"$f":"'Menu Matrix'!D10","v":"1) Churrasco Steak w/Chimichurri"},"Lido Hot ","50 kg"]
[null,"POTATO DISH",{"$f":"'Menu Matrix'!D11","v":"2) Chili-Garlic Steak Fries"},"Lido Hot ","60 kg"]
["B2","ACTION STATION",{"$f":"'Menu Matrix'!D12","v":"Arugula, Truffle Oil, Proscuitto Balsamic Reduction"},"Lido Hot "]
[null,"GARNISH ITEM",{"$f":"'Menu Matrix'!D13","v":0}]
["B3","DEEP DISH   CARVING ITEM",{"$f":"'Menu Matrix'!D14","v":"ROASTED PEAR, RICOTTA PIZZA W/ PROSCUITTO & GARNISHES"},"Slice","18 tray"]
["B4","FISH/SEAFOOD",{"$f":"'Menu Matrix'!D15","v":"1) Lemon Caper Tilapia / S-Rice"},"Fish 5",350]
[null,"VEGETABLES",{"$f":"'Menu Matrix'!D16","v":"2) Green Beans w/ Toasted Almonds"},"Lido Hot ","30 kg"]
["B5","CHICKEN DISH",{"$f":"'Menu Matrix'!D17","v":"1) Stuffed Mozz / Wrapped Bacon"},"Sauce 5",450]
[null,"PASTA DISH",{"$f":"'Menu Matrix'!D18","v":"2) Wild Mushroom Cream Conghilie"},"Sauce 6","10 ltr"]
["DESTINATIONS",null,{"$f":"'Menu Matrix'!D19","v":"FRENCH"}]
["C1","CONDIMENTS",{"$f":"'Menu Matrix'!D20","v":"A1 / Mustard / Ketchup / Sriracha"}]
[null,null,{"$f":"'Menu Matrix'!D21","v":"Worchestershire / Soy Sauce / Malt V"}]
["C2","VEGETABLES     SIDE ITEM",{"$f":"'Menu Matrix'!D22","v":"1) Sliced Ratatouille"},"Lido Hot ","40 kg"]
[null,null,{"$f":"'Menu Matrix'!D23","v":"2) Creamed Leeks & Spinach Parm"},"Lido Hot ","30 kg"]
["C3","PROTEIN             SIDE ITEM",{"$f":"'Menu Matrix'!D24","v":"1) Steak Au Poivre Baguette"},"Lido Hot ","35 loaf"]
[null,null,{"$f":"'Menu Matrix'!D25","v":"2) Peppercorn Cream Sauce"},"sauce 6","5 ltr"]
["C4","STARCH DISH      SIDE ITEM",{"$f":"'Menu Matrix'!D26","v":"1) Rice Pilaf"},"Soup 6","10 kg"]
[null,null,{"$f":"'Menu Matrix'!D27","v":"2) Au Gratin Potatoes"},"Soup 6","45 kg"]
["C5","NEUTRAL",{"$f":"'Menu Matrix'!D28","v":0}]
[null,null,{"$f":"'Menu Matrix'!D29","v":"GARDEN SOUP KETTLE"}]
["D1","SOUPS",{"$f":"'Menu Matrix'!D30","v":"1) Daily Soup Main Dining"},"Soup 5","25 ltr"]
[null,null,{"$f":"'Menu Matrix'!D31","v":"2) Daily Soup Main Dining"},"Soup 5","25 ltr"]
["D2","TOPPINGS",{"$f":"'Menu Matrix'!D32","v":"Scallions / Bacon Bits / Croutons "},"B. Box","2 kg ea."]
[null,null,{"$f":"'Menu Matrix'!D33","v":"Parmesan / Red Onion / Tofu"},"B. Box","2 kg ea."]
[null,null,{"$f":"'Menu Matrix'!D34","v":"HARVEST SALADS"}]
["E1","Leaf Individual",{"$f":"'Menu Matrix'!D35","v":"California Kale-Cranberry Salad"},"gm 6","20 kg"]
[null,"Grain Individual",{"$f":"'Menu Matrix'!D36","v":"Tijuana Black Bean Salad"},"Gm 6","20 kg"]
[null,"Veg Individual ",{"$f":"'Menu Matrix'!D37","v":"Kentucky Cobb Salad w/ Bacon"},"Gm 5 ","20 kg"]
[null,"Crunch Item",{"$f":"'Menu Matrix'!D38","v":"Spicy Corn Tortilla Strips"},"Gm 14","10 kg"]
[null,"Garnishes",{"$f":"'Menu Matrix'!D39","v":"Walnuts / Almonds / Pistachio"},"Gm 14","1 kg"]
[null,null,{"$f":"'Menu Matrix'!D40","v":"COMPOSED SALADS"}]
["E2","Grain Salad LG",{"$f":"'Menu Matrix'!D41","v":"Tijuana Black Bean Salad"},"Gm 5 ","12 kg "]
[null,"Pasta Salad LG",{"$f":"'Menu Matrix'!D42","v":"Sicilian Ham & Pasta Salad"},"Gm 5 ","15 kg"]
[null,"Fruit Salad LG",{"$f":"'Menu Matrix'!D43","v":"Apricot & Cherry Fruit Salad"},"Fruit 5","25 kg"]
[null,"Roasted Veg",{"$f":"'Menu Matrix'!D44","v":"Roasted Asparagus-Tomato-Carrot"},"Gm 14","10 kh ea."]
[null,"Cheese Garnish",{"$f":"'Menu Matrix'!D45","v":"Blue Cheese / Parmesan Cheese"},"Gm 14","2kg ea."]
[null,"Bread Garnish",{"$f":"'Menu Matrix'!D46","v":"Seasoned Bagel Chips"},"Gm 14","5 dz"]
[null,null,{"$f":"'Menu Matrix'!D47","v":"FRESH MARKET GREENS"}]
["F1","Leaf Lettuce",{"$f":"'Menu Matrix'!D48","v":"Mixed Greens / Iceberg"},"Gm 6","40 kg"]
[null,"Leaf Lettuce",{"$f":"'Menu Matrix'!D49","v":"Shredded Green & Red Cabbage"}," Gm 5","40 kg"]
[null,"Tomato Salad",{"$f":"'Menu Matrix'!D50","v":"Sliced Tomato & Red Onion"},"Gm 14","10 kg"]
[null,"Potato Salad",{"$f":"'Menu Matrix'!D51","v":"German Potato Salad"},"Gm 14","40 kg"]
[null,"Crudités",{"$f":"'Menu Matrix'!D52","v":"Cauliflower/Broccoli/Cherry Tomato"},"Gm 14","5 kg ea."]
[null,null,{"$f":"'Menu Matrix'!D53","v":"FRESH MARKET MEATS"}]
["F2","Deli Meats",{"$f":"'Menu Matrix'!D54","v":"Rosemary Beef / Maple Glaze Ham"},"GM 14","5 kg "]
[null,"Cured Meat",{"$f":"'Menu Matrix'!D55","v":"Bresaola"},"Gm 14","5 kg"]
[null,"Cheeses",{"$f":"'Menu Matrix'!D56","v":"Cheddar / Havarti"},"Gm 14","5 kg"]
[null,"Pickles",{"$f":"'Menu Matrix'!D57","v":"Red Onion-Cornichons-Giardiniera-Green Olives - Kalamata Olives"},"Gm 14","2kg ea."]
[null,"Breads",{"$f":"'Menu Matrix'!D58","v":"Garlic Parmesan Bread"},"Gm 14","10 loaf"]
[null,"Condiments",{"$f":"'Menu Matrix'!D59","v":"Dijon Mustard - Mayonnaise"},"Gm 14","1 gal"]
[null,"STATION",{"$f":"'Menu Matrix'!D60","v":"DAY 1"}]
[null,null,{"$f":"'Menu Matrix'!D61","v":"ORCHARD JUICE BAR"}]
["G1","JUICES",{"$f":"'Menu Matrix'!D62","v":"1) Watermelon"},"Veg. Prep.","10 ltr"]
[null,null,{"$f":"'Menu Matrix'!D63","v":"2) Cantaloupe"},"Veg. Prep.","10 ltr"]
[null,null,{"$f":"'Menu Matrix'!D64","v":"3) Mixed Fruit"},"Veg. Prep.","10 ltr"]
[null,null,{"$f":"'Menu Matrix'!D65","v":"4) Chef's Special"},"Veg. Prep.","10 ltr"]
[null,"SANGRIA MIX",{"$f":"'Menu Matrix'!D66","v":0},"Veg. Prep."]
[null,null,{"$f":"'Menu Matrix'!D67","v":0},"Veg. Prep."]
[null,null,{"$f":"'Menu Matrix'!D68","v":"SWEET DELIGHTS"}]
["H1","CHOCOLATE DIPPED ITEMS",{"$f":"'Menu Matrix'!D69","v":"Apples / Banana / Pear"}]
[null,null,{"$f":"'Menu Matrix'!D70","v":"Marshmallow / Banana"}]
[null,"CARAMEL FRUIT",{"$f":"'Menu Matrix'!D71","v":"Apples / Pears"}]
[null,"PARFAITS",{"$f":"'Menu Matrix'!D72","v":"Jello Trifle - Raspberry, Lemon, Watermelon Jello w/ Vanilla Custard"}]
[null,null,{"$f":"'Menu Matrix'!D73","v":"FRESH MARKET TOPPINGS"}]
["H2","TOPPINGS",{"$f":"'Menu Matrix'!D74","v":"1) Cherry Tomato Slice"},"Veg. Prep.","5 kg"]
[null,null,{"$f":"'Menu Matrix'!D75","v":"2) Red Onion - Dice"},"Veg. Prep.","5kg"]
[null,null,{"$f":"'Menu Matrix'!D76","v":"3) Cucumber - Dice"},"Veg. Prep.","5 kg "]
[null,null,{"$f":"'Menu Matrix'!D77","v":"4) Celery Stalk - Dice"},"Veg. Prep.","5kg"]
[null,null,{"$f":"'Menu Matrix'!D78","v":"5) Carrots - Dice"},"Veg. Prep.","5kg"]
[null,null,{"$f":"'Menu Matrix'!D79","v":"6) Red Radish - Dice"},"Veg. Prep.","5kg"]
[null,null,{"$f":"'Menu Matrix'!D80","v":"7) Mixed Bell Pepper - Dice"},"Veg. Prep.","5kg"]
[null,null,{"$f":"'Menu Matrix'!D81","v":"8) Mushrooms - Sliced"},"Veg. Prep.","5kg"]
[null,null,{"$f":"'Menu Matrix'!D82","v":"9) Yellow Corn"},"Veg. Prep.","5kg"]
[null,null,{"$f":"'Menu Matrix'!D83","v":"10) Garbanzo Beans"},"Veg. Prep.","5kg"]
[null,null,{"$f":"'Menu Matrix'!D84","v":"11) Black Beans"},"Veg. Prep.","5kg"]
[null,null,{"$f":"'Menu Matrix'!D85","v":"12) Green Olives"},"Gm 14","3kg"]
[null,null,{"$f":"'Menu Matrix'!D86","v":"13) Sunflower Seeds"},"Gm 14","2kg ea."]
[null,null,{"$f":"'Menu Matrix'!D87","v":"14) Walnuts"},"Gm 14","2kg ea."]
[null,null,{"$f":"'Menu Matrix'!D88","v":"15) Croutons"},"Gm 14 ","2 loaf"]
[null,"DRESSINGS",{"$f":"'Menu Matrix'!D89","v":"1) Ranch"},"GM 14 ","1Gal"]
[null,null,{"$f":"'Menu Matrix'!D90","v":"2) Caesar"},"Gm 14 ","1Gal"]
[null,null,{"$f":"'Menu Matrix'!D91","v":"3) Balsamic"},"Gm 14 ","1Gal"]
[null,null,{"$f":"'Menu Matrix'!D92","v":"4) Italian"},"Gm 14","1GAL"]
[null,null,{"$f":"'Menu Matrix'!D93","v":"5) Low-Fat Yogurt"},"Gm 14 ","1gal"]
[null,null,{"$f":"'Menu Matrix'!D94","v":"6) Blue Cheese"},"Gm 14","1Gal"]
[null,null,{"$f":"'Menu Matrix'!D95","v":"7) Thousand Island"},"Gm 14","1Gal"]
[null,null,{"$f":"'Menu Matrix'!D96","v":"8) Shallot"},"Gm 6","3LTR"]
[null,null,{"$f":"'Menu Matrix'!D97","v":"9) Dijon Mustard"}]
[null,null,{"$f":"'Menu Matrix'!D98","v":"PASTRY COUNTER"},"PastryF"]
["H3","Fruit Tart",{"$f":"'Menu Matrix'!D99","v":"Fresh Fruit Tartlet"},"Pastry"]
[null,"Pastry",{"$f":"'Menu Matrix'!D100","v":"Pecan Pie"},"Pastry"]
[null,"Pastry",{"$f":"'Menu Matrix'!D101","v":"Chocolate Eclairs"},"Pastry"]
[null,"Pastry",{"$f":"'Menu Matrix'!D102","v":"Apple Pie"},"Pastry"]
[null,"Cupcakes",{"$f":"'Menu Matrix'!D103","v":"Apple Cinnamon / Vanilla Frosting"},"Pastry"]
[null,null,{"$f":"'Menu Matrix'!D104","v":"FRESH & FAST - GF"}]
["H4","Gluten Free",{"$f":"'Menu Matrix'!D105","v":"1) Mango Cheesecake"},"Pastry"]
[null,null,{"$f":"'Menu Matrix'!D106","v":"2) Raspberry Cheesecake"},"Pastry"]
[null,"Sugar Free",{"$f":"'Menu Matrix'!D107","v":"1) Key Lime Pie"},"Pastry"]
[null,null,{"$f":"'Menu Matrix'!D108","v":"2) Cappuccino Cake"},"Pastry"]
["H5","H5 - HOT",{"$f":"'Menu Matrix'!D109","v":"Cinnamon-Walnut Stuffed Apples"},"Pastry"]
[null,null,{"$f":"'Menu Matrix'!D110","v":"FRUIT STAND FAVORITES"}]
["I-1","Whole Fruits",{"$f":"'Menu Matrix'!D111","v":"Banana / Red Apple / Pears / Peach   Green Apple / Oranges"},"Gm 14","50 kg"]
[null,"Sliced Fruits",{"$f":"'Menu Matrix'!D112","v":"Watermelon/Pineapple/  Cantaloupe  Honeydew Melon"},"Fruit 5","100 kg"]
[null,null,{"$f":"'Menu Matrix'!D113","v":"OVEN BAKED BREADS"}]
["I-2","Current Rolls",{"$f":"'Menu Matrix'!D114","v":"1) Plain Crunchy Rolls"},"Bakery"]
[null,null,{"$f":"'Menu Matrix'!D115","v":"2) Plain Soft Rolls"},"Bakery"]
[null,null,{"$f":"'Menu Matrix'!D116","v":"3) Sunflower Seed Rolls"},"Bakery"]
[null,"Loafs",{"$f":"'Menu Matrix'!D117","v":"4) Honey Wheat Loaf Slice"},"Bakery"]
[null,null,{"$f":"'Menu Matrix'!D118","v":"5) Olive Focaccia"},"Bakery"]
[null,"Condiments",{"$f":"'Menu Matrix'!D119","v":"Butter & Preserves"}]
[null,null,{"$f":"'Menu Matrix'!D120","v":"SANDWICH SHOP"}]
["I-3","Baguette or Bagel",{"$f":"'Menu Matrix'!D121","v":"Chicken-Bacon Caesar on a Toasted Bagel w/Tomato "},"Gm 5 ",180]
[null,"Focaccia",{"$f":"'Menu Matrix'!D122","v":"Roasted Vegetables w/ Buffalo Mozz, Sundried Tom Pesto & Spinach"},"Gm 5 ",180]
[null,"Hamburger Bun",{"$f":"'Menu Matrix'!D123","v":"Ham & Salami with Cheddar Cheese, Tomato, Iceberg lettuce & pickles"},"Gm 5 ",180]
[null,"Hot Dog Bun",{"$f":"'Menu Matrix'!D124","v":"Roasted Turkey BLT  with Swiss Cheese & Mayonnaise"},"Gm 5 ",180]
[null,null,{"$f":"'Menu Matrix'!D125","v":"FRESH & FAST STATION - 2"}]
["I-4","Chips",{"$f":"'Menu Matrix'!D126","v":"1) Potato Chips"},"Gm 14","10 pkt"]
[null,null,{"$f":"'Menu Matrix'!D127","v":"2) Salt & Vinegar Chips"},"Gm 14"]
[null,null,{"$f":"'Menu Matrix'!D128","v":"3) Nacho Chips"},"Gm 14","5 kg"]
[null,"Pickles",{"$f":"'Menu Matrix'!D129","v":"1) Dill Pickles"},"Gm 14","1 Gal"]
[null,"Salsa",{"$f":"'Menu Matrix'!D130","v":"Yello Corn / Tomato / Black Bean"},"Gm 14 ","10 kg"]
["I-5","Savory Hot",{"$f":"'Menu Matrix'!D131","v":"Walnut Chocolate Brownie/Choc S"},"Pastry"]
[null,"STATION",{"$f":"'Menu Matrix'!D132","v":"DAY 1"}]
[null,null,{"$f":"'Menu Matrix'!D133","v":"ASIAN STATION "}]
["J1","SALAD",{"$f":"'Menu Matrix'!D134","v":"California Kale-Cranberry Salad"},"Gm 6"]
[null,"SALAD",{"$f":"'Menu Matrix'!D135","v":"Tijuana Black Bean Salad"},"Gm 6"]
[null,"SALAD",{"$f":"'Menu Matrix'!D136","v":"Kentucky Cobb Salad"},"Gm 5 "]
[null,"PASTA SALAD",{"$f":"'Menu Matrix'!D137","v":"Sicilian Ham & Pasta Salad"},"Gm 5 "]
[null,null,{"$f":"'Menu Matrix'!D138","v":"STIR-FRY RICE & NOODLES"}]
["J2","PROTEINS",{"$f":"'Menu Matrix'!D139","v":"1) Chinese Sausage (sliced)"},"Lido Hot ","3 KG"]
[null,null,{"$f":"'Menu Matrix'!D140","v":"2) Fried Chicken (cubed)"},"Lido Hot ","3 KG"]
[null,null,{"$f":"'Menu Matrix'!D141","v":"3) Fried Beef (cubed)"},"Lido Hot ","3 KG"]
[null,null,{"$f":"'Menu Matrix'!D142","v":"4) Fried Pork (pulled)"},"Lido Hot ","3 KG"]
[null,null,{"$f":"'Menu Matrix'!D143","v":"5) Fried Shrimp (whole)"},"Lido Hot ","3 KG"]
[null,null,{"$f":"'Menu Matrix'!D144","v":"6) Egg Scramble (julienne)"},"Lido Hot ","3 KG"]
[null,"VEGETABLES",{"$f":"'Menu Matrix'!D145","v":"1) Carrot (julienne)"},"Veg. Prep.","3 KG"]
[null,null,{"$f":"'Menu Matrix'!D146","v":"2) Red Pepper (diced)"},"Veg. Prep.","3 KG"]
[null,null,{"$f":"'Menu Matrix'!D147","v":"3) Green Pepper (diced)"},"Veg. Prep.","3 KG"]
[null,null,{"$f":"'Menu Matrix'!D148","v":"4) Green Peas "},"Veg. Prep.","3 KG"]
[null,null,{"$f":"'Menu Matrix'!D149","v":"5) Green Cabbage (shredded)"},"Veg. Prep.","3 KG"]
[null,null,{"$f":"'Menu Matrix'!D150","v":"6) Bamboo Shoots (sliced, canned)"},"Veg. Prep.","3 KG"]
[null,"TOPPINGS",{"$f":"'Menu Matrix'!D151","v":"1) Tofu (cubed)"},"Steamer","3 KG"]
[null,null,{"$f":"'Menu Matrix'!D152","v":"2) Onions (diced)"},"Steamer","3 KG"]
[null,null,{"$f":"'Menu Matrix'!D153","v":"3) Scallions (chopped)"},"Steamer","3 KG"]
[null,null,{"$f":"'Menu Matrix'!D154","v":"4) Cilantro (rough chop)"},"Steamer","3 KG"]
[null,null,{"$f":"'Menu Matrix'!D155","v":"5) Jalapeno (sliced)"},"Steamer","3 KG"]
[null,null,{"$f":"'Menu Matrix'!D156","v":"6) Edamame (pods)"},"Steamer","3 KG"]
[null,"GARNISHES",{"$f":"'Menu Matrix'!D157","v":"Peanuts/Sesame Seed/Bonito Flakes"},"Steamer","2 kg"]
["J3","NOODLES",{"$f":"'Menu Matrix'!D158","v":"Udon Noodle / Ramen Noodle"},"Lido Hot ","20 kg"]
["J4","BROTH & GARNISH",{"$f":"'Menu Matrix'!D159","v":"Shrimp / Chicken / Scallops/Broth"},"Lido Hot ","5 kg"]
["K1",null,{"$f":"'Menu Matrix'!D160","v":"STIR-FRY STAGING AREA"}]
["K2","ACTION GARNISH",{"$f":"'Menu Matrix'!D161","v":"Arugula, Truffle Oil, Proscuitto Balsamic Reduction"},"Lido Hot "]
[null,null,{"$f":"'Menu Matrix'!D162","v":0}]
["K3","DEEP DISH PIZZA",{"$f":"'Menu Matrix'!D163","v":"ROASTED PEAR, RICOTTA PIZZA W/ PROSCUITTO & GARNISHES"},"Bakery"]
["K4","HOT SANDWICH",{"$f":"'Menu Matrix'!D164","v":"Pastrami on Rye"},"Grill 6"]
["K5","POTATO DISH",{"$f":"'Menu Matrix'!D165","v":" Chili-Garlic Steak Fries"},"Lido Hot "]
[null,null,{"$f":"'Menu Matrix'!D166","v":"TEX-MEX STATION"}]
["L1","CAESAR SALAD STATION",{"$f":"'Menu Matrix'!D167","v":"Romaine Lettuce / Parmesan / Crouton  Anchovies/Caesar Dressing"},"Gm 14"]
[null,"WHOLE FRUITS",{"$f":"'Menu Matrix'!D168","v":"Apple/Orange/Pears/Peach/Banana"},"Fruit 5"]
[null,"FRUIT SALAD",{"$f":"'Menu Matrix'!D169","v":"Apricot & Cherry Fruit Salad"}]
["L2","CHIPS & SALSA STATION",{"$f":"'Menu Matrix'!D170","v":"1) Jalapeno Slice 2) Tomato Salsa       3) Salsa Verde 4) Black bean Salsa     5) Roasted Corn Salsa 6) Guacamole   7) Sour Cream  8) Queso Fresco         9) Tabasco 10) Chipotle Mayo"},"Gm 14"]
["L3","MEX ITEMS",{"$f":"'Menu Matrix'!D171","v":"1) Crispy Steak & Cheese Tacos"},"Soup 6"]
[null,null,{"$f":"'Menu Matrix'!D172","v":"2) Buffalo Chicken Wings"},"Lido Hot "]
["L4","BYO- TACOS",{"$f":"'Menu Matrix'!D173","v":"Beef / Chicken / Pork / Peppers / Flour Tortillas"},"Lido Hot "]
[null,null,{"$f":"'Menu Matrix'!D174","v":0}]
["M1","M1 - COLD",{"$f":"'Menu Matrix'!D175","v":"CONDIMENT STATION"}]
[null,"Breads",{"$f":"'Menu Matrix'!D176","v":"Crisp Rolls / Sunflower Seed Rolls"},"Bakery"]
[null,null,{"$f":"'Menu Matrix'!D177","v":"Square Rolls / Brioche Rolls"},"Bakery"]
[null,null,{"$f":"'Menu Matrix'!D178","v":"TEX-MEX ITEMS"}]
[null,"Salsas",{"$f":"'Menu Matrix'!D179","v":"Tomato / Black Bean / Verde"},"Gm"]
[null,"Bottled Sauces",{"$f":"'Menu Matrix'!D180","v":"Tabasco Red & Green / Tapatio"}]
[null,"Condiments",{"$f":"'Menu Matrix'!D181","v":"Lime Wedges / Sour Cream"}]
[null,null,{"$f":"'Menu Matrix'!D182","v":"ASIAN ITEMS"}]
[null,"Craft Sauces",{"$f":"'Menu Matrix'!D183","v":"Spicy Mayo/Korean BBQ/Chili Sauce"}]
[null,"Bottled Sauces",{"$f":"'Menu Matrix'!D184","v":"Soy/Oyster/Sriracha/Ponzu/Peanut"}]
[null,"Condiments",{"$f":"'Menu Matrix'!D185","v":"Pickled Ginger / Peanuts/Sesame"}]
[]
[null,null,null,"Sous chef DK 5 / 6 check off sign                            Time"]
[]
[null,null,null,"Sous Chef recive check off sign                                Time"]
[]
[null,null,null,"Food testing ",null,"Ok","not OK"]

{"sheet":"Day 2 - Production","index":3,"n_rows":191,"n_cols":7,"rows_kept":191,"cut":false,"hidden":false,"merged":[[0,6,0,8],[1,3,1,8],[2,0,3,0],[8,3,8,8],[18,0,18,1],[18,3,18,8],[19,0,20,0],[19,1,20,1],[21,0,22,0],[21,1,22,1],[23,0,24,0],[23,1,24,1],[47,0,51,0],[25,0,26,0],[25,1,26,1],[28,3,28,8],[29,0,30,0],[29,1,30,1],[31,0,32,0],[31,1,32,1],[33,3,33,8],[34,0,38,0],[39,3,39,8],[40,0,45,0],[46,3,46,8],[52,3,52,8],[53,0,58,0],[60,3,60,8],[61,0,66,0],[61,1,64,1],[65,1,66,1],[67,3,67,8],[68,0,70,0],[68,1,69,1],[72,3,72,8],[73,0,96,0],[73,1,87,1],[88,1,96,1],[97,3,97,8],[98,0,102,0],[103,3,103,8],[104,0,107,0],[104,1,105,1],[106,1,107,1],[109,3,109,8],[110,0,111,0],[112,3,112,8],[113,0,118,0],[113,1,115,1],[116,1,117,1],[165,3,165,8],[119,3,119,8],[120,0,123,0],[124,3,124,8],[125,0,129,0],[125,1,127,1],[132,3,132,8],[133,0,136,0],[137,3,137,8],[138,0,156,0],[159,3,159,8],[160,1,161,1],[166,0,168,0],[172,0,173,0],[172,1,173,1],[174,0,184,0],[174,3,174,8]]}
[null,"STATION","LUNCH / DAY 2  x 2","PROD LOCATION","QTY","CREW","SHOPPING LIST"]
[null,null,{"$f":"'Menu Matrix'!E2","v":"WESTERN DESTINATIONS"}]
["A1","GF-PASTA",{"$f":"'Menu Matrix'!E3","v":"Roasted Mushroom & Tomato"},"lido hot","10 kg"]
[null,"PASTA SAUCE",{"$f":"'Menu Matrix'!E4","v":"Marinara / Roasted Pepper"},"sauce6","10 ltr"]
["A2","HOT SANDWICH",{"$f":"'Menu Matrix'!E5","v":"Traditional Cuban Sandwich"},"grill 6",300]
["A3","TEX-MEX ITEM",{"$f":"'Menu Matrix'!E6","v":"1) Sonoro Hot Dog / Corn Salsa"},"lido hot",300]
[null,"SIDE ITEM",{"$f":"'Menu Matrix'!E7","v":"Sriracha Mayo Drizzle Over"},"gm 14","1 gal"]
["A4","TOPPINGS",{"$f":"'Menu Matrix'!E8","v":"1) Jalapeno Slice 2) Tomato Salsa       3) Salsa Verde 4) Black bean Salsa     5) Roasted Corn Salsa 6) Guacamole   7) Sour Cream  8) Queso Fresco         9) Tabasco 10) Chipotle Mayo"},"gm 14","5 kg ea."]
[null,null,{"$f":"'Menu Matrix'!E9","v":"LUNCH BAZAAR"}]
["B1","MEAT",{"$f":"'Menu Matrix'!E10","v":"1) Chipotle Crusted Pork Butt"},"lido hot ","90 kg"]
[null,"POTATO DISH",{"$f":"'Menu Matrix'!E11","v":"2) Crushed Sweet Potato Mash"},"soup 6","60 kg"]
["B2","ACTION STATION",{"$f":"'Menu Matrix'!E12","v":"Curry Aioli w/ Tabbouleh Salad Topping for Carving Item"},"lido hot"]
[null,"GARNISH ITEM",{"$f":"'Menu Matrix'!E13","v":0}]
["B3","DEEP DISH   CARVING ITEM",{"$f":"'Menu Matrix'!E14","v":"MOROCCAN LEG OF LAMB STUFFED W/QUINOA & DRIED FRUIT"},"lido hot ","14 pcs."]
["B4","FISH/SEAFOOD",{"$f":"'Menu Matrix'!E15","v":"1) Sesame Crusted Tuna / Bokchoy"},"lido hot ",350]
[null,"VEGETABLES",{"$f":"'Menu Matrix'!E16","v":"2) Roasted Carrots & Walnuts"},"lido hot","45 kg"]
["B5","CHICKEN DISH",{"$f":"'Menu Matrix'!E17","v":"1) Mushroom Crusted Chicken"},"sauce 5","450pcs"]
[null,"PASTA DISH",{"$f":"'Menu Matrix'!E18","v":"2) Rigatoni Tuscan Pasta"},"lido hot","10 kg"]
["DESTINATIONS",null,{"$f":"'Menu Matrix'!E19","v":"CARIBBEAN"}]
["C1","CONDIMENTS",{"$f":"'Menu Matrix'!E20","v":"A1 / Mustard / Ketchup / Sriracha"}]
[null,null,{"$f":"'Menu Matrix'!E21","v":"Worchestershire / Soy Sauce / Malt V"}]
["C2","VEGETABLES     SIDE ITEM",{"$f":"'Menu Matrix'!E22","v":"1) Curry Coconut Cauliflower"},"lido hot ","30 kg "]
[null,null,{"$f":"'Menu Matrix'!E23","v":"2) Oven Roasted Brussel Sprouts"},"lido hot ","40 kg "]
["C3","PROTEIN             SIDE ITEM",{"$f":"'Menu Matrix'!E24","v":"1) Caramelized Jerk Chicken Legs"},"grill 5","100 kg"]
[null,null,{"$f":"'Menu Matrix'!E25","v":"2) Spiced Batter Fried Pineapple "},"fruit 5 lido hot","300 pcs"]
["C4","STARCH DISH      SIDE ITEM",{"$f":"'Menu Matrix'!E26","v":"1) Caribbean Rice"},"soup 6","20 kg"]
[null,null,{"$f":"'Menu Matrix'!E27","v":"2) Curried Potatoes-Plantain Roasted"},"soup 6","20 kg"]
["C5","NEUTRAL",{"$f":"'Menu Matrix'!E28","v":0}]
[null,null,{"$f":"'Menu Matrix'!E29","v":"GARDEN SOUP KETTLE"}]
["D1","SOUPS",{"$f":"'Menu Matrix'!E30","v":"1) Daily Soup Main Dining"},"soup 5 ","25 ltr"]
[null,null,{"$f":"'Menu Matrix'!E31","v":"2) Daily Soup Main Dining"},"soup 5 ","25 ltr"]
["D2","TOPPINGS",{"$f":"'Menu Matrix'!E32","v":"Scallions / Bacon Bits / Croutons "},"b. box","2 kg ea."]
[null,null,{"$f":"'Menu Matrix'!E33","v":"Parmesan / Red Onion / Tofu"},"b. box","2 kg ea."]
[null,null,{"$f":"'Menu Matrix'!E34","v":"HARVEST SALADS"}]
["E1","Leaf Individual",{"$f":"'Menu Matrix'!E35","v":"Tabbouleh - Parsley Salad"},"gm 6 ","12kg"]
[null,"Grain Individual",{"$f":"'Menu Matrix'!E36","v":"Tunisian Quinoa Salad"},"gm 6 ","12kg"]
[null,"Veg Individual ",{"$f":"'Menu Matrix'!E37","v":"Turkish Chickpea Salad"},"gm 5","12kg"]
[null,"Crunch Item",{"$f":"'Menu Matrix'!E38","v":"Seasoned Pita Chips"},"gm 14","10 dz"]
[null,"Garnishes",{"$f":"'Menu Matrix'!E39","v":"Walnuts / Almonds / Pistachio"},"gm 14","2 kg ea."]
[null,null,{"$f":"'Menu Matrix'!E40","v":"COMPOSED SALADS"}]
["E2","Grain Salad LG",{"$f":"'Menu Matrix'!E41","v":"Turkish Chickpea Salad"},"gm 5 ","12kg"]
[null,"Pasta Salad LG",{"$f":"'Menu Matrix'!E42","v":"Mediterranean Pasta Salad"},"gm 5","12kg"]
[null,"Fruit Salad LG",{"$f":"'Menu Matrix'!E43","v":"Spicy Pear & Pineapple Salad"}," fruit 5","25kg"]
[null,"Roasted Veg",{"$f":"'Menu Matrix'!E44","v":"Roasted Mushroom & Tomato"},"gm 14","10kg ea."]
[null,"Cheese Garnish",{"$f":"'Menu Matrix'!E45","v":"Blue Cheese / Parmesan Cheese"},"gm14","2kg ea"]
[null,"Bread Garnish",{"$f":"'Menu Matrix'!E46","v":"Garlic Bread / Parmesan Bread"},"gm 14","10 loaf"]
[null,null,{"$f":"'Menu Matrix'!E47","v":"FRESH MARKET GREENS"}]
["F1","Leaf Lettuce",{"$f":"'Menu Matrix'!E48","v":"Mixed Greens / Spinach"},"gm 6 ","40kg"]
[null,"Leaf Lettuce",{"$f":"'Menu Matrix'!E49","v":"Shredded Green & Red Cabbage"},"gm 5","40kg "]
[null,"Tomato Salad",{"$f":"'Menu Matrix'!E50","v":"Sliced Tomato & Red Onion"},"gm 14","10kg"]
[null,"Potato Salad",{"$f":"'Menu Matrix'!E51","v":"American Potato Salad"},"gm 14","40kg"]
[null,"Crudités",{"$f":"'Menu Matrix'!E52","v":"Cucumber/Radish/Peppers/Carrots"},"veg. prep","5 kg ea."]
[null,null,{"$f":"'Menu Matrix'!E53","v":"FRESH MARKET MEATS"}]
["F2","Deli Meats",{"$f":"'Menu Matrix'!E54","v":"Mortadella / Turkey / Prosciutto"},"gm 14","5kg ea."]
[null,"Cured Meat",{"$f":"'Menu Matrix'!E55","v":0},"gm 14"]
[null,"Cheeses",{"$f":"'Menu Matrix'!E56","v":"Cheddar / Gouda"},"gm 14","5kg ea."]
[null,"Pickles",{"$f":"'Menu Matrix'!E57","v":"Red Onion-Cornichons-Giardiniera-Green Olives - Kalamata Olives"},"gm 14","2kg ea"]
[null,"Breads",{"$f":"'Menu Matrix'!E58","v":"Garlic Parmesan Bread"},"gm 14","10 loaf"]
[null,"Condiments",{"$f":"'Menu Matrix'!E59","v":"Dijon Mustard - Mayonnaise"}]
[null,"STATION",{"$f":"'Menu Matrix'!E60","v":"DAY 2"}]
[null,null,{"$f":"'Menu Matrix'!E61","v":"ORCHARD JUICE BAR"}]
["G1","JUICES",{"$f":"'Menu Matrix'!E62","v":"1) Watermelon"},"veg. prep","10ltr"]
[null,null,{"$f":"'Menu Matrix'!E63","v":"2) Cantaloupe"},"veg. prep","10ltr"]
[null,null,{"$f":"'Menu Matrix'!E64","v":"3) Mixed Fruit"},"veg. prep","10ltr"]
[null,null,{"$f":"'Menu Matrix'!E65","v":"4) Chef's Special"},"veg. prep"]
[null,"SANGRIA MIX",{"$f":"'Menu Matrix'!E66","v":0}]
[null,null,{"$f":"'Menu Matrix'!E67","v":0}]
[null,null,{"$f":"'Menu Matrix'!E68","v":"SWEET DELIGHTS"}]
["H1","CHOCOLATE DIPPED ITEMS",{"$f":"'Menu Matrix'!E69","v":"Apples / Banana / Pear"}]
[null,null,{"$f":"'Menu Matrix'!E70","v":"Marshmallow / Banana"}]
[null,"CARAMEL FRUIT",{"$f":"'Menu Matrix'!E71","v":"Apples / Pears"}]
[null,"PARFAITS",{"$f":"'Menu Matrix'!E72","v":"Fruit/Jello Trifle - Mixed Berries & Fruits, layered with Raspberry & Lemon Jello"}]
[null,null,{"$f":"'Menu Matrix'!E73","v":"FRESH MARKET TOPPINGS"}]
["H2","TOPPINGS",{"$f":"'Menu Matrix'!E74","v":"1) Cherry Tomato Slice"},"veg. prep","5kg ea."]
[null,null,{"$f":"'Menu Matrix'!E75","v":"2) Red Onion - Dice"},"veg. prep","5kg ea."]
[null,null,{"$f":"'Menu Matrix'!E76","v":"3) Cucumber - Dice"},"veg. prep","5kg ea."]
[null,null,{"$f":"'Menu Matrix'!E77","v":"4) Celery Stalk - Dice"},"veg. prep","5kg ea."]
[null,null,{"$f":"'Menu Matrix'!E78","v":"5) Carrots - Dice"},"veg. prep","5kg ea."]
[null,null,{"$f":"'Menu Matrix'!E79","v":"6) Red Radish - Dice"},"veg. prep","5kg ea."]
[null,null,{"$f":"'Menu Matrix'!E80","v":"7) Mixed Bell Pepper - Dice"},"veg. prep","5kg ea."]
[null,null,{"$f":"'Menu Matrix'!E81","v":"8) Mushrooms - Sliced"},"veg. prep","5kg ea."]
[null,null,{"$f":"'Menu Matrix'!E82","v":"9) Yellow Corn"},"veg. prep","5kg ea."]
[null,null,{"$f":"'Menu Matrix'!E83","v":"10) Garbanzo Beans"},"veg. prep","5kg ea."]
[null,null,{"$f":"'Menu Matrix'!E84","v":"11) Black Beans"},"veg. prep","5kg ea."]
[null,null,{"$f":"'Menu Matrix'!E85","v":"12) Green Olives"},"gm 14","5kg ea."]
[null,null,{"$f":"'Menu Matrix'!E86","v":"13) Sunflower Seeds"},"gm 14","5kg ea."]
[null,null,{"$f":"'Menu Matrix'!E87","v":"14) Walnuts"},"gm14","2kg ea"]
[null,null,{"$f":"'Menu Matrix'!E88","v":"15) Croutons"},"gm 14","2kg"]
[null,"DRESSINGS",{"$f":"'Menu Matrix'!E89","v":"1) Ranch"},"gm 14","1gal"]
[null,null,{"$f":"'Menu Matrix'!E90","v":"2) Caesar"},"gm 14","1gal"]
[null,null,{"$f":"'Menu Matrix'!E91","v":"3) Balsamic"}," gm 14","1gal"]
[null,null,{"$f":"'Menu Matrix'!E92","v":"4) Italian"}," gm 14","1gal"]
[null,null,{"$f":"'Menu Matrix'!E93","v":"5) Low-Fat Yogurt"}," gm 14","1gal"]
[null,null,{"$f":"'Menu Matrix'!E94","v":"6) Blue Cheese"}," gm 14","1gal"]
[null,null,{"$f":"'Menu Matrix'!E95","v":"7) Thousand Island"}," gm 14","1gal"]
[null,null,{"$f":"'Menu Matrix'!E96","v":"8) Shallot"},"gm 6 ","3ltr"]
[null,null,{"$f":"'Menu Matrix'!E97","v":"9) Dijon Mustard"}]
[null,null,{"$f":"'Menu Matrix'!E98","v":"PASTRY COUNTER"}]
["H3","Fruit Tart",{"$f":"'Menu Matrix'!E99","v":"Fresh Fruit Tartlet"},"pastry"]
[null,"Pastry",{"$f":"'Menu Matrix'!E100","v":"Carrot Cake"},"pasrty"]
[null,"Pastry",{"$f":"'Menu Matrix'!E101","v":"Chocolate Eclairs"},"pastry"]
[null,"Pastry",{"$f":"'Menu Matrix'!E102","v":"Apple Pie"},"pastry"]
[null,"Cupcakes",{"$f":"'Menu Matrix'!E103","v":"Maple Walnut / Banana Frosting"},"pastry"]
[null,null,{"$f":"'Menu Matrix'!E104","v":"FRESH & FAST - GF"}]
["H4","Gluten Free",{"$f":"'Menu Matrix'!E105","v":"1) Pineapple Fruit Cake"},"pastry "]
[null,null,{"$f":"'Menu Matrix'!E106","v":"2) Chocolate Ganage Cake"},"pastry"]
[null,"Sugar Free",{"$f":"'Menu Matrix'!E107","v":"1) Yogurt Blueberry Compote"},"pastry"]
[null,null,{"$f":"'Menu Matrix'!E108","v":"2) Cappuccino Cake"},"pastry"]
["H5","H5 - HOT",{"$f":"'Menu Matrix'!E109","v":"Caramel Roasted Pears w/ Oats"},"pastry"]
[null,null,{"$f":"'Menu Matrix'!E110","v":"FRUIT STAND FAVORITES"}]
["I-1","Whole Fruits",{"$f":"'Menu Matrix'!E111","v":"Banana / Red Apple / Pears / Peach   Green Apple / Oranges"},"gm 14","50kg"]
[null,"Sliced Fruits",{"$f":"'Menu Matrix'!E112","v":"Watermelon/Pineapple/  Cantaloupe  Honeydew Melon"},"gm 14","100kg"]
[null,null,{"$f":"'Menu Matrix'!E113","v":"OVEN BAKED BREADS"}]
["I-2","Current Rolls",{"$f":"'Menu Matrix'!E114","v":"1) Plain Crunchy Rolls"},"bakery"]
[null,null,{"$f":"'Menu Matrix'!E115","v":"2) Plain Soft Rolls"},"bakery"]
[null,null,{"$f":"'Menu Matrix'!E116","v":"3) Pumpernickel Rolls"},"bakery"]
[null,"Loafs",{"$f":"'Menu Matrix'!E117","v":"4) Six Cereal Loaf Sliced"},"bakery"]
[null,null,{"$f":"'Menu Matrix'!E118","v":"5) Olive Focaccia"},"bakery"]
[null,"Condiments",{"$f":"'Menu Matrix'!E119","v":"Butter & Preserves"}]
[null,null,{"$f":"'Menu Matrix'!E120","v":"SANDWICH SHOP"}]
["I-3","Baguette or Bagel",{"$f":"'Menu Matrix'!E121","v":"Prosciutto & Tomato Baguette  w/Fresh Mozzarella & Arugula"},"gm 5 ",180]
[null,"Focaccia",{"$f":"'Menu Matrix'!E122","v":"Roasted Broccoli & Red Pepper Feta Cheese & Arugula"},"gm 5",180]
[null,"Hamburger Bun",{"$f":"'Menu Matrix'!E123","v":"Lebanese Chicken with Tabbouleh, Hummus & Cucumber"},"gm 5",180]
[null,"Hot Dog Bun",{"$f":"'Menu Matrix'!E124","v":"Mortadella & Smoked Gouda, Tomato Pickled Vegetables"},"gm5",180]
[null,null,{"$f":"'Menu Matrix'!E125","v":"FRESH & FAST STATION - 2"}]
["I-4","Chips",{"$f":"'Menu Matrix'!E126","v":"1) Potato Chips"},"gm 14 ","10 pkt"]
[null,null,{"$f":"'Menu Matrix'!E127","v":"2) Salt & Vinegar Chips"},"gm 14 "]
[null,null,{"$f":"'Menu Matrix'!E128","v":"3) Nacho Chips"},"gm 14","5 kg"]
[null,"Pickles",{"$f":"'Menu Matrix'!E129","v":"1) Dill Pickles"},"gm 14","1 gal"]
[null,"Salsa",{"$f":"'Menu Matrix'!E130","v":"Yello Corn / Tomato / Black Bean"},"gm 14","10kg"]
["I-5","Savory Hot",{"$f":"'Menu Matrix'!E131","v":"Apple Crumble / Warm Custard"},"pastry"]
[null,"STATION",{"$f":"'Menu Matrix'!E132","v":"DAY 2"}]
[null,null,{"$f":"'Menu Matrix'!E133","v":"ASIAN STATION "}]
["J1","SALAD",{"$f":"'Menu Matrix'!E134","v":"Tabbouleh - Parsley Salad"},"gm 6 ","12kg"]
[null,"SALAD",{"$f":"'Menu Matrix'!E135","v":"Tunisian Quinoa Salad"},"gm 6 ","12kg"]
[null,"SALAD",{"$f":"'Menu Matrix'!E136","v":"Turkish Chickpea Salad"},"gm 5","12kg"]
[null,"PASTA SALAD",{"$f":"'Menu Matrix'!E137","v":"Mediterranean Pasta Salad"},"gm 5","12kg"]
[null,null,{"$f":"'Menu Matrix'!E138","v":"STIR-FRY RICE & NOODLES"}]
["J2","PROTEINS",{"$f":"'Menu Matrix'!E139","v":"1) Chinese Sausage (sliced)"},"lido hot","3kg"]
[null,null,{"$f":"'Menu Matrix'!E140","v":"2) Fried Chicken (cubed)"},"lido hot","3kg"]
[null,null,{"$f":"'Menu Matrix'!E141","v":"3) Fried Beef (cubed)"},"lido hot","3kg"]
[null,null,{"$f":"'Menu Matrix'!E142","v":"4) Fried Pork (pulled)"},"lido hot","3kg"]
[null,null,{"$f":"'Menu Matrix'!E143","v":"5) Fried Shrimp (whole)"},"lido hot","3kg"]
[null,null,{"$f":"'Menu Matrix'!E144","v":"6) Egg Scramble (julienne)"},"lido hot","2kg"]
[null,"VEGETABLES",{"$f":"'Menu Matrix'!E145","v":"1) Carrot (julienne)"},"lido hot","3kg"]
[null,null,{"$f":"'Menu Matrix'!E146","v":"2) Red Pepper (diced)"},"lido hot","3kg"]
[null,null,{"$f":"'Menu Matrix'!E147","v":"3) Green Pepper (diced)"},"lido hot","3kg"]
[null,null,{"$f":"'Menu Matrix'!E148","v":"4) Green Peas "},"lido hot","3kg3"]
[null,null,{"$f":"'Menu Matrix'!E149","v":"5) Green Cabbage (shredded)"},"lido hot","3kg"]
[null,null,{"$f":"'Menu Matrix'!E150","v":"6) Bamboo Shoots (sliced, canned)"},"steamers","4kg"]
[null,"TOPPINGS",{"$f":"'Menu Matrix'!E151","v":"1) Tofu (cubed)"},"steamers","4kg"]
[null,null,{"$f":"'Menu Matrix'!E152","v":"2) Onions (diced)"},"steamers","3kg"]
[null,null,{"$f":"'Menu Matrix'!E153","v":"3) Scallions (chopped)"},"steamers","3kg"]
[null,null,{"$f":"'Menu Matrix'!E154","v":"4) Cilantro (rough chop)"},"steamers","2kg"]
[null,null,{"$f":"'Menu Matrix'!E155","v":"5) Jalapeno (sliced)"},"steamers","1kg"]
[null,null,{"$f":"'Menu Matrix'!E156","v":"6) Edamame (pods)"},"steamers","3kg"]
[null,"GARNISHES",{"$f":"'Menu Matrix'!E157","v":"Peanuts/Sesame Seed/Bonito Flakes"},"steamers",".5kg"]
["J3","NOODLES",{"$f":"'Menu Matrix'!E158","v":"Udon Noodle / Ramen Noodle"},"lido hot","20kg"]
["J4","BROTH & GARNISH",{"$f":"'Menu Matrix'!E159","v":"Shrimp / Chicken / Scallops/Broth"},"lido hot","5kg ea."]
["K1",null,{"$f":"'Menu Matrix'!E160","v":"STIR-FRY STAGING AREA"},"lido hot"]
["K2","ACTION GARNISH",{"$f":"'Menu Matrix'!E161","v":"Curry Aioli w/ Tabbouleh Salad Topping for Carving Item"},"lido hot"]
[null,null,{"$f":"'Menu Matrix'!E162","v":0}]
["K3","DEEP DISH PIZZA",{"$f":"'Menu Matrix'!E163","v":"MOROCCAN LEG OF LAMB  W/QUINOA & DRIED FRUIT"},"bakery"]
["K4","HOT SANDWICH",{"$f":"'Menu Matrix'!E164","v":"Traditional Cuban Sandwich"},"grill 6"]
["K5","POTATO DISH",{"$f":"'Menu Matrix'!E165","v":"Crushed Sweet Potato Mash"},"lido hot"]
[null,null,{"$f":"'Menu Matrix'!E166","v":"TEX-MEX STATION"}]
["L1","CAESAR SALAD STATION",{"$f":"'Menu Matrix'!E167","v":"Romaine Lettuce / Parmesan / Crouton  Anchovies/Caesar Dressing"},"gm 14"]
[null,"WHOLE FRUITS",{"$f":"'Menu Matrix'!E168","v":"Apple/Orange/Pears/Peach/Banana"},"fruit 5"]
[null,"FRUIT SALAD",{"$f":"'Menu Matrix'!E169","v":"Spicy Pear & Pineapple Salad"},"fruit 5"]
["L2","CHIPS & SALSA STATION",{"$f":"'Menu Matrix'!E170","v":"1) Jalapeno Slice 2) Tomato Salsa       3) Salsa Verde 4) Black bean Salsa     5) Roasted Corn Salsa 6) Guacamole   7) Sour Cream  8) Queso Fresco         9) Tabasco 10) Chipotle Mayo"},"gm 14"]
["L3","MEX ITEMS",{"$f":"'Menu Matrix'!E171","v":"1) Sonoro Hot Dog / Corn Salsa"},"lido hot"]
[null,null,{"$f":"'Menu Matrix'!E172","v":0}]
["L4","BYO- TACOS",{"$f":"'Menu Matrix'!E173","v":"Beef / Chicken / Pork / Peppers / Flour Tortillas"},"lido hot"]
[null,null,{"$f":"'Menu Matrix'!E174","v":0}]
["M1","M1 - COLD",{"$f":"'Menu Matrix'!E175","v":"CONDIMENT STATION"}]
[null,"Breads",{"$f":"'Menu Matrix'!E176","v":"Crisp Rolls / Sunflower Seed Rolls"},"bakery"]
[null,null,{"$f":"'Menu Matrix'!E177","v":"Square Rolls / Brioche Rolls"},"bakery"]
[null,null,{"$f":"'Menu Matrix'!E178","v":"TEX-MEX ITEMS"}]
[null,"Salsas",{"$f":"'Menu Matrix'!E179","v":"Tomato / Black Bean / Verde"},"gm 14"]
[null,"Bottled Sauces",{"$f":"'Menu Matrix'!E180","v":"Tabasco Red & Green / Tapatio"}]
[null,"Condiments",{"$f":"'Menu Matrix'!E181","v":"Lime Wedges / Sour Cream"}]
[null,null,{"$f":"'Menu Matrix'!E182","v":"ASIAN ITEMS"}]
[null,"Craft Sauces",{"$f":"'Menu Matrix'!E183","v":"Spicy Mayo/Korean BBQ/Chili Sauce"}]
[null,"Bottled Sauces",{"$f":"'Menu Matrix'!E184","v":"Soy/Oyster/Sriracha/Ponzu/Peanut"}]
[null,"Condiments",{"$f":"'Menu Matrix'!E185","v":"Pickled Ginger / Peanuts/Sesame"}]
[]
[null,null,null,"Sous chef DK 5 / 6 check off sign                            Time"]
[]
[null,null,null,"Sous Chef recive check off sign                                Time"]
[]
[null,null,null,"Food testing ",null,"Ok","not OK"]

{"sheet":"Day 3 - Production","index":4,"n_rows":191,"n_cols":7,"rows_kept":191,"cut":false,"hidden":false,"merged":[[0,6,0,8],[1,3,1,8],[2,0,3,0],[8,3,8,8],[18,0,18,1],[18,3,18,8],[19,0,20,0],[19,1,20,1],[21,0,22,0],[21,1,22,1],[23,0,24,0],[23,1,24,1],[47,0,51,0],[25,0,26,0],[25,1,26,1],[28,3,28,8],[29,0,30,0],[29,1,30,1],[31,0,32,0],[31,1,32,1],[33,3,33,8],[34,0,38,0],[39,3,39,8],[40,0,45,0],[46,3,46,8],[52,3,52,8],[53,0,58,0],[60,3,60,8],[61,0,66,0],[61,1,64,1],[65,1,66,1],[67,3,67,8],[68,0,70,0],[68,1,69,1],[72,3,72,8],[73,0,96,0],[73,1,87,1],[88,1,96,1],[97,3,97,8],[98,0,102,0],[103,3,103,8],[104,0,107,0],[104,1,105,1],[106,1,107,1],[109,3,109,8],[110,0,111,0],[112,3,112,8],[113,0,118,0],[113,1,115,1],[116,1,117,1],[165,3,165,8],[119,3,119,8],[120,0,123,0],[124,3,124,8],[125,0,129,0],[125,1,127,1],[132,3,132,8],[133,0,136,0],[137,3,137,8],[138,0,156,0],[159,3,159,8],[160,1,161,1],[166,0,168,0],[172,0,173,0],[172,1,173,1],[174,0,184,0],[174,3,174,8]]}
[null,"STATION","LUNCH / DAY 3  x 2","PROD LOCATION","QTY","CREW","SHOPPING LIST"]
[null,null,{"$f":"'Menu Matrix'!F2","v":"WESTERN DESTINATIONS"}]
["A1","GF-PASTA",{"$f":"'Menu Matrix'!F3","v":"Roasted Carrots & Peppers"},"lido hot ","10kg"]
[null,"PASTA SAUCE",{"$f":"'Menu Matrix'!F4","v":"Marinara / Mushroom"},"sauce 6","10ltr"]
["A2","HOT SANDWICH",{"$f":"'Menu Matrix'!F5","v":"Turkey Ciabatta w/Peppers & Mozz"},"grill 6",300]
["A3","TEX-MEX ITEM",{"$f":"'Menu Matrix'!F6","v":"1) Steak Fajita's"},"lido hot ","30kg"]
[null,"SIDE ITEM",{"$f":"'Menu Matrix'!F7","v":"2) Flour Tortillas"},"lido hot ","50dz"]
["A4","TOPPINGS",{"$f":"'Menu Matrix'!F8","v":"1) Jalapeno Slice 2) Tomato Salsa       3) Salsa Verde 4) Black bean Salsa     5) Roasted Corn Salsa 6) Guacamole   7) Sour Cream  8) Queso Fresco         9) Tabasco 10) Chipotle Mayo"},"gm14","5kg ea."]
[null,null,{"$f":"'Menu Matrix'!F9","v":"LUNCH BAZAAR"}]
["B1","MEAT",{"$f":"'Menu Matrix'!F10","v":"1) Beef Roulades w/ Tomato "},"grill 5","400 pcs"]
[null,"POTATO DISH",{"$f":"'Menu Matrix'!F11","v":"2) Roasted Bliss & Mushrooms"},"soup6","50 Kg"]
["B2","ACTION STATION",{"$f":"'Menu Matrix'!F12","v":"Spinach Salad / Balsamic Dressing Shaved Coppa Ham"}]
[null,"GARNISH ITEM",{"$f":"'Menu Matrix'!F13","v":0},"lido hot "]
["B3","DEEP DISH   CARVING ITEM",{"$f":"'Menu Matrix'!F14","v":"CAPRESE PIZZA W/ WHITE GARLIC SAUCE & BASIL PESTO"},"slice","18 tray"]
["B4","FISH/SEAFOOD",{"$f":"'Menu Matrix'!F15","v":"1) Grilled Salmon & Cherry Tomato "},"fish5","300 pcs"]
[null,"VEGETABLES",{"$f":"'Menu Matrix'!F16","v":"2) Roasted Parmesan Veggies/ S-Rice"},"lido hot ","30 kg / 10 kg"]
["B5","CHICKEN DISH",{"$f":"'Menu Matrix'!F17","v":"1) Chicken Parm Puff Tarts"},"Sauce 5","450 pcs"]
[null,"PASTA DISH",{"$f":"'Menu Matrix'!F18","v":"2) Conchiglie Primavera Pasta"},"Sauce 6","10 ltr"]
["DESTINATIONS",null,{"$f":"'Menu Matrix'!F19","v":"ITALIAN"}]
["C1","CONDIMENTS",{"$f":"'Menu Matrix'!F20","v":"A1 / Mustard / Ketchup / Sriracha"}]
[null,null,{"$f":"'Menu Matrix'!F21","v":"Worchestershire / Soy Sauce / Malt V"}]
["C2","VEGETABLES     SIDE ITEM",{"$f":"'Menu Matrix'!F22","v":"1) Eggplant Parmesan"},"Soup 6","450 pcs"]
[null,null,{"$f":"'Menu Matrix'!F23","v":"2) Roasted Artichokes & Peppers"},"lido hot ","20 kg ea"]
["C3","PROTEIN             SIDE ITEM",{"$f":"'Menu Matrix'!F24","v":"1) Meatball Mozzarella Bowl"},"Sauce 6","400 pcs / 4 oz"]
[null,null,{"$f":"'Menu Matrix'!F25","v":"2) Garlic Bread"},"Gm 14","15 pcs"]
["C4","STARCH DISH      SIDE ITEM",{"$f":"'Menu Matrix'!F26","v":"1) Polenta Fries / Marinara Sauce"},"Fish 6","500 stick"]
[null,null,{"$f":"'Menu Matrix'!F27","v":"2) Jasmine Rice"},"lido hot ","10 kg"]
["C5","NEUTRAL",{"$f":"'Menu Matrix'!F28","v":0}]
[null,null,{"$f":"'Menu Matrix'!F29","v":"GARDEN SOUP KETTLE"}]
["D1","SOUPS",{"$f":"'Menu Matrix'!F30","v":"1) Daily Soup Main Dining"},"soup 5","25 ltrs"]
[null,null,{"$f":"'Menu Matrix'!F31","v":"2) Daily Soup Main Dining"},"soup 5","25 ltrs"]
["D2","TOPPINGS",{"$f":"'Menu Matrix'!F32","v":"Scallions / Bacon Bits / Croutons "},"Bell Box","2 kg"]
[null,null,{"$f":"'Menu Matrix'!F33","v":"Parmesan / Red Onion / Tofu"},"Bell Box","ea"]
[null,null,{"$f":"'Menu Matrix'!F34","v":"HARVEST SALADS"}]
["E1","Leaf Individual",{"$f":"'Menu Matrix'!F35","v":"Chili Lime Cabbage Salad"},"Gm 6","15 kg"]
[null,"Grain Individual",{"$f":"'Menu Matrix'!F36","v":"Louisiana White Bean Salad"},"Gm 6","1 kg"]
[null,"Veg Individual ",{"$f":"'Menu Matrix'!F37","v":"Caprese Salad w/ Balsamic"},"Gm 5","15 kg"]
[null,"Crunch Item",{"$f":"'Menu Matrix'!F38","v":"Cajun-Garlic Bites"},"Lido 14","10 pkt"]
[null,"Garnishes",{"$f":"'Menu Matrix'!F39","v":"Walnuts / Almonds / Pistachio"},"GM 14","2 kg ea"]
[null,null,{"$f":"'Menu Matrix'!F40","v":"COMPOSED SALADS"}]
["E2","Grain Salad LG",{"$f":"'Menu Matrix'!F41","v":"Louisiana White Bean Salad"},"Gm 5","40 kg"]
[null,"Pasta Salad LG",{"$f":"'Menu Matrix'!F42","v":"Tuscan Pasta Salad"},"Gm 5","40 kg"]
[null,"Fruit Salad LG",{"$f":"'Menu Matrix'!F43","v":"Cajun Peach Salad"},"Fruit ","10 kg"]
[null,"Roasted Veg",{"$f":"'Menu Matrix'!F44","v":"Roasted Carrots & Peppers"},"Gm 14","5 kg"]
[null,"Cheese Garnish",{"$f":"'Menu Matrix'!F45","v":"Blue Cheese / Parmesan Cheese"},"Gm 14","5 kg"]
[null,"Bread Garnish",{"$f":"'Menu Matrix'!F46","v":"Cheddar Cheese Bread"},"Bakery"]
[null,null,{"$f":"'Menu Matrix'!F47","v":"FRESH MARKET GREENS"}]
["F1","Leaf Lettuce",{"$f":"'Menu Matrix'!F48","v":"Mixed Greens / Iceberg"},"Gm 6","40 kg"]
[null,"Leaf Lettuce",{"$f":"'Menu Matrix'!F49","v":"Shredded Green & Red Cabbage"},"Gm 5","40 kg"]
[null,"Tomato Salad",{"$f":"'Menu Matrix'!F50","v":"Sliced Tomato & Red Onion"},"GM 14","10 kg","ea"]
[null,"Potato Salad",{"$f":"'Menu Matrix'!F51","v":"Lemon Pepper Potato Salad"},"Gm 14","5 kg"]
[null,"Crudités",{"$f":"'Menu Matrix'!F52","v":"Carrots/Celery/Pepper/Radish"},"Veg Prep","5 kg","ea"]
[null,null,{"$f":"'Menu Matrix'!F53","v":"FRESH MARKET MEATS"}]
["F2","Deli Meats",{"$f":"'Menu Matrix'!F54","v":"Mortadella / Paprika Turkey"},"Gm 14","5 kg"]
[null,"Cured Meat",{"$f":"'Menu Matrix'!F55","v":"Salami "},"Gm 14","3 kg"]
[null,"Cheeses",{"$f":"'Menu Matrix'!F56","v":"Cheddar / Swiss"},"Gm 14","5 kg"]
[null,"Pickles",{"$f":"'Menu Matrix'!F57","v":"Red Onion-Cornichons-Giardiniera-Green Olives - Kalamata Olives"},"Gm 14","5 kg"]
[null,"Breads",{"$f":"'Menu Matrix'!F58","v":"Garlic Parmesan Bread"},"Gm 14","10 loaf"]
[null,"Condiments",{"$f":"'Menu Matrix'!F59","v":"Dijon Mustard - Mayonnaise"},"Gm 14","2 kg"]
[null,"STATION",{"$f":"'Menu Matrix'!F60","v":"DAY 3"}]
[null,null,{"$f":"'Menu Matrix'!F61","v":"ORCHARD JUICE BAR"}]
["G1","JUICES",{"$f":"'Menu Matrix'!F62","v":"1) Watermelon"},"Veg Prep","10 Ltr"]
[null,null,{"$f":"'Menu Matrix'!F63","v":"2) Cantaloupe"},"Veg Prep","10 Ltr"]
[null,null,{"$f":"'Menu Matrix'!F64","v":"3) Mixed Fruit"},"Veg Prep","10 Ltr"]
[null,null,{"$f":"'Menu Matrix'!F65","v":"4) Chef's Special"},"Veg Prep","10 Ltr"]
[null,"SANGRIA MIX",{"$f":"'Menu Matrix'!F66","v":0},"Veg Prep","10 Ltr"]
[null,null,{"$f":"'Menu Matrix'!F67","v":0},"Veg Prep","10 Ltr"]
[null,null,{"$f":"'Menu Matrix'!F68","v":"SWEET DELIGHTS"}]
["H1","CHOCOLATE DIPPED ITEMS",{"$f":"'Menu Matrix'!F69","v":"Apples / Banana / Pear"}]
[null,null,{"$f":"'Menu Matrix'!F70","v":"Marshmallow / Banana"}]
[null,"CARAMEL FRUIT",{"$f":"'Menu Matrix'!F71","v":"Apples / Pears"}]
[null,"PARFAITS",{"$f":"'Menu Matrix'!F72","v":"Classic Trifle - Raspberry Jello, Pound Cake, Vanilla Custard, Chocolate Sauce, Maraschino Cherries"}]
[null,null,{"$f":"'Menu Matrix'!F73","v":"FRESH MARKET TOPPINGS"}]
["H2","TOPPINGS",{"$f":"'Menu Matrix'!F74","v":"1) Cherry Tomato Slice"},"Veg Prep","5kg"]
[null,null,{"$f":"'Menu Matrix'!F75","v":"2) Red Onion - Dice"},"Veg Prep","5kg"]
[null,null,{"$f":"'Menu Matrix'!F76","v":"3) Cucumber - Dice"},"Veg Prep","5kg"]
[null,null,{"$f":"'Menu Matrix'!F77","v":"4) Celery Stalk - Dice"},"Veg Prep","5kg"]
[null,null,{"$f":"'Menu Matrix'!F78","v":"5) Carrots - Dice"},"Veg Prep","5kg"]
[null,null,{"$f":"'Menu Matrix'!F79","v":"6) Red Radish - Dice"},"Veg Prep","5kg"]
[null,null,{"$f":"'Menu Matrix'!F80","v":"7) Mixed Bell Pepper - Dice"},"Veg Prep","5kg"]
[null,null,{"$f":"'Menu Matrix'!F81","v":"8) Mushrooms - Sliced"},"Veg Prep","5kg"]
[null,null,{"$f":"'Menu Matrix'!F82","v":"9) Yellow Corn"},"Veg Prep","5kg"]
[null,null,{"$f":"'Menu Matrix'!F83","v":"10) Garbanzo Beans"},"Veg Prep","5kg"]
[null,null,{"$f":"'Menu Matrix'!F84","v":"11) Black Beans"},"Veg Prep","5kg"]
[null,null,{"$f":"'Menu Matrix'!F85","v":"12) Green Olives"},"Veg Prep","5kg"]
[null,null,{"$f":"'Menu Matrix'!F86","v":"13) Sunflower Seeds"},"Veg Prep","5kg"]
[null,null,{"$f":"'Menu Matrix'!F87","v":"14) Walnuts"},"Veg Prep","5kg"]
[null,null,{"$f":"'Menu Matrix'!F88","v":"15) Croutons"},"Veg Prep","5kg"]
[null,"DRESSINGS",{"$f":"'Menu Matrix'!F89","v":"1) Ranch"},"Veg Prep","5kg"]
[null,null,{"$f":"'Menu Matrix'!F90","v":"2) Caesar"},"Veg Prep","5kg"]
[null,null,{"$f":"'Menu Matrix'!F91","v":"3) Balsamic"},"Veg Prep","5kg"]
[null,null,{"$f":"'Menu Matrix'!F92","v":"4) Italian"},"Veg Prep","5kg"]
[null,null,{"$f":"'Menu Matrix'!F93","v":"5) Low-Fat Yogurt"},"Veg Prep","5kg"]
[null,null,{"$f":"'Menu Matrix'!F94","v":"6) Blue Cheese"},"Veg Prep","5kg"]
[null,null,{"$f":"'Menu Matrix'!F95","v":"7) Thousand Island"},"Veg Prep","5kg"]
[null,null,{"$f":"'Menu Matrix'!F96","v":"8) Shallot"},"gm6","3ltr"]
[null,null,{"$f":"'Menu Matrix'!F97","v":"9) Dijon Mustard"}]
[null,null,{"$f":"'Menu Matrix'!F98","v":"PASTRY COUNTER"}]
["H3","Fruit Tart",{"$f":"'Menu Matrix'!F99","v":"Fresh Fruit Tartlet"},"pastry"]
[null,"Pastry",{"$f":"'Menu Matrix'!F100","v":"Carrot Cake"},"pastry"]
[null,"Pastry",{"$f":"'Menu Matrix'!F101","v":"White Chocolate Cheesecake"},"pastry"]
[null,"Pastry",{"$f":"'Menu Matrix'!F102","v":"Brazilian Nut Torte"},"pastry"]
[null,"Cupcakes",{"$f":"'Menu Matrix'!F103","v":"Chocolate Chip / Chocolate Frosting"},"pastry"]
[null,null,{"$f":"'Menu Matrix'!F104","v":"FRESH & FAST - GF"}]
["H4","Gluten Free",{"$f":"'Menu Matrix'!F105","v":"1) Pineapple Fruit Cake"},"pastry"]
[null,null,{"$f":"'Menu Matrix'!F106","v":"2) Chocolate Crème Catalan"},"pastry"]
[null,"Sugar Free",{"$f":"'Menu Matrix'!F107","v":"1) Yogurt Blueberry Compote"},"pastry"]
[null,null,{"$f":"'Menu Matrix'!F108","v":"2) Banana Shortcake"},"pastry"]
["H5","H5 - HOT",{"$f":"'Menu Matrix'!F109","v":"GF - Bread Pudding & Choc Sauce"},"pastry"]
[null,null,{"$f":"'Menu Matrix'!F110","v":"FRUIT STAND FAVORITES"},"pastry"]
["I-1","Whole Fruits",{"$f":"'Menu Matrix'!F111","v":"Banana / Red Apple / Pears / Peach   Green Apple / Oranges"},"gm14","50kg ea."]
[null,"Sliced Fruits",{"$f":"'Menu Matrix'!F112","v":"Watermelon/Pineapple/  Cantaloupe  Honeydew Melon"},"fruit5","100kg ea."]
[null,null,{"$f":"'Menu Matrix'!F113","v":"OVEN BAKED BREADS"}]
["I-2","Current Rolls",{"$f":"'Menu Matrix'!F114","v":"1) Plain Crunchy Rolls"}]
[null,null,{"$f":"'Menu Matrix'!F115","v":"2) Plain Soft Rolls"},"bakery"]
[null,null,{"$f":"'Menu Matrix'!F116","v":"3) Sesame Seed Rolls"},"bakery"]
[null,"Loafs",{"$f":"'Menu Matrix'!F117","v":"4) Focaccia Loaf Sliced"},"bakery"]
[null,null,{"$f":"'Menu Matrix'!F118","v":"5) Tomato Focaccia"},"bakery"]
[null,"Condiments",{"$f":"'Menu Matrix'!F119","v":"Butter & Preserves"}]
[null,null,{"$f":"'Menu Matrix'!F120","v":"SANDWICH SHOP"}]
["I-3","Baguette or Bagel",{"$f":"'Menu Matrix'!F121","v":"Roasted Vegetables w/ Sundried Tomato & Basil Pesto / Parmesan"},"gm 5",180]
[null,"Focaccia",{"$f":"'Menu Matrix'!F122","v":"Italian Focaccia w. Prosciutto, Salami Buffalo Mozzarella & Arugula"},"gm5",180]
[null,"Hamburger Bun",{"$f":"'Menu Matrix'!F123","v":"Roast Beef & Chipotle Mayo w/ Romaine, Pickles & Havarti Cheese"},"gm5",180]
[null,"Hot Dog Bun",{"$f":"'Menu Matrix'!F124","v":"Roasted Turkey w/ Asian Slaw & Sweet Chili Sauce"},"gm5",180]
[null,null,{"$f":"'Menu Matrix'!F125","v":"FRESH & FAST STATION - 2"}]
["I-4","Chips",{"$f":"'Menu Matrix'!F126","v":"1) Potato Chips"},"gm14","10pkt"]
[null,null,{"$f":"'Menu Matrix'!F127","v":"2) Salt & Vinegar Chips"},"gm14"]
[null,null,{"$f":"'Menu Matrix'!F128","v":"3) Nacho Chips"},"gm14","5pkt"]
[null,"Pickles",{"$f":"'Menu Matrix'!F129","v":"1) Dill Pickles"},"gm14","1gal"]
[null,"Salsa",{"$f":"'Menu Matrix'!F130","v":"Yello Corn / Tomato / Black Bean"},"gm14","10kg"]
["I-5","Savory Hot",{"$f":"'Menu Matrix'!F131","v":"Choc-Banana Strudel / Caramel S"},"pastry"]
[null,"STATION",{"$f":"'Menu Matrix'!F132","v":"DAY 3"}]
[null,null,{"$f":"'Menu Matrix'!F133","v":"ASIAN STATION "}]
["J1","SALAD",{"$f":"'Menu Matrix'!F134","v":"Chili Lime Cabbage Salad"},"gm6","12kg"]
[null,"SALAD",{"$f":"'Menu Matrix'!F135","v":"Louisiana White Bean Salad"},"gm6","12kg"]
[null,"SALAD",{"$f":"'Menu Matrix'!F136","v":"Caprese Salad w/ Balsamic"},"gm6","12kg"]
[null,"PASTA SALAD",{"$f":"'Menu Matrix'!F137","v":"Tuscan Pasta Salad"},"gm6","12kg"]
[null,null,{"$f":"'Menu Matrix'!F138","v":"STIR-FRY RICE & NOODLES"}]
["J2","PROTEINS",{"$f":"'Menu Matrix'!F139","v":"1) Chinese Sausage (sliced)"},"lido hot ","3kg"]
[null,null,{"$f":"'Menu Matrix'!F140","v":"2) Fried Chicken (cubed)"},"lido hot ","3kg"]
[null,null,{"$f":"'Menu Matrix'!F141","v":"3) Fried Beef (cubed)"},"lido hot ","3kg"]
[null,null,{"$f":"'Menu Matrix'!F142","v":"4) Fried Pork (pulled)"},"lido hot ","3kg"]
[null,null,{"$f":"'Menu Matrix'!F143","v":"5) Fried Shrimp (whole)"},"lido hot ","3kg"]
[null,null,{"$f":"'Menu Matrix'!F144","v":"6) Egg Scramble (julienne)"},"lido hot ","3kg"]
[null,"VEGETABLES",{"$f":"'Menu Matrix'!F145","v":"1) Carrot (julienne)"},"Veg Prep","3kg"]
[null,null,{"$f":"'Menu Matrix'!F146","v":"2) Red Pepper (diced)"},"Veg Prep","3kg"]
[null,null,{"$f":"'Menu Matrix'!F147","v":"3) Green Pepper (diced)"},"Veg Prep","3kg"]
[null,null,{"$f":"'Menu Matrix'!F148","v":"4) Green Peas "},"Veg Prep","3kg"]
[null,null,{"$f":"'Menu Matrix'!F149","v":"5) Green Cabbage (shredded)"},"Veg Prep","3kg"]
[null,null,{"$f":"'Menu Matrix'!F150","v":"6) Bamboo Shoots (sliced, canned)"},"steamer","3kg"]
[null,"TOPPINGS",{"$f":"'Menu Matrix'!F151","v":"1) Tofu (cubed)"},"lido hot ","3kg"]
[null,null,{"$f":"'Menu Matrix'!F152","v":"2) Onions (diced)"},"steamer","\\3kg"]
[null,null,{"$f":"'Menu Matrix'!F153","v":"3) Scallions (chopped)"},"steamer","3kg"]
[null,null,{"$f":"'Menu Matrix'!F154","v":"4) Cilantro (rough chop)"},"steamer","3kg"]
[null,null,{"$f":"'Menu Matrix'!F155","v":"5) Jalapeno (sliced)"},"steamer","3kg"]
[null,null,{"$f":"'Menu Matrix'!F156","v":"6) Edamame (pods)"},"steamer","4kg"]
[null,"GARNISHES",{"$f":"'Menu Matrix'!F157","v":"Peanuts/Sesame Seed/Bonito Flakes"},"lido hot ","2kg"]
["J3","NOODLES",{"$f":"'Menu Matrix'!F158","v":"Udon Noodle / Ramen Noodle"},"lido hot ","20kg"]
["J4","BROTH & GARNISH",{"$f":"'Menu Matrix'!F159","v":"Shrimp / Chicken / Scallops/Broth"},"lido hot ","5kg ea."]
["K1",null,{"$f":"'Menu Matrix'!F160","v":"STIR-FRY STAGING AREA"}]
["K2","ACTION GARNISH",{"$f":"'Menu Matrix'!F161","v":"Spinach Salad / Balsamic Dressing Shaved Coppa Ham"},"lido hot "]
[null,null,{"$f":"'Menu Matrix'!F162","v":0}]
["K3","DEEP DISH PIZZA",{"$f":"'Menu Matrix'!F163","v":"CAPRESE PIZZA W/ WHITE GARLIC SAUCE & BASIL PESTO"},"bakery"]
["K4","HOT SANDWICH",{"$f":"'Menu Matrix'!F164","v":"Turkey Ciabatta w/Peppers & Mozz"},"grill6"]
["K5","POTATO DISH",{"$f":"'Menu Matrix'!F165","v":" Roasted Bliss & Mushrooms"},"soup6"]
[null,null,{"$f":"'Menu Matrix'!F166","v":"TEX-MEX STATION"}]
[null,"CAESAR SALAD STATION",{"$f":"'Menu Matrix'!F167","v":"Romaine Lettuce / Parmesan / Crouton  Anchovies/Caesar Dressing"},"gm14"]
[null,"WHOLE FRUITS",{"$f":"'Menu Matrix'!F168","v":"Apple/Orange/Pears/Peach/Banana"},"gm14"]
[null,"FRUIT SALAD",{"$f":"'Menu Matrix'!F169","v":"Cajun Peach Salad"},"fruit5"]
["L2","CHIPS & SALSA STATION",{"$f":"'Menu Matrix'!F170","v":"1) Jalapeno Slice 2) Tomato Salsa       3) Salsa Verde 4) Black bean Salsa     5) Roasted Corn Salsa 6) Guacamole   7) Sour Cream  8) Queso Fresco         9) Tabasco 10) Chipotle Mayo"},"gm14"]
["L3","MEX ITEMS",{"$f":"'Menu Matrix'!F171","v":"1) Steak Fajita's"},"lido hot ","8kg"]
[null,null,{"$f":"'Menu Matrix'!F172","v":"2) Buffalo Chicken Wings"},"lido hot "]
["L4","BYO- TACOS",{"$f":"'Menu Matrix'!F173","v":"Beef / Chicken / Pork / Peppers / Flour Tortillas"},"lido hot ","8kg ea."]
[null,null,{"$f":"'Menu Matrix'!F174","v":0}]
["M1","M1 - COLD",{"$f":"'Menu Matrix'!F175","v":"CONDIMENT STATION"}]
[null,"Breads",{"$f":"'Menu Matrix'!F176","v":"Crisp Rolls / Sunflower Seed Rolls"},"bakery"]
[null,null,{"$f":"'Menu Matrix'!F177","v":"Square Rolls / Brioche Rolls"},"bakery"]
[null,null,{"$f":"'Menu Matrix'!F178","v":"TEX-MEX ITEMS"}]
[null,"Salsas",{"$f":"'Menu Matrix'!F179","v":"Tomato / Black Bean / Verde"},"gm14"]
[null,"Bottled Sauces",{"$f":"'Menu Matrix'!F180","v":"Tabasco Red & Green / Tapatio"}]
[null,"Condiments",{"$f":"'Menu Matrix'!F181","v":"Lime Wedges / Sour Cream"}]
[null,null,{"$f":"'Menu Matrix'!F182","v":"ASIAN ITEMS"}]
[null,"Craft Sauces",{"$f":"'Menu Matrix'!F183","v":"Spicy Mayo/Korean BBQ/Chili Sauce"}]
[null,"Bottled Sauces",{"$f":"'Menu Matrix'!F184","v":"Soy/Oyster/Sriracha/Ponzu/Peanut"}]
[null,"Condiments",{"$f":"'Menu Matrix'!F185","v":"Pickled Ginger / Peanuts/Sesame"}]
[]
[null,null,null,"Sous chef DK 5 / 6 check off sign                            Time"]
[]
[null,null,null,"Sous Chef recive check off sign                                Time"]
[]
[null,null,null,"Food testing ",null,"Ok","not OK"]

{"sheet":"Day 4 - Production","index":5,"n_rows":191,"n_cols":7,"rows_kept":191,"cut":false,"hidden":false,"merged":[[0,6,0,8],[1,3,1,8],[2,0,3,0],[8,3,8,8],[18,0,18,1],[18,3,18,8],[19,0,20,0],[19,1,20,1],[21,0,22,0],[21,1,22,1],[23,0,24,0],[23,1,24,1],[47,0,51,0],[25,0,26,0],[25,1,26,1],[28,3,28,8],[29,0,30,0],[29,1,30,1],[31,0,32,0],[31,1,32,1],[33,3,33,8],[34,0,38,0],[39,3,39,8],[40,0,45,0],[46,3,46,8],[52,3,52,8],[53,0,58,0],[60,3,60,8],[61,0,66,0],[61,1,64,1],[65,1,66,1],[67,3,67,8],[68,0,70,0],[68,1,69,1],[72,3,72,8],[73,0,96,0],[73,1,87,1],[88,1,96,1],[97,3,97,8],[98,0,102,0],[103,3,103,8],[104,0,107,0],[104,1,105,1],[106,1,107,1],[109,3,109,8],[110,0,111,0],[112,3,112,8],[113,0,118,0],[113,1,115,1],[116,1,117,1],[165,3,165,8],[119,3,119,8],[120,0,123,0],[124,3,124,8],[125,0,129,0],[125,1,127,1],[132,3,132,8],[133,0,136,0],[137,3,137,8],[138,0,156,0],[159,3,159,8],[160,1,161,1],[166,0,168,0],[172,0,173,0],[172,1,173,1],[174,0,184,0],[174,3,174,8]]}
[null,"STATION","LUNCH / DAY 4  x 2","PROD LOCATION","QTY","CREW","SHOPPING LIST"]
[null,null,{"$f":"'Menu Matrix'!G2","v":"WESTERN DESTINATIONS"}]
["A1","GF-PASTA",{"$f":"'Menu Matrix'!G3","v":"Mixed Vegetables"},"lido hot","10kg"]
[null,"PASTA SAUCE",{"$f":"'Menu Matrix'!G4","v":"Marinara / Roasted Pepper"},"sauce6","10ltr"]
["A2","HOT SANDWICH",{"$f":"'Menu Matrix'!G5","v":"Spicy Chicken & Cheese"},"grill6",300]
["A3","TEX-MEX ITEM",{"$f":"'Menu Matrix'!G6","v":"1) Veg Enchilada, Marinara, Mozz"},"soup6 lido hot",400]
[null,"SIDE ITEM",{"$f":"'Menu Matrix'!G7","v":"2) Spicy Black Bean Fritters"},"lido hot","10kg"]
["A4","TOPPINGS",{"$f":"'Menu Matrix'!G8","v":"1) Jalapeno Slice 2) Tomato Salsa       3) Salsa Verde 4) Black bean Salsa     5) Roasted Corn Salsa 6) Guacamole   7) Sour Cream  8) Queso Fresco         9) Tabasco 10) Chipotle Mayo"},"gm14","5kg ea."]
[null,null,{"$f":"'Menu Matrix'!G9","v":"LUNCH BAZAAR"}]
["B1","MEAT",{"$f":"'Menu Matrix'!G10","v":"1) Sirloin Saltimbocca / Sage Sauce"},"sauce 6",450]
[null,"POTATO DISH",{"$f":"'Menu Matrix'!G11","v":"2) Crushed Potato/Olive Oil & Garlic"},"soup 6","80kg"]
["B2","ACTION STATION",{"$f":"'Menu Matrix'!G12","v":"Topped with Pickled Red Onions & Gorgonzola"},"lido hot"]
[null,"GARNISH ITEM",{"$f":"'Menu Matrix'!G13","v":0}]
["B3","DEEP DISH   CARVING ITEM",{"$f":"'Menu Matrix'!G14","v":"ROSEMARY FLANK STEAK W/ GARLIC SPINACH & GORGONZOLA"},"lido hot","30 pcs"]
["B4","FISH/SEAFOOD",{"$f":"'Menu Matrix'!G15","v":"1) Blackened Snapper & Corn Salsa"},"fish6",300]
[null,"VEGETABLES",{"$f":"'Menu Matrix'!G16","v":"2) Fried Cauliflower Bites / S-Rice"},"lido hot ","30kg"]
["B5","CHICKEN DISH",{"$f":"'Menu Matrix'!G17","v":"1) Cilantro-Citrus Crusted Chicken"},"sauce5",400]
[null,"PASTA DISH",{"$f":"'Menu Matrix'!G18","v":"2) Baked Pipe Pomodoro"},"lido hot","20kg"]
["DESTINATIONS",null,{"$f":"'Menu Matrix'!G19","v":"MEXICAN "}]
["C1","CONDIMENTS",{"$f":"'Menu Matrix'!G20","v":"A1 / Mustard / Ketchup / Sriracha"}]
[null,null,{"$f":"'Menu Matrix'!G21","v":"Worchestershire / Soy Sauce / Malt V"}]
["C2","VEGETABLES     SIDE ITEM",{"$f":"'Menu Matrix'!G22","v":"1) Roasted Elote Corn"},"lido hot","50kg"]
[null,null,{"$f":"'Menu Matrix'!G23","v":"2) Fajita Peppers & Onions"},"lido hot","25kg"]
["C3","PROTEIN             SIDE ITEM",{"$f":"'Menu Matrix'!G24","v":"1) Pulled Pork Soft Tacos"},"grill5","30kg"]
[null,null,{"$f":"'Menu Matrix'!G25","v":"2) Pineapple Salsa"},"gm14","10kg"]
["C4","STARCH DISH      SIDE ITEM",{"$f":"'Menu Matrix'!G26","v":"1) Mexican Red Rice"},"lido hot","10kg"]
[null,null,{"$f":"'Menu Matrix'!G27","v":"2) Refried Baked Beans & Cheese"},"soup6","20kg"]
["C5","NEUTRAL",{"$f":"'Menu Matrix'!G28","v":0}]
[null,null,{"$f":"'Menu Matrix'!G29","v":"GARDEN SOUP KETTLE"}]
["D1","SOUPS",{"$f":"'Menu Matrix'!G30","v":"1) Daily Soup Main Dining"},"soup5","25ltr"]
[null,null,{"$f":"'Menu Matrix'!G31","v":"2) Daily Soup Main Dining"},"soup5","25ltr"]
["D2","TOPPINGS",{"$f":"'Menu Matrix'!G32","v":"Scallions / Bacon Bits / Croutons "},"b.box","2kg"]
[null,null,{"$f":"'Menu Matrix'!G33","v":"Parmesan / Red Onion / Tofu"},"b. box","2kg"]
[null,null,{"$f":"'Menu Matrix'!G34","v":"HARVEST SALADS"}]
["E1","Leaf Individual",{"$f":"'Menu Matrix'!G35","v":"California Kale-Cherry Salad"},"gm6","12kg"]
[null,"Grain Individual",{"$f":"'Menu Matrix'!G36","v":"Tijuana Black Bean Salad"},"gm6","12kg"]
[null,"Veg Individual ",{"$f":"'Menu Matrix'!G37","v":"Kentucky Cobb Salad w/ Bacon"},"gm5","12kg"]
[null,"Crunch Item",{"$f":"'Menu Matrix'!G38","v":"Spicy Corn Tortilla Strips"},"gm5","10pkt"]
[null,"Garnishes",{"$f":"'Menu Matrix'!G39","v":"Walnuts / Almonds / Pistachio"},"gm14","2kg"]
[null,null,{"$f":"'Menu Matrix'!G40","v":"COMPOSED SALADS"}]
["E2","Grain Salad LG",{"$f":"'Menu Matrix'!G41","v":"Tijuana Black Bean Salad"},"gm5","12kg"]
[null,"Pasta Salad LG",{"$f":"'Menu Matrix'!G42","v":"Sicilian Ham & Pasta Salad"},"gm5","12kg"]
[null,"Fruit Salad LG",{"$f":"'Menu Matrix'!G43","v":"Apricot & Cherry Fruit Salad"},"fruit5","15cans"]
[null,"Roasted Veg",{"$f":"'Menu Matrix'!G44","v":"Mixed Vegetables"},"gm14","10kg"]
[null,"Cheese Garnish",{"$f":"'Menu Matrix'!G45","v":"Blue Cheese / Parmesan Cheese"},"gm14","5kg ea."]
[null,"Bread Garnish",{"$f":"'Menu Matrix'!G46","v":"Seasoned Bagel Chips"},"gm14","5dz"]
[null,null,{"$f":"'Menu Matrix'!G47","v":"FRESH MARKET GREENS"}]
["F1","Leaf Lettuce",{"$f":"'Menu Matrix'!G48","v":"Mixed Greens / Spinach"},"gm6","40kg"]
[null,"Leaf Lettuce",{"$f":"'Menu Matrix'!G49","v":"Shredded Green & Red Cabbage"},"gm6","40kg"]
[null,"Tomato Salad",{"$f":"'Menu Matrix'!G50","v":"Sliced Tomato & Red Onion"},"gm14","10kg"]
[null,"Potato Salad",{"$f":"'Menu Matrix'!G51","v":"German Potato Salad"},"gm14","30kg"]
[null,"Crudités",{"$f":"'Menu Matrix'!G52","v":"Cauliflower/Broccoli/Cherry Tomato"},"veg. prep.","5kg ea."]
[null,null,{"$f":"'Menu Matrix'!G53","v":"FRESH MARKET MEATS"}]
["F2","Deli Meats",{"$f":"'Menu Matrix'!G54","v":"Mortadella / Paprika Turkey"},"gm14","10kg"]
[null,"Cured Meat",{"$f":"'Menu Matrix'!G55","v":"Bresaola"},"gm14","10kg"]
[null,"Cheeses",{"$f":"'Menu Matrix'!G56","v":"Cheddar / Havarti"},"gm14","10kg"]
[null,"Pickles",{"$f":"'Menu Matrix'!G57","v":"Red Onion-Cornichons-Giardiniera-Green Olives - Kalamata Olives"},"gm14","2kg"]
[null,"Breads",{"$f":"'Menu Matrix'!G58","v":"Garlic Parmesan Bread"},"gm14","15loaf"]
[null,"Condiments",{"$f":"'Menu Matrix'!G59","v":"Dijon Mustard - Mayonnaise"}]
[null,"STATION",{"$f":"'Menu Matrix'!G60","v":"DAY 4"}]
[null,null,{"$f":"'Menu Matrix'!G61","v":"ORCHARD JUICE BAR"}]
["G1","JUICES",{"$f":"'Menu Matrix'!G62","v":"1) Watermelon"},"veg. prep."]
[null,null,{"$f":"'Menu Matrix'!G63","v":"2) Cantaloupe"},"veg. prep."]
[null,null,{"$f":"'Menu Matrix'!G64","v":"3) Mixed Fruit"},"veg. prep."]
[null,null,{"$f":"'Menu Matrix'!G65","v":"4) Chef's Special"},"veg. prep."]
[null,"SANGRIA MIX",{"$f":"'Menu Matrix'!G66","v":0}]
[null,null,{"$f":"'Menu Matrix'!G67","v":0}]
[null,null,{"$f":"'Menu Matrix'!G68","v":"SWEET DELIGHTS"}]
["H1","CHOCOLATE DIPPED ITEMS",{"$f":"'Menu Matrix'!G69","v":"Apples / Banana / Pear"}]
[null,null,{"$f":"'Menu Matrix'!G70","v":"Marshmallow / Banana"}]
[null,"CARAMEL FRUIT",{"$f":"'Menu Matrix'!G71","v":"Apples / Pears"}]
[null,"PARFAITS",{"$f":"'Menu Matrix'!G72","v":"Jello Trifle - Raspberry, Lemon, Watermelon Jello w/ Vanilla Custard"},"pastry"]
[null,null,{"$f":"'Menu Matrix'!G73","v":"FRESH MARKET TOPPINGS"},"pastry"]
["H2","TOPPINGS",{"$f":"'Menu Matrix'!G74","v":"1) Cherry Tomato Slice"},"veg. prep.","5kg ea."]
[null,null,{"$f":"'Menu Matrix'!G75","v":"2) Red Onion - Dice"},"veg. prep.","5kg ea."]
[null,null,{"$f":"'Menu Matrix'!G76","v":"3) Cucumber - Dice"},"veg. prep.","5kg ea."]
[null,null,{"$f":"'Menu Matrix'!G77","v":"4) Celery Stalk - Dice"},"veg. prep.","5kg ea."]
[null,null,{"$f":"'Menu Matrix'!G78","v":"5) Carrots - Dice"},"veg. prep.","5kg ea."]
[null,null,{"$f":"'Menu Matrix'!G79","v":"6) Red Radish - Dice"},"veg. prep.","5kg ea."]
[null,null,{"$f":"'Menu Matrix'!G80","v":"7) Mixed Bell Pepper - Dice"},"veg. prep.","5kg ea."]
[null,null,{"$f":"'Menu Matrix'!G81","v":"8) Mushrooms - Sliced"},"veg. prep.","5kg"]
[null,null,{"$f":"'Menu Matrix'!G82","v":"9) Yellow Corn"},"veg. prep.","5kg"]
[null,null,{"$f":"'Menu Matrix'!G83","v":"10) Garbanzo Beans"},"veg. prep.","5kg"]
[null,null,{"$f":"'Menu Matrix'!G84","v":"11) Black Beans"},"veg. prep.","5kg"]
[null,null,{"$f":"'Menu Matrix'!G85","v":"12) Green Olives"},"veg. prep.","5kg"]
[null,null,{"$f":"'Menu Matrix'!G86","v":"13) Sunflower Seeds"},"gm14","5kg"]
[null,null,{"$f":"'Menu Matrix'!G87","v":"14) Walnuts"},"gm14","2kg"]
[null,null,{"$f":"'Menu Matrix'!G88","v":"15) Croutons"},"gm14","2kg"]
[null,"DRESSINGS",{"$f":"'Menu Matrix'!G89","v":"1) Ranch"},"gm14","1 Gal"]
[null,null,{"$f":"'Menu Matrix'!G90","v":"2) Caesar"},"gm14","1 Gal"]
[null,null,{"$f":"'Menu Matrix'!G91","v":"3) Balsamic"},"gm14","1 Gal"]
[null,null,{"$f":"'Menu Matrix'!G92","v":"4) Italian"},"gm14","1 Gal"]
[null,null,{"$f":"'Menu Matrix'!G93","v":"5) Low-Fat Yogurt"},"gm14","1 Gal"]
[null,null,{"$f":"'Menu Matrix'!G94","v":"6) Blue Cheese"},"gm14","1 Gal"]
[null,null,{"$f":"'Menu Matrix'!G95","v":"7) Thousand Island"},"gm14","1 Gal"]
[null,null,{"$f":"'Menu Matrix'!G96","v":"8) Shallot"},"gm6","1 Gal"]
[null,null,{"$f":"'Menu Matrix'!G97","v":"9) Dijon Mustard"}]
[null,null,{"$f":"'Menu Matrix'!G98","v":"PASTRY COUNTER"}]
["H3","Fruit Tart",{"$f":"'Menu Matrix'!G99","v":"Fresh Fruit Tartlet"},"pastry"]
[null,"Pastry",{"$f":"'Menu Matrix'!G100","v":"Coconut Cream Pie"},"pastry"]
[null,"Pastry",{"$f":"'Menu Matrix'!G101","v":"White Chocolate Cheesecake"},"pastry"]
[null,"Pastry",{"$f":"'Menu Matrix'!G102","v":"Pavlova"},"pastry"]
[null,"Cupcakes",{"$f":"'Menu Matrix'!G103","v":"Carrot / Cream Cheese Frosting"},"pastry"]
[null,null,{"$f":"'Menu Matrix'!G104","v":"FRESH & FAST - GF"}]
["H4","Gluten Free",{"$f":"'Menu Matrix'!G105","v":"1) Mango Sago Pudding"},"pastry"]
[null,null,{"$f":"'Menu Matrix'!G106","v":"2) Strawberry Mousse Cake"},"pastry"]
[null,"Sugar Free",{"$f":"'Menu Matrix'!G107","v":"1) Chocolate Cream Puff"},"pastry"]
[null,null,{"$f":"'Menu Matrix'!G108","v":"2) Banana Shortcake"},"pastry"]
["H5","H5 - HOT",{"$f":"'Menu Matrix'!G109","v":"Roasted Peaches/Cranberries/Cstrd"},"pastry"]
[null,null,{"$f":"'Menu Matrix'!G110","v":"FRUIT STAND FAVORITES"}]
["I-1","Whole Fruits",{"$f":"'Menu Matrix'!G111","v":"Banana / Red Apple / Pears / Peach   Green Apple / Oranges"},"gm14","50 kg ea"]
[null,"Sliced Fruits",{"$f":"'Menu Matrix'!G112","v":"Watermelon/Pineapple/  Cantaloupe  Honeydew Melon"},"fruit5","100 kg ea"]
[null,null,{"$f":"'Menu Matrix'!G113","v":"OVEN BAKED BREADS"}]
["I-2","Current Rolls",{"$f":"'Menu Matrix'!G114","v":"1) Plain Crunchy Rolls"},"bakery"]
[null,null,{"$f":"'Menu Matrix'!G115","v":"2) Plain Soft Rolls"},"bakery"]
[null,null,{"$f":"'Menu Matrix'!G116","v":"3) Olive Rolls"},"bakery"]
[null,"Loafs",{"$f":"'Menu Matrix'!G117","v":"4) Pumpernickel Loaf Sliced"},"bakery"]
[null,null,{"$f":"'Menu Matrix'!G118","v":"5) Parmesan Focaccia"},"bakery"]
[null,"Condiments",{"$f":"'Menu Matrix'!G119","v":"Butter & Preserves"}]
[null,null,{"$f":"'Menu Matrix'!G120","v":"SANDWICH SHOP"}]
["I-3","Baguette or Bagel",{"$f":"'Menu Matrix'!G121","v":"Chicken-Bacon Caesar on a Toasted Bagel w/Tomato "},"gm5"]
[null,"Focaccia",{"$f":"'Menu Matrix'!G122","v":"Roasted Vegetables w/ Buffalo Mozz, Sundried Tom Pesto & Spinach"},"gm5"]
[null,"Hamburger Bun",{"$f":"'Menu Matrix'!G123","v":"Ham & Salami with Cheddar Cheese, Tomato, Iceberg lettuce & pickles"},"gm5"]
[null,"Hot Dog Bun",{"$f":"'Menu Matrix'!G124","v":"Roasted Turkey BLT  with Swiss Cheese & Mayonnaise"},"gm5"]
[null,null,{"$f":"'Menu Matrix'!G125","v":"FRESH & FAST STATION - 2"}]
["I-4","Chips",{"$f":"'Menu Matrix'!G126","v":"1) Potato Chips"},"gm14","10 Pack"]
[null,null,{"$f":"'Menu Matrix'!G127","v":"2) Salt & Vinegar Chips"},"gm14"]
[null,null,{"$f":"'Menu Matrix'!G128","v":"3) Nacho Chips"},"gm14","5 pack"]
[null,"Pickles",{"$f":"'Menu Matrix'!G129","v":"1) Dill Pickles"},"gm14","2 kg"]
[null,"Salsa",{"$f":"'Menu Matrix'!G130","v":"Yello Corn / Tomato / Black Bean"},"gm14","5 kg ea"]
["I-5","Savory Hot",{"$f":"'Menu Matrix'!G131","v":"Apple Turnover / Vanilla Sauce"},"pastry"]
[null,"STATION",{"$f":"'Menu Matrix'!G132","v":"DAY 4"}]
[null,null,{"$f":"'Menu Matrix'!G133","v":"ASIAN STATION "}]
["J1","SALAD",{"$f":"'Menu Matrix'!G134","v":"California Kale-Cherry Salad"},"gm6"]
[null,"SALAD",{"$f":"'Menu Matrix'!G135","v":"Tijuana Black Bean Salad"},"gm5"]
[null,"SALAD",{"$f":"'Menu Matrix'!G136","v":"Kentucky Cobb Salad"},"gm5"]
[null,"PASTA SALAD",{"$f":"'Menu Matrix'!G137","v":"Sicilian Ham & Pasta Salad"},"gm5"]
[null,null,{"$f":"'Menu Matrix'!G138","v":"STIR-FRY RICE & NOODLES"}]
["J2","PROTEINS",{"$f":"'Menu Matrix'!G139","v":"1) Chinese Sausage (sliced)"},"lido hot"]
[null,null,{"$f":"'Menu Matrix'!G140","v":"2) Fried Chicken (cubed)"},"lido hot"]
[null,null,{"$f":"'Menu Matrix'!G141","v":"3) Fried Beef (cubed)"},"lido hot"]
[null,null,{"$f":"'Menu Matrix'!G142","v":"4) Fried Pork (pulled)"},"lido hot"]
[null,null,{"$f":"'Menu Matrix'!G143","v":"5) Fried Shrimp (whole)"},"lido hot"]
[null,null,{"$f":"'Menu Matrix'!G144","v":"6) Egg Scramble (julienne)"},"lido hot"]
[null,"VEGETABLES",{"$f":"'Menu Matrix'!G145","v":"1) Carrot (julienne)"},"lido hot"]
[null,null,{"$f":"'Menu Matrix'!G146","v":"2) Red Pepper (diced)"},"lido hot"]
[null,null,{"$f":"'Menu Matrix'!G147","v":"3) Green Pepper (diced)"},"lido hot"]
[null,null,{"$f":"'Menu Matrix'!G148","v":"4) Green Peas "},"lido hot"]
[null,null,{"$f":"'Menu Matrix'!G149","v":"5) Green Cabbage (shredded)"},"lido hot"]
[null,null,{"$f":"'Menu Matrix'!G150","v":"6) Bamboo Shoots (sliced, canned)"},"steamer"]
[null,"TOPPINGS",{"$f":"'Menu Matrix'!G151","v":"1) Tofu (cubed)"},"steamer"]
[null,null,{"$f":"'Menu Matrix'!G152","v":"2) Onions (diced)"},"steamer"]
[null,null,{"$f":"'Menu Matrix'!G153","v":"3) Scallions (chopped)"},"steamer"]
[null,null,{"$f":"'Menu Matrix'!G154","v":"4) Cilantro (rough chop)"},"steamer"]
[null,null,{"$f":"'Menu Matrix'!G155","v":"5) Jalapeno (sliced)"},"steamer"]
[null,null,{"$f":"'Menu Matrix'!G156","v":"6) Edamame (pods)"},"steamer"]
[null,"GARNISHES",{"$f":"'Menu Matrix'!G157","v":"Peanuts/Sesame Seed/Bonito Flakes"},"steamer"]
["J3","NOODLES",{"$f":"'Menu Matrix'!G158","v":"Udon Noodle / Ramen Noodle"},"lido hot"]
["J4","BROTH & GARNISH",{"$f":"'Menu Matrix'!G159","v":"Shrimp / Chicken / Scallops/Broth"},"lido hot"]
["K1",null,{"$f":"'Menu Matrix'!G160","v":"STIR-FRY STAGING AREA"},"lido hot"]
["K2","ACTION GARNISH",{"$f":"'Menu Matrix'!G161","v":"Topped with Pickled Red Onions & Gorgonzola"},"lido hot"]
[null,null,{"$f":"'Menu Matrix'!G162","v":0}]
["K3","DEEP DISH PIZZA",{"$f":"'Menu Matrix'!G163","v":"ROSEMARY FLANK STEAK W/ GARLIC SPINACH & GORGONZOLA"},"lido hot"]
["K4","HOT SANDWICH",{"$f":"'Menu Matrix'!G164","v":"Spicy Chicken & Cheese"},"grill6"]
["K5","POTATO DISH",{"$f":"'Menu Matrix'!G165","v":"Crushed Potato/Olive Oil & Garlic"},"soup6"]
[null,null,{"$f":"'Menu Matrix'!G166","v":"TEX-MEX STATION"}]
["L1","CAESAR SALAD STATION",{"$f":"'Menu Matrix'!G167","v":"Romaine Lettuce / Parmesan / Crouton  Anchovies/Caesar Dressing"},"gm14"]
[null,"WHOLE FRUITS",{"$f":"'Menu Matrix'!G168","v":"Apple/Orange/Pears/Peach/Banana"},"gm14"]
[null,"FRUIT SALAD",{"$f":"'Menu Matrix'!G169","v":"Apricot & Cherry Fruit Salad"},"gm14"]
["L2","CHIPS & SALSA STATION",{"$f":"'Menu Matrix'!G170","v":"1) Jalapeno Slice 2) Tomato Salsa       3) Salsa Verde 4) Black bean Salsa     5) Roasted Corn Salsa 6) Guacamole   7) Sour Cream  8) Queso Fresco         9) Tabasco 10) Chipotle Mayo"},"gm14"]
["L3","MEX ITEMS",{"$f":"'Menu Matrix'!G171","v":"1) Veg Enchilada, Marinara, Mozz"},"soup6"]
[null,null,{"$f":"'Menu Matrix'!G172","v":0},"lido hot"]
["L4","BYO- TACOS",{"$f":"'Menu Matrix'!G173","v":"Beef / Chicken / Pork / Peppers / Flour Tortillas"},"lido hot"]
[null,null,{"$f":"'Menu Matrix'!G174","v":0}]
["M1","M1 - COLD",{"$f":"'Menu Matrix'!G175","v":"CONDIMENT STATION"}]
[null,"Breads",{"$f":"'Menu Matrix'!G176","v":"Crisp Rolls / Sunflower Seed Rolls"},"bakery"]
[null,null,{"$f":"'Menu Matrix'!G177","v":"Square Rolls / Brioche Rolls"},"bakery"]
[null,null,{"$f":"'Menu Matrix'!G178","v":"TEX-MEX ITEMS"}]
[null,"Salsas",{"$f":"'Menu Matrix'!G179","v":"Tomato / Black Bean / Verde"},"gm14"]
[null,"Bottled Sauces",{"$f":"'Menu Matrix'!G180","v":"Tabasco Red & Green / Tapatio"}]
[null,"Condiments",{"$f":"'Menu Matrix'!G181","v":"Lime Wedges / Sour Cream"}]
[null,null,{"$f":"'Menu Matrix'!G182","v":"ASIAN ITEMS"}]
[null,"Craft Sauces",{"$f":"'Menu Matrix'!G183","v":"Spicy Mayo/Korean BBQ/Chili Sauce"}]
[null,"Bottled Sauces",{"$f":"'Menu Matrix'!G184","v":"Soy/Oyster/Sriracha/Ponzu/Peanut"}]
[null,"Condiments",{"$f":"'Menu Matrix'!G185","v":"Pickled Ginger / Peanuts/Sesame"}]
[]
[null,null,null,"Sous chef DK 5 / 6 check off sign                            Time"]
[]
[null,null,null,"Sous Chef recive check off sign                                Time"]
[]
[null,null,null,"Food testing ",null,"Ok","not OK"]

{"sheet":"Day 5 - Production","index":6,"n_rows":191,"n_cols":7,"rows_kept":191,"cut":false,"hidden":false,"merged":[[0,6,0,8],[1,3,1,8],[2,0,3,0],[8,3,8,8],[18,0,18,1],[18,3,18,8],[19,0,20,0],[19,1,20,1],[21,0,22,0],[21,1,22,1],[23,0,24,0],[23,1,24,1],[47,0,51,0],[25,0,26,0],[25,1,26,1],[28,3,28,8],[29,0,30,0],[29,1,30,1],[31,0,32,0],[31,1,32,1],[33,3,33,8],[34,0,38,0],[39,3,39,8],[40,0,45,0],[46,3,46,8],[52,3,52,8],[53,0,58,0],[60,3,60,8],[61,0,66,0],[61,1,64,1],[65,1,66,1],[67,3,67,8],[68,0,70,0],[68,1,69,1],[72,3,72,8],[73,0,96,0],[73,1,87,1],[88,1,96,1],[97,3,97,8],[98,0,102,0],[103,3,103,8],[104,0,107,0],[104,1,105,1],[106,1,107,1],[109,3,109,8],[110,0,111,0],[112,3,112,8],[113,0,118,0],[113,1,115,1],[116,1,117,1],[165,3,165,8],[119,3,119,8],[120,0,123,0],[124,3,124,8],[125,0,129,0],[125,1,127,1],[132,3,132,8],[133,0,136,0],[137,3,137,8],[138,0,156,0],[159,3,159,8],[160,1,161,1],[166,0,168,0],[172,0,173,0],[172,1,173,1],[174,0,184,0],[174,3,174,8]]}
[null,"STATION","LUNCH / DAY 5  x 2","PROD LOCATION","QTY","CREW","SHOPPING LIST"]
[null,null,{"$f":"'Menu Matrix'!H2","v":"WESTERN DESTINATIONS"}]
["A1","GF-PASTA",{"$f":"'Menu Matrix'!H3","v":"Zucchini-Red Pepper- Eggplant"},"lido hot","10kg"]
[null,"PASTA SAUCE",{"$f":"'Menu Matrix'!H4","v":"Marinara / Mushroom"},"sauce6","10ltr"]
["A2","HOT SANDWICH",{"$f":"'Menu Matrix'!H5","v":"Philly Cheese Steak"},"grill6",350]
["A3","TEX-MEX ITEM",{"$f":"'Menu Matrix'!H6","v":"1) Sonoro Hot Dogs"},"lido hot",300]
[null,"SIDE ITEM",{"$f":"'Menu Matrix'!H7","v":"2) Pineapple, cilantro, jalapeno salsa"},"gm14","5kg"]
["A4","TOPPINGS",{"$f":"'Menu Matrix'!H8","v":"1) Jalapeno Slice 2) Tomato Salsa       3) Salsa Verde 4) Black bean Salsa     5) Roasted Corn Salsa 6) Guacamole   7) Sour Cream  8) Queso Fresco         9) Tabasco 10) Chipotle Mayo"},"gm14","5kg"]
[null,null,{"$f":"'Menu Matrix'!H9","v":"LUNCH BAZAAR"}]
["B1","MEAT",{"$f":"'Menu Matrix'!H10","v":"1) Breaded Pork Chops"},"butcher","400pcs"]
[null,"POTATO DISH",{"$f":"'Menu Matrix'!H11","v":"2) Sweet Potato Marshmallow Bake"},"soup6","80kg"]
["B2","ACTION STATION",{"$f":"'Menu Matrix'!H12","v":"Shaved roast beef, white truffle mayonnaise, arugula & parmesan"},"lido hot"]
[null,"GARNISH ITEM",{"$f":"'Menu Matrix'!H13","v":0}]
["B3","DEEP DISH   CARVING ITEM",{"$f":"'Menu Matrix'!H14","v":"WILD MUSHROOM PIZZA W/ GARLIC SPINACH, MOZZ & PARM"},"sauce","15pcs"]
["B4","FISH/SEAFOOD",{"$f":"'Menu Matrix'!H15","v":"1) Mediterranean Codfish / Tomato Gr"},"lido hot","300pcs"]
[null,"VEGETABLES",{"$f":"'Menu Matrix'!H16","v":"2) Mixed Roasted Vegetables"},"lido hot","30kg"]
["B5","CHICKEN DISH",{"$f":"'Menu Matrix'!H17","v":"1) Apricot Glazed Chicken/ Spinach"},"sauce5","400pcs"]
[null,"PASTA DISH",{"$f":"'Menu Matrix'!H18","v":"2) Carbonara Bowtie"},"sauce6","10ltr"]
["DESTINATIONS",null,{"$f":"'Menu Matrix'!H19","v":"MEDITERRANEAN"}]
["C1","CONDIMENTS",{"$f":"'Menu Matrix'!H20","v":"A1 / Mustard / Ketchup / Sriracha"}]
[null,null,{"$f":"'Menu Matrix'!H21","v":"Worchestershire / Soy Sauce / Malt V"}]
["C2","VEGETABLES     SIDE ITEM",{"$f":"'Menu Matrix'!H22","v":"1) Green Beans-tomato-garlic-onion"},"lido hot","30kg"]
[null,null,{"$f":"'Menu Matrix'!H23","v":"2) Chickpeas-eggplant-peppers-olive"},"lido hot","30kg"]
["C3","PROTEIN             SIDE ITEM",{"$f":"'Menu Matrix'!H24","v":"1) Beef Kafta - Giardiniere-olive chop"},"butcher","550pcs"]
[null,null,{"$f":"'Menu Matrix'!H25","v":"2) Chili Tahini Sauce"},"gm 14"]
["C4","STARCH DISH      SIDE ITEM",{"$f":"'Menu Matrix'!H26","v":"1) Yellow Basmati Rice"},"lido hot","10kg"]
[null,null,{"$f":"'Menu Matrix'!H27","v":"2) Toasted Naan Bread"},"bakery","10pcs"]
["C5","NEUTRAL",{"$f":"'Menu Matrix'!H28","v":0}]
[null,null,{"$f":"'Menu Matrix'!H29","v":"GARDEN SOUP KETTLE"}]
["D1","SOUPS",{"$f":"'Menu Matrix'!H30","v":"1) Daily Soup Main Dining"},"soup5","25ltr"]
[null,null,{"$f":"'Menu Matrix'!H31","v":"2) Daily Soup Main Dining"},"soup5","25ltr"]
["D2","TOPPINGS",{"$f":"'Menu Matrix'!H32","v":"Scallions / Bacon Bits / Croutons "},"bellbox","2kg"]
[null,null,{"$f":"'Menu Matrix'!H33","v":"Parmesan / Red Onion / Tofu"},"bellbox"]
[null,null,{"$f":"'Menu Matrix'!H34","v":"HARVEST SALADS"}]
["E1","Leaf Individual",{"$f":"'Menu Matrix'!H35","v":"Tabbouleh - Parsley Salad"},"gm6","12kg"]
[null,"Grain Individual",{"$f":"'Menu Matrix'!H36","v":"Tunisian Quinoa Salad"},"gm6","12kg"]
[null,"Veg Individual ",{"$f":"'Menu Matrix'!H37","v":"Turkish Chickpea Salad"},"gm5","12kg"]
[null,"Crunch Item",{"$f":"'Menu Matrix'!H38","v":"Seasoned Pita Chips"},"gm14","20kg"]
[null,"Garnishes",{"$f":"'Menu Matrix'!H39","v":"Walnuts / Almonds / Pistachio"},"gm14","2kg"]
[null,null,{"$f":"'Menu Matrix'!H40","v":"COMPOSED SALADS"}]
["E2","Grain Salad LG",{"$f":"'Menu Matrix'!H41","v":"Turkish Chickpea Salad"},"gm5","12kg"]
[null,"Pasta Salad LG",{"$f":"'Menu Matrix'!H42","v":"Mediterranean Pasta Salad"},"gm5","12kg"]
[null,"Fruit Salad LG",{"$f":"'Menu Matrix'!H43","v":"Spicy Pear & Pineapple Salad"},"fruit5","15can"]
[null,"Roasted Veg",{"$f":"'Menu Matrix'!H44","v":"Zucchini-Red Pepper- Eggplant"},"gm14","30kg"]
[null,"Cheese Garnish",{"$f":"'Menu Matrix'!H45","v":"Blue Cheese / Parmesan Cheese"},"gm14","3kg"]
[null,"Bread Garnish",{"$f":"'Menu Matrix'!H46","v":"Garlic Bread / Parmesan Bread"},"gm14","15loaf"]
[null,null,{"$f":"'Menu Matrix'!H47","v":"FRESH MARKET GREENS"}]
["F1","Leaf Lettuce",{"$f":"'Menu Matrix'!H48","v":"Mixed Greens / Iceberg"},"gm6","40kg"]
[null,"Leaf Lettuce",{"$f":"'Menu Matrix'!H49","v":"Shredded Green & Red Cabbage"},"gm5","40kg"]
[null,"Tomato Salad",{"$f":"'Menu Matrix'!H50","v":"Sliced Tomato & Red Onion"},"gm14","10kg"]
[null,"Potato Salad",{"$f":"'Menu Matrix'!H51","v":"American Potato Salad"},"gm14","30kg"]
[null,"Crudités",{"$f":"'Menu Matrix'!H52","v":"Cucumber/Radish/Peppers/Carrots"},"prep","10kg"]
[null,null,{"$f":"'Menu Matrix'!H53","v":"FRESH MARKET MEATS"}]
["F2","Deli Meats",{"$f":"'Menu Matrix'!H54","v":"Mortadella / Paprika Turkey"},"gm14","5kg"]
[null,"Cured Meat",{"$f":"'Menu Matrix'!H55","v":"Prosciutto"},"gm14","5kg"]
[null,"Cheeses",{"$f":"'Menu Matrix'!H56","v":"Cheddar / Gouda"},"gm14","5kg"]
[null,"Pickles",{"$f":"'Menu Matrix'!H57","v":"Red Onion-Cornichons-Giardiniera-Green Olives - Kalamata Olives"},"gm14","25kg"]
[null,"Breads",{"$f":"'Menu Matrix'!H58","v":"Garlic Parmesan Bread"},"gm14"]
[null,"Condiments",{"$f":"'Menu Matrix'!H59","v":"Dijon Mustard - Mayonnaise"}]
[null,"STATION",{"$f":"'Menu Matrix'!H60","v":"DAY 5"}]
[null,null,{"$f":"'Menu Matrix'!H61","v":"ORCHARD JUICE BAR"}]
["G1","JUICES",{"$f":"'Menu Matrix'!H62","v":"1) Watermelon"},"prep veg","10ltr"]
[null,null,{"$f":"'Menu Matrix'!H63","v":"2) Cantaloupe"},"prep veg","10ltr"]
[null,null,{"$f":"'Menu Matrix'!H64","v":"3) Mixed Fruit"},"prep veg","10ltr"]
[null,null,{"$f":"'Menu Matrix'!H65","v":"4) Chef's Special"},"prep veg"]
[null,"SANGRIA MIX",{"$f":"'Menu Matrix'!H66","v":0}]
[null,null,{"$f":"'Menu Matrix'!H67","v":0}]
[null,null,{"$f":"'Menu Matrix'!H68","v":"SWEET DELIGHTS"}]
["H1","CHOCOLATE DIPPED ITEMS",{"$f":"'Menu Matrix'!H69","v":"Apples / Banana / Pear"}]
[null,null,{"$f":"'Menu Matrix'!H70","v":"Marshmallow / Banana"}]
[null,"CARAMEL FRUIT",{"$f":"'Menu Matrix'!H71","v":"Apples / Pears"},"pastry"]
[null,"PARFAITS",{"$f":"'Menu Matrix'!H72","v":"Fruit/Jello Trifle - Mixed Berries & Fruits, layered with Raspberry & Lemon Jello"},"pastry"]
[null,null,{"$f":"'Menu Matrix'!H73","v":"FRESH MARKET TOPPINGS"}]
["H2","TOPPINGS",{"$f":"'Menu Matrix'!H74","v":"1) Cherry Tomato Slice"},"veg prep","5kg"]
[null,null,{"$f":"'Menu Matrix'!H75","v":"2) Red Onion - Dice"},"veg prep","5kg"]
[null,null,{"$f":"'Menu Matrix'!H76","v":"3) Cucumber - Dice"},"veg prep","5kg"]
[null,null,{"$f":"'Menu Matrix'!H77","v":"4) Celery Stalk - Dice"},"veg prep","5kg"]
[null,null,{"$f":"'Menu Matrix'!H78","v":"5) Carrots - Dice"},"veg prep","5kg"]
[null,null,{"$f":"'Menu Matrix'!H79","v":"6) Red Radish - Dice"},"veg prep","5kg"]
[null,null,{"$f":"'Menu Matrix'!H80","v":"7) Mixed Bell Pepper - Dice"},"veg prep","5kg"]
[null,null,{"$f":"'Menu Matrix'!H81","v":"8) Mushrooms - Sliced"},"veg prep","5kg"]
[null,null,{"$f":"'Menu Matrix'!H82","v":"9) Yellow Corn"},"veg prep","5kg"]
[null,null,{"$f":"'Menu Matrix'!H83","v":"10) Garbanzo Beans"},"veg prep","5kg"]
[null,null,{"$f":"'Menu Matrix'!H84","v":"11) Black Beans"},"veg prep","5kg"]
[null,null,{"$f":"'Menu Matrix'!H85","v":"12) Green Olives"},"gm14","5kg"]
[null,null,{"$f":"'Menu Matrix'!H86","v":"13) Sunflower Seeds"},"gm14","5kg"]
[null,null,{"$f":"'Menu Matrix'!H87","v":"14) Walnuts"},"gm14","2kg"]
[null,null,{"$f":"'Menu Matrix'!H88","v":"15) Croutons"},"gm14","2kg"]
[null,"DRESSINGS",{"$f":"'Menu Matrix'!H89","v":"1) Ranch"},"gm14","2kg"]
[null,null,{"$f":"'Menu Matrix'!H90","v":"2) Caesar"},"gm14","1gal"]
[null,null,{"$f":"'Menu Matrix'!H91","v":"3) Balsamic"},"gm14","1gal"]
[null,null,{"$f":"'Menu Matrix'!H92","v":"4) Italian"},"gm14","1gal"]
[null,null,{"$f":"'Menu Matrix'!H93","v":"5) Low-Fat Yogurt"},"gm14","1gal"]
[null,null,{"$f":"'Menu Matrix'!H94","v":"6) Blue Cheese"},"gm14","1gal"]
[null,null,{"$f":"'Menu Matrix'!H95","v":"7) Thousand Island"},"gm14","1gal"]
[null,null,{"$f":"'Menu Matrix'!H96","v":"8) Shallot"},"gm14","3ltr"]
[null,null,{"$f":"'Menu Matrix'!H97","v":"9) Dijon Mustard"},"gm14","0.5kg"]
[null,null,{"$f":"'Menu Matrix'!H98","v":"PASTRY COUNTER"}]
["H3","Fruit Tart",{"$f":"'Menu Matrix'!H99","v":"Fresh Fruit Tartlet"},"pastry"]
[null,"Pastry",{"$f":"'Menu Matrix'!H100","v":"Coconut Cream Pie"},"pastry"]
[null,"Pastry",{"$f":"'Menu Matrix'!H101","v":"Mocha Profiteroles"},"pastry"]
[null,"Pastry",{"$f":"'Menu Matrix'!H102","v":"Pavlova"},"pastry"]
[null,"Cupcakes",{"$f":"'Menu Matrix'!H103","v":"Blueberry / Vanilla Yogurt Frosting"},"pastry"]
[null,null,{"$f":"'Menu Matrix'!H104","v":"FRESH & FAST - GF"}]
["H4","Gluten Free",{"$f":"'Menu Matrix'!H105","v":"1) Apple Cranberry Pie"},"pastry"]
[null,null,{"$f":"'Menu Matrix'!H106","v":"2) Pineapple Upside Down Cake"},"pastry"]
[null,"Sugar Free",{"$f":"'Menu Matrix'!H107","v":"1) Chocolate Cream Puff"},"pastry"]
[null,null,{"$f":"'Menu Matrix'!H108","v":"2) French Vanilla Mousse"},"pastry"]
["H5","H5 - HOT",{"$f":"'Menu Matrix'!H109","v":"Chocolate Marshmallow Bake"},"pastry"]
[null,null,{"$f":"'Menu Matrix'!H110","v":"FRUIT STAND FAVORITES"}]
["I-1","Whole Fruits",{"$f":"'Menu Matrix'!H111","v":"Banana / Red Apple / Pears / Peach   Green Apple / Oranges"},"gm14","50kg"]
[null,"Sliced Fruits",{"$f":"'Menu Matrix'!H112","v":"Watermelon/Pineapple/  Cantaloupe  Honeydew Melon"},"fruit5"]
[null,null,{"$f":"'Menu Matrix'!H113","v":"OVEN BAKED BREADS"}]
["I-2","Current Rolls",{"$f":"'Menu Matrix'!H114","v":"1) Plain Crunchy Rolls"}]
[null,null,{"$f":"'Menu Matrix'!H115","v":"2) Plain Soft Rolls"},"bakery"]
[null,null,{"$f":"'Menu Matrix'!H116","v":"3) Whole Wheat Raisin"},"bakery"]
[null,"Loafs",{"$f":"'Menu Matrix'!H117","v":"4) Rye Loaf Sliced"},"bakery"]
[null,null,{"$f":"'Menu Matrix'!H118","v":"5) Sun-Dried Tomato Focaccia"},"bakery"]
[null,"Condiments",{"$f":"'Menu Matrix'!H119","v":"Butter & Preserves"},"bakery"]
[null,null,{"$f":"'Menu Matrix'!H120","v":"SANDWICH SHOP"}]
["I-3","Baguette or Bagel",{"$f":"'Menu Matrix'!H121","v":"Prosciutto & Tomato Baguette  w/Fresh Mozzarella & Arugula"},"gm5",150]
[null,"Focaccia",{"$f":"'Menu Matrix'!H122","v":"Roasted Broccoli & Red Pepper Feta Cheese & Arugula"},"gm5",150]
[null,"Hamburger Bun",{"$f":"'Menu Matrix'!H123","v":"Lebanese Chicken with Tabbouleh, Hummus & Cucumber"},"gm5",150]
[null,"Hot Dog Bun",{"$f":"'Menu Matrix'!H124","v":"Mortadella & Smoked Gouda, Tomato Pickled Vegetables"},"gm5",150]
[null,null,{"$f":"'Menu Matrix'!H125","v":"FRESH & FAST STATION - 2"}]
["I-4","Chips",{"$f":"'Menu Matrix'!H126","v":"1) Potato Chips"},"gm14","10pkt"]
[null,null,{"$f":"'Menu Matrix'!H127","v":"2) Salt & Vinegar Chips"},"gm14"]
[null,null,{"$f":"'Menu Matrix'!H128","v":"3) Nacho Chips"},"gm14","5pkt"]
[null,"Pickles",{"$f":"'Menu Matrix'!H129","v":"1) Dill Pickles"},"gm14","1gal"]
[null,"Salsa",{"$f":"'Menu Matrix'!H130","v":"Yello Corn / Tomato / Black Bean"},"gm14","10kg"]
["I-5","Savory Hot",{"$f":"'Menu Matrix'!H131","v":"Choc-Bread & Butter Pudding "},"pastry"]
[null,"STATION",{"$f":"'Menu Matrix'!H132","v":"DAY 5"}]
[null,null,{"$f":"'Menu Matrix'!H133","v":"ASIAN STATION "}]
["J1","SALAD",{"$f":"'Menu Matrix'!H134","v":"Tabbouleh - Parsley Salad"},"gm6","12kg"]
[null,"SALAD",{"$f":"'Menu Matrix'!H135","v":"Tunisian Quinoa Salad"},"gm5","12kg"]
[null,"SALAD",{"$f":"'Menu Matrix'!H136","v":"Turkish Chickpea Salad"},"gm5","12kg"]
[null,"PASTA SALAD",{"$f":"'Menu Matrix'!H137","v":"Mediterranean Pasta Salad"},"gm5","12kg"]
[null,null,{"$f":"'Menu Matrix'!H138","v":"STIR-FRY RICE & NOODLES"}]
["J2","PROTEINS",{"$f":"'Menu Matrix'!H139","v":"1) Chinese Sausage (sliced)"},"lido hot","3kg"]
[null,null,{"$f":"'Menu Matrix'!H140","v":"2) Fried Chicken (cubed)"},"lido hot"]
[null,null,{"$f":"'Menu Matrix'!H141","v":"3) Fried Beef (cubed)"},"lido hot"]
[null,null,{"$f":"'Menu Matrix'!H142","v":"4) Fried Pork (pulled)"},"lido hot"]
[null,null,{"$f":"'Menu Matrix'!H143","v":"5) Fried Shrimp (whole)"},"lido hot"]
[null,null,{"$f":"'Menu Matrix'!H144","v":"6) Egg Scramble (julienne)"},"lido hot"]
[null,"VEGETABLES",{"$f":"'Menu Matrix'!H145","v":"1) Carrot (julienne)"},"lido hot"]
[null,null,{"$f":"'Menu Matrix'!H146","v":"2) Red Pepper (diced)"},"veg prep"]
[null,null,{"$f":"'Menu Matrix'!H147","v":"3) Green Pepper (diced)"},"veg prep"]
[null,null,{"$f":"'Menu Matrix'!H148","v":"4) Green Peas "},"veg prep"]
[null,null,{"$f":"'Menu Matrix'!H149","v":"5) Green Cabbage (shredded)"},"veg prep"]
[null,null,{"$f":"'Menu Matrix'!H150","v":"6) Bamboo Shoots (sliced, canned)"},"steamers"]
[null,"TOPPINGS",{"$f":"'Menu Matrix'!H151","v":"1) Tofu (cubed)"},"steamers"]
[null,null,{"$f":"'Menu Matrix'!H152","v":"2) Onions (diced)"},"steamers"]
[null,null,{"$f":"'Menu Matrix'!H153","v":"3) Scallions (chopped)"},"steamers"]
[null,null,{"$f":"'Menu Matrix'!H154","v":"4) Cilantro (rough chop)"},"steamers"]
[null,null,{"$f":"'Menu Matrix'!H155","v":"5) Jalapeno (sliced)"},"steamers"]
[null,null,{"$f":"'Menu Matrix'!H156","v":"6) Edamame (pods)"},"steamers"]
[null,"GARNISHES",{"$f":"'Menu Matrix'!H157","v":"Peanuts/Sesame Seed/Bonito Flakes"},"steamers","2kg"]
["J3","NOODLES",{"$f":"'Menu Matrix'!H158","v":"Udon Noodle / Ramen Noodle"},"lido hot","20kg"]
["J4","BROTH & GARNISH",{"$f":"'Menu Matrix'!H159","v":"Shrimp / Chicken / Scallops/Broth"},"lido hot","5 kg"]
["K1",null,{"$f":"'Menu Matrix'!H160","v":"STIR-FRY STAGING AREA"}]
["K2","ACTION GARNISH",{"$f":"'Menu Matrix'!H161","v":"Shaved roast beef, white truffle mayonnaise, arugula & parmesan"},"lido hot"]
[null,null,{"$f":"'Menu Matrix'!H162","v":0}]
["K3","DEEP DISH PIZZA",{"$f":"'Menu Matrix'!H163","v":"WILD MUSHROOM PIZZA W/ GARLIC SPINACH, MOZZ & PARM"},"bakery"]
["K4","HOT SANDWICH",{"$f":"'Menu Matrix'!H164","v":"Philly Cheese Steak"},"grill6"]
["K5","POTATO DISH",{"$f":"'Menu Matrix'!H165","v":"Sweet Potato Marshmallow Bake"},"soup6"]
[null,null,{"$f":"'Menu Matrix'!H166","v":"TEX-MEX STATION"}]
["L1","CAESAR SALAD STATION",{"$f":"'Menu Matrix'!H167","v":"Romaine Lettuce / Parmesan / Crouton  Anchovies/Caesar Dressing"},"gm14"]
[null,"WHOLE FRUITS",{"$f":"'Menu Matrix'!H168","v":"Apple/Orange/Pears/Peach/Banana"},"gm14"]
[null,"FRUIT SALAD",{"$f":"'Menu Matrix'!H169","v":"Spicy Pear & Pineapple Salad"},"gm14"]
["L2","CHIPS & SALSA STATION",{"$f":"'Menu Matrix'!H170","v":"1) Jalapeno Slice 2) Tomato Salsa       3) Salsa Verde 4) Black bean Salsa     5) Roasted Corn Salsa 6) Guacamole   7) Sour Cream  8) Queso Fresco         9) Tabasco 10) Chipotle Mayo"},"gm14"]
["L3","MEX ITEMS",{"$f":"'Menu Matrix'!H171","v":"1) Sonoro Hot Dogs"},"soup6"]
[null,null,{"$f":"'Menu Matrix'!H172","v":"2) Buffalo Chicken Wings"}]
["L4","BYO- TACOS",{"$f":"'Menu Matrix'!H173","v":"Beef / Chicken / Pork / Peppers / Flour Tortillas"},"lido hot"]
[null,null,{"$f":"'Menu Matrix'!H174","v":0}]
["M1","M1 - COLD",{"$f":"'Menu Matrix'!H175","v":"CONDIMENT STATION"}]
[null,"Breads",{"$f":"'Menu Matrix'!H176","v":"Crisp Rolls / Sunflower Seed Rolls"}]
[null,null,{"$f":"'Menu Matrix'!H177","v":"Square Rolls / Brioche Rolls"},"bakery"]
[null,null,{"$f":"'Menu Matrix'!H178","v":"TEX-MEX ITEMS"}]
[null,"Salsas",{"$f":"'Menu Matrix'!H179","v":"Tomato / Black Bean / Verde"},"gm14"]
[null,"Bottled Sauces",{"$f":"'Menu Matrix'!H180","v":"Tabasco Red & Green / Tapatio"}]
[null,"Condiments",{"$f":"'Menu Matrix'!H181","v":"Lime Wedges / Sour Cream"}]
[null,null,{"$f":"'Menu Matrix'!H182","v":"ASIAN ITEMS"}]
[null,"Craft Sauces",{"$f":"'Menu Matrix'!H183","v":"Spicy Mayo/Korean BBQ/Chili Sauce"}]
[null,"Bottled Sauces",{"$f":"'Menu Matrix'!H184","v":"Soy/Oyster/Sriracha/Ponzu/Peanut"}]
[null,"Condiments",{"$f":"'Menu Matrix'!H185","v":"Pickled Ginger / Peanuts/Sesame"}]
[]
[null,null,null,"Sous chef DK 5 / 6 check off sign                            Time"]
[]
[null,null,null,"Sous Chef recive check off sign                                Time"]
[]
[null,null,null,"Food testing ",null,"Ok","not OK"]

{"sheet":"Day 6 - Production","index":7,"n_rows":191,"n_cols":7,"rows_kept":191,"cut":false,"hidden":false,"merged":[[2,0,3,0],[18,0,18,1],[19,0,20,0],[19,1,20,1],[21,0,22,0],[21,1,22,1],[23,0,24,0],[23,1,24,1],[47,0,51,0],[25,0,26,0],[25,1,26,1],[29,0,30,0],[29,1,30,1],[31,0,32,0],[31,1,32,1],[34,0,38,0],[40,0,45,0],[53,0,58,0],[61,0,66,0],[61,1,64,1],[65,1,66,1],[68,0,70,0],[68,1,69,1],[73,0,96,0],[73,1,87,1],[88,1,96,1],[98,0,102,0],[104,0,107,0],[104,1,105,1],[106,1,107,1],[110,0,111,0],[113,0,118,0],[113,1,115,1],[116,1,117,1],[120,0,123,0],[166,0,168,0],[172,0,173,0],[172,1,173,1],[174,0,184,0],[125,0,129,0],[125,1,127,1],[133,0,136,0],[138,0,156,0],[160,1,161,1]]}
[null,"STATION","LUNCH / DAY 6  x 2","PROD LOCATION","QTY","CREW","SHOPPING LIST"]
[null,null,{"$f":"'Menu Matrix'!I2","v":"WESTERN DESTINATIONS"}]
["A1","GF-PASTA",{"$f":"'Menu Matrix'!I3","v":"Roasted Mushroom & Tomato"},"lido hot","10 kg"]
[null,"PASTA SAUCE",{"$f":"'Menu Matrix'!I4","v":"Marinara / Roasted Pepper"},"sauce6","10 Ltr"]
["A2","HOT SANDWICH",{"$f":"'Menu Matrix'!I5","v":"Royal w/ Cheese Sliders"},"grill6","300 pcs"]
["A3","TEX-MEX ITEM",{"$f":"'Menu Matrix'!I6","v":"1) Chicken & Steak Nachos"},"lido hot","20 kg"]
[null,"SIDE ITEM",{"$f":"'Menu Matrix'!I7","v":"black beans, cheese sauce, scallions"}]
["A4","TOPPINGS",{"$f":"'Menu Matrix'!I8","v":"1) Jalapeno Slice 2) Tomato Salsa       3) Salsa Verde 4) Black bean Salsa     5) Roasted Corn Salsa 6) Guacamole   7) Sour Cream  8) Queso Fresco         9) Tabasco 10) Chipotle Mayo"},"gm14","5 kg"]
[null,null,{"$f":"'Menu Matrix'!I9","v":"LUNCH BAZAAR"}]
["B1","MEAT",{"$f":"'Menu Matrix'!I10","v":"1) Mushroom-herb Flank Steak Roll"},"lido hot","400 pcs"]
[null,"POTATO DISH",{"$f":"'Menu Matrix'!I11","v":"2) Breaded Potato Croquettes"},"soup6"," 400 pcs"]
["B2","ACTION STATION",{"$f":"'Menu Matrix'!I12","v":"Pickled Vegetable Salad w/ Herbs"},"lido hot"]
[null,"GARNISH ITEM",{"$f":"'Menu Matrix'!I13","v":0}]
["B3","DEEP DISH   CARVING ITEM",{"$f":"'Menu Matrix'!I14","v":"PORK LOIN STUFFED W/ NUTS & DRIED FRUITS, BACON WRAPPED"},"lido hot","10 pcs"]
["B4","FISH/SEAFOOD",{"$f":"'Menu Matrix'!I15","v":"1) Lemon Pepper Salmon/Spinach"},"fish 5","350 pcs"]
[null,"VEGETABLES",{"$f":"'Menu Matrix'!I16","v":"2) Garlic-Lemon Broccoli"},"lido hot","30 Kg"]
["B5","CHICKEN DISH",{"$f":"'Menu Matrix'!I17","v":"1) Chicken Saltimbocca/Sage Sauce"},"sauce6",400]
[null,"PASTA DISH",{"$f":"'Menu Matrix'!I18","v":"2) Macaroni in Creamed Tomato"},"sauce6","10 ltr"]
["DESTINATIONS",null,{"$f":"'Menu Matrix'!I19","v":"SOUTHERN  "}]
["C1","CONDIMENTS",{"$f":"'Menu Matrix'!I20","v":"A1 / Mustard / Ketchup / Sriracha"}]
[null,null,{"$f":"'Menu Matrix'!I21","v":"Worchestershire / Soy Sauce / Malt V"}]
["C2","VEGETABLES     SIDE ITEM",{"$f":"'Menu Matrix'!I22","v":"1) Cajun Roasted Okra/ Red Peppers"},"lido hot","30 Kg"]
[null,null,{"$f":"'Menu Matrix'!I23","v":"2) Creamed Corned & Mushrooms"},"lido hot","30 kg"]
["C3","PROTEIN             SIDE ITEM",{"$f":"'Menu Matrix'!I24","v":"1) Chicken & Waffles-Cranberries"},"grill5","100 kg"]
[null,null,{"$f":"'Menu Matrix'!I25","v":"2) Chipotle Maple Syrup "},"gm14","3 Ltr"]
["C4","STARCH DISH      SIDE ITEM",{"$f":"'Menu Matrix'!I26","v":"1) BBQ Bean Casserole/Puff Pastry"},"lido hot","15 Kg"]
[null,null,{"$f":"'Menu Matrix'!I27","v":"2) Steamed Rice"},"soup6","10 Kg"]
["C5","NEUTRAL",{"$f":"'Menu Matrix'!I28","v":0}]
[null,null,{"$f":"'Menu Matrix'!I29","v":"GARDEN SOUP KETTLE"}]
["D1","SOUPS",{"$f":"'Menu Matrix'!I30","v":"1) Daily Soup Main Dining"},"soup5","25 Kg"]
[null,null,{"$f":"'Menu Matrix'!I31","v":"2) Daily Soup Main Dining"},"soup5","25 Kg"]
["D2","TOPPINGS",{"$f":"'Menu Matrix'!I32","v":"Scallions / Bacon Bits / Croutons "},"bellbox","2 kg"]
[null,null,{"$f":"'Menu Matrix'!I33","v":"Parmesan / Red Onion / Tofu"},"bellbox"]
[null,null,{"$f":"'Menu Matrix'!I34","v":"HARVEST SALADS"}]
["E1","Leaf Individual",{"$f":"'Menu Matrix'!I35","v":"Chili Lime Cabbage Salad"},"gm6","12 Kg"]
[null,"Grain Individual",{"$f":"'Menu Matrix'!I36","v":"Louisiana White Bean Salad"},"gm6","12 Kg"]
[null,"Veg Individual ",{"$f":"'Menu Matrix'!I37","v":"Caprese Salad w/ Balsamic"},"gm5","12 Kg"]
[null,"Crunch Item",{"$f":"'Menu Matrix'!I38","v":"Cajun-Garlic Bites"},"gm14","10 Packet"]
[null,"Garnishes",{"$f":"'Menu Matrix'!I39","v":"Walnuts / Almonds / Pistachio"},"gm14","2 Kg ea"]
[null,null,{"$f":"'Menu Matrix'!I40","v":"COMPOSED SALADS"}]
["E2","Grain Salad LG",{"$f":"'Menu Matrix'!I41","v":"Louisiana White Bean Salad"},"Gm 5","12 Kg"]
[null,"Pasta Salad LG",{"$f":"'Menu Matrix'!I42","v":"Tuscan Pasta Salad"},"Gm 5","12 Kg"]
[null,"Fruit Salad LG",{"$f":"'Menu Matrix'!I43","v":"Cajun Peach Salad"},"Fruit 5","15 Can"]
[null,"Roasted Veg",{"$f":"'Menu Matrix'!I44","v":"Roasted Mushroom & Tomato"},"Gm 14","10 Kg"]
[null,"Cheese Garnish",{"$f":"'Menu Matrix'!I45","v":"Blue Cheese / Parmesan Cheese"},"Gm 14","3 Kg"]
[null,"Bread Garnish",{"$f":"'Menu Matrix'!I46","v":"Cheddar Cheese Bread"},"Gm 14","10 Loaf"]
[null,null,{"$f":"'Menu Matrix'!I47","v":"FRESH MARKET GREENS"}]
["F1","Leaf Lettuce",{"$f":"'Menu Matrix'!I48","v":"Mixed Greens / Spinach"},"Gm 6","40 Kg"]
[null,"Leaf Lettuce",{"$f":"'Menu Matrix'!I49","v":"Shredded Green & Red Cabbage"},"Gm 5","40 Kg"]
[null,"Tomato Salad",{"$f":"'Menu Matrix'!I50","v":"Sliced Tomato & Red Onion"},"Gm 14","10 Kg"]
[null,"Potato Salad",{"$f":"'Menu Matrix'!I51","v":"Smoked Paprika Potato Salad"},"Gm 14","5 Kg"]
[null,"Crudités",{"$f":"'Menu Matrix'!I52","v":"Carrots/Celery/Pepper/Radish"},"Veg Prep","5 Kg"]
[null,null,{"$f":"'Menu Matrix'!I53","v":"FRESH MARKET MEATS"}]
["F2","Deli Meats",{"$f":"'Menu Matrix'!I54","v":"Mortadella / Paprika Turkey"},"Gm 14","5 Kg"]
[null,"Cured Meat",{"$f":"'Menu Matrix'!I55","v":"Salami "},"Gm 14","5 Kg"]
[null,"Cheeses",{"$f":"'Menu Matrix'!I56","v":"Cheddar / Havarti"},"Gm 14","5 Kg"]
[null,"Pickles",{"$f":"'Menu Matrix'!I57","v":"Red Onion-Cornichons-Giardiniera-Green Olives - Kalamata Olives"},"Gm 14","5 Kg"]
[null,"Breads",{"$f":"'Menu Matrix'!I58","v":"Garlic Parmesan Bread"},"Gm 14","10 Loaf"]
[null,"Condiments",{"$f":"'Menu Matrix'!I59","v":"Dijon Mustard - Mayonnaise"},"Gm 14","2 Kg"]
[null,"STATION",{"$f":"'Menu Matrix'!I60","v":"DAY 6"}]
[null,null,{"$f":"'Menu Matrix'!I61","v":"ORCHARD JUICE BAR"}]
["G1","JUICES",{"$f":"'Menu Matrix'!I62","v":"1) Watermelon"},"Veg Prep","10 Ltr"]
[null,null,{"$f":"'Menu Matrix'!I63","v":"2) Cantaloupe"},"Veg Prep","10 Ltr"]
[null,null,{"$f":"'Menu Matrix'!I64","v":"3) Mixed Fruit"},"Veg Prep","10 Ltr"]
[null,null,{"$f":"'Menu Matrix'!I65","v":"4) Chef's Special"},"Veg Prep","10 Ltr"]
[null,"SANGRIA MIX",{"$f":"'Menu Matrix'!I66","v":0}]
[null,null,{"$f":"'Menu Matrix'!I67","v":0}]
[null,null,{"$f":"'Menu Matrix'!I68","v":"SWEET DELIGHTS"}]
["H1","CHOCOLATE DIPPED ITEMS",{"$f":"'Menu Matrix'!I69","v":"Apples / Banana / Pear"},"Pastry"]
[null,null,{"$f":"'Menu Matrix'!I70","v":"Marshmallow / Banana"},"Pastry"]
[null,"CARAMEL FRUIT",{"$f":"'Menu Matrix'!I71","v":"Apples / Pears"},"Pastry"]
[null,"PARFAITS",{"$f":"'Menu Matrix'!I72","v":"Classic Trifle - Raspberry Jello, Pound Cake, Vanilla Custard, Chocolate Sauce, Maraschino Cherries"},"Pastry"]
[null,null,{"$f":"'Menu Matrix'!I73","v":"FRESH MARKET TOPPINGS"}]
["H2","TOPPINGS",{"$f":"'Menu Matrix'!I74","v":"1) Cherry Tomato Slice"},"Veg Prep","5 Kg"]
[null,null,{"$f":"'Menu Matrix'!I75","v":"2) Red Onion - Dice"},"Veg Prep","5 Kg"]
[null,null,{"$f":"'Menu Matrix'!I76","v":"3) Cucumber - Dice"},"Veg Prep","5 Kg"]
[null,null,{"$f":"'Menu Matrix'!I77","v":"4) Celery Stalk - Dice"},"Veg Prep","5 Kg"]
[null,null,{"$f":"'Menu Matrix'!I78","v":"5) Carrots - Dice"},"Veg Prep","5 Kg"]
[null,null,{"$f":"'Menu Matrix'!I79","v":"6) Red Radish - Dice"},"Veg Prep","5 Kg"]
[null,null,{"$f":"'Menu Matrix'!I80","v":"7) Mixed Bell Pepper - Dice"},"Veg Prep","5 Kg"]
[null,null,{"$f":"'Menu Matrix'!I81","v":"8) Mushrooms - Sliced"},"Veg Prep","5 Kg"]
[null,null,{"$f":"'Menu Matrix'!I82","v":"9) Yellow Corn"},"Veg Prep","5 Kg"]
[null,null,{"$f":"'Menu Matrix'!I83","v":"10) Garbanzo Beans"},"Veg Prep","5 Kg"]
[null,null,{"$f":"'Menu Matrix'!I84","v":"11) Black Beans"},"Gm 14","5 Kg"]
[null,null,{"$f":"'Menu Matrix'!I85","v":"12) Green Olives"},"Gm 14","2 kg"]
[null,null,{"$f":"'Menu Matrix'!I86","v":"13) Sunflower Seeds"},"Gm 14","2 kg"]
[null,null,{"$f":"'Menu Matrix'!I87","v":"14) Walnuts"},"Gm 14","2 kg"]
[null,null,{"$f":"'Menu Matrix'!I88","v":"15) Croutons"},"Gm 14","1 Gal"]
[null,"DRESSINGS",{"$f":"'Menu Matrix'!I89","v":"1) Ranch"},"Gm 14","1 Gal"]
[null,null,{"$f":"'Menu Matrix'!I90","v":"2) Caesar"},"Gm 14","1 Gal"]
[null,null,{"$f":"'Menu Matrix'!I91","v":"3) Balsamic"},"Gm 14","1 Gal"]
[null,null,{"$f":"'Menu Matrix'!I92","v":"4) Italian"},"Gm 14","1 Gal"]
[null,null,{"$f":"'Menu Matrix'!I93","v":"5) Low-Fat Yogurt"},"Gm 14","1 Gal"]
[null,null,{"$f":"'Menu Matrix'!I94","v":"6) Blue Cheese"},"Gm 14","1 Gal"]
[null,null,{"$f":"'Menu Matrix'!I95","v":"7) Thousand Island"},"Gm 14","3 Ltr"]
[null,null,{"$f":"'Menu Matrix'!I96","v":"8) Shallot"},"Gm 14","5 Kg"]
[null,null,{"$f":"'Menu Matrix'!I97","v":"9) Dijon Mustard"},"Gm 14"]
[null,null,{"$f":"'Menu Matrix'!I98","v":"PASTRY COUNTER"}]
["H3","Fruit Tart",{"$f":"'Menu Matrix'!I99","v":"Fresh Fruit Tartlet"},"Pastrty"]
[null,"Pastry",{"$f":"'Menu Matrix'!I100","v":"Strawberry Short Cake"},"Pastrty"]
[null,"Pastry",{"$f":"'Menu Matrix'!I101","v":"Mocha Profiteroles"},"Pastrty"]
[null,"Pastry",{"$f":"'Menu Matrix'!I102","v":"Peach Almond Torte"},"Pastrty"]
[null,"Cupcakes",{"$f":"'Menu Matrix'!I103","v":"Chocolate / Raspberry Frosting"},"Pastrty"]
[null,null,{"$f":"'Menu Matrix'!I104","v":"FRESH & FAST - GF"}]
["H4","Gluten Free",{"$f":"'Menu Matrix'!I105","v":"Chocolate Mousse"},"Pastrty"]
[null,null,{"$f":"'Menu Matrix'!I106","v":"2) Pineapple Upside Down Cake"},"Pastrty"]
[null,"Sugar Free",{"$f":"'Menu Matrix'!I107","v":"1) Strawberry Cake"},"Pastrty"]
[null,null,{"$f":"'Menu Matrix'!I108","v":"2) Peach Pie"},"Pastrty"]
["H5","H5 - HOT",{"$f":"'Menu Matrix'!I109","v":"Vanilla Roasted Pineapple/Coconut "},"Pastrty"]
[null,null,{"$f":"'Menu Matrix'!I110","v":"FRUIT STAND FAVORITES"}]
["I-1","Whole Fruits",{"$f":"'Menu Matrix'!I111","v":"Banana / Red Apple / Pears / Peach   Green Apple / Oranges"},"Gm 14","50 Kg ea"]
[null,"Sliced Fruits",{"$f":"'Menu Matrix'!I112","v":"Watermelon/Pineapple/  Cantaloupe  Honeydew Melon"},"Fruit 5"]
[null,null,{"$f":"'Menu Matrix'!I113","v":"OVEN BAKED BREADS"}]
["I-2","Current Rolls",{"$f":"'Menu Matrix'!I114","v":"1) Plain Crunchy Rolls"},"Bakery"]
[null,null,{"$f":"'Menu Matrix'!I115","v":"2) Plain Soft Rolls"},"Bakery"]
[null,null,{"$f":"'Menu Matrix'!I116","v":"3) Honey Wheat Rolls"},"Bakery"]
[null,"Loafs",{"$f":"'Menu Matrix'!I117","v":"4) Sourdough Loaf Sliced"},"Bakery"]
[null,null,{"$f":"'Menu Matrix'!I118","v":"5) Olive Focaccia"},"Bakery"]
[null,"Condiments",{"$f":"'Menu Matrix'!I119","v":"Butter & Preserves"},"Bakery"]
[null,null,{"$f":"'Menu Matrix'!I120","v":"SANDWICH SHOP"}]
["I-3","Baguette or Bagel",{"$f":"'Menu Matrix'!I121","v":"Roasted Vegetables w/ Sundried Tomato & Basil Pesto / Parmesan"},"GM 5",150]
[null,"Focaccia",{"$f":"'Menu Matrix'!I122","v":"Italian Focaccia w. Prosciutto, Salami Buffalo Mozzarella & Arugula"},"GM 5",150]
[null,"Hamburger Bun",{"$f":"'Menu Matrix'!I123","v":"Roast Beef & Chipotle Mayo w/ Romaine, Pickles & Havarti Cheese"},"GM 5",150]
[null,"Hot Dog Bun",{"$f":"'Menu Matrix'!I124","v":"Roasted Turkey w/ Asian Slaw & Sweet Chili Sauce"},"GM 5",150]
[null,null,{"$f":"'Menu Matrix'!I125","v":"FRESH & FAST STATION - 2"}]
["I-4","Chips",{"$f":"'Menu Matrix'!I126","v":"1) Potato Chips"},"Gm 14","10 Pkt"]
[null,null,{"$f":"'Menu Matrix'!I127","v":"2) Salt & Vinegar Chips"},"Gm 14"]
[null,null,{"$f":"'Menu Matrix'!I128","v":"3) Nacho Chips"},"Gm 14","5 Pkt"]
[null,"Pickles",{"$f":"'Menu Matrix'!I129","v":"1) Dill Pickles"},"Gm 14","1 Gal"]
[null,"Salsa",{"$f":"'Menu Matrix'!I130","v":"Yello Corn / Tomato / Black Bean"},"Gm 14","10 Kg"]
["I-5","Savory Hot",{"$f":"'Menu Matrix'!I131","v":"Washington Apple Cobbler / Vanilla S"},"Pastry"]
[null,"STATION",{"$f":"'Menu Matrix'!I132","v":"DAY 6"}]
[null,null,{"$f":"'Menu Matrix'!I133","v":"ASIAN STATION "}]
["J1","SALAD",{"$f":"'Menu Matrix'!I134","v":"Chili Lime Cabbage Salad"},"Gm 6","12 Kg "]
[null,"SALAD",{"$f":"'Menu Matrix'!I135","v":"Louisiana White Bean Salad"},"Gm 5","12 Kg "]
[null,"SALAD",{"$f":"'Menu Matrix'!I136","v":"Caprese Salad w/ Balsamic"},"Gm 5","12 Kg "]
[null,"PASTA SALAD",{"$f":"'Menu Matrix'!I137","v":"Tuscan Pasta Salad"},"Gm 5","12 Kg "]
[null,null,{"$f":"'Menu Matrix'!I138","v":"STIR-FRY RICE & NOODLES"}]
["J2","PROTEINS",{"$f":"'Menu Matrix'!I139","v":"1) Chinese Sausage (sliced)"},"lido hot","3 Kg"]
[null,null,{"$f":"'Menu Matrix'!I140","v":"2) Fried Chicken (cubed)"},"lido hot","3 Kg"]
[null,null,{"$f":"'Menu Matrix'!I141","v":"3) Fried Beef (cubed)"},"lido hot","3 Kg"]
[null,null,{"$f":"'Menu Matrix'!I142","v":"4) Fried Pork (pulled)"},"lido hot","3 Kg"]
[null,null,{"$f":"'Menu Matrix'!I143","v":"5) Fried Shrimp (whole)"},"lido hot","3 Kg"]
[null,null,{"$f":"'Menu Matrix'!I144","v":"6) Egg Scramble (julienne)"},"lido hot","3 Kg"]
[null,"VEGETABLES",{"$f":"'Menu Matrix'!I145","v":"1) Carrot (julienne)"},"Veg Prep","3 Kg"]
[null,null,{"$f":"'Menu Matrix'!I146","v":"2) Red Pepper (diced)"},"Veg Prep","3 Kg"]
[null,null,{"$f":"'Menu Matrix'!I147","v":"3) Green Pepper (diced)"},"Veg Prep","3 Kg"]
[null,null,{"$f":"'Menu Matrix'!I148","v":"4) Green Peas "},"Veg Prep","3 Kg"]
[null,null,{"$f":"'Menu Matrix'!I149","v":"5) Green Cabbage (shredded)"},"Veg Prep","3 Kg"]
[null,null,{"$f":"'Menu Matrix'!I150","v":"6) Bamboo Shoots (sliced, canned)"},"Steamer","3 Kg"]
[null,"TOPPINGS",{"$f":"'Menu Matrix'!I151","v":"1) Tofu (cubed)"},"Steamer","3 Kg"]
[null,null,{"$f":"'Menu Matrix'!I152","v":"2) Onions (diced)"},"Steamer","3 Kg"]
[null,null,{"$f":"'Menu Matrix'!I153","v":"3) Scallions (chopped)"},"Steamer","3 Kg"]
[null,null,{"$f":"'Menu Matrix'!I154","v":"4) Cilantro (rough chop)"},"Steamer","3 Kg"]
[null,null,{"$f":"'Menu Matrix'!I155","v":"5) Jalapeno (sliced)"},"Steamer","3 Kg"]
[null,null,{"$f":"'Menu Matrix'!I156","v":"6) Edamame (pods)"},"Steamer","3 Kg"]
[null,"GARNISHES",{"$f":"'Menu Matrix'!I157","v":"Peanuts/Sesame Seed/Bonito Flakes"},"Steamer","2 Kg"]
["J3","NOODLES",{"$f":"'Menu Matrix'!I158","v":"Udon Noodle / Ramen Noodle"},"lido hot","20 Kg"]
["J4","BROTH & GARNISH",{"$f":"'Menu Matrix'!I159","v":"Shrimp / Chicken / Scallops/Broth"},"lido hot","5 Kg"]
["K1",null,{"$f":"'Menu Matrix'!I160","v":"STIR-FRY STAGING AREA"}]
["K2","ACTION GARNISH",{"$f":"'Menu Matrix'!I161","v":"Pickled Vegetable Salad w/ Herbs"},"lido hot"]
[null,null,{"$f":"'Menu Matrix'!I162","v":0}]
["K3","DEEP DISH PIZZA",{"$f":"'Menu Matrix'!I163","v":"PORK LOIN STUFFED W/ NUTS & DRIED FRUITS, BACON WRAPPED"}]
["K4","HOT SANDWICH",{"$f":"'Menu Matrix'!I164","v":"Royal w/ Cheese Sliders"}]
["K5","POTATO DISH",{"$f":"'Menu Matrix'!I165","v":"Breaded Potato Croquettes"},"Lido Hot"]
[null,null,{"$f":"'Menu Matrix'!I166","v":"TEX-MEX STATION"}]
["L1","CAESAR SALAD STATION",{"$f":"'Menu Matrix'!I167","v":"Romaine Lettuce / Parmesan / Crouton  Anchovies/Caesar Dressing"},"Gm 14"]
[null,"WHOLE FRUITS",{"$f":"'Menu Matrix'!I168","v":"Apple/Orange/Pears/Peach/Banana"}]
[null,"FRUIT SALAD",{"$f":"'Menu Matrix'!I169","v":"Cajun Peach Salad"},"Gm 14"]
["L2","CHIPS & SALSA STATION",{"$f":"'Menu Matrix'!I170","v":"1) Jalapeno Slice 2) Tomato Salsa       3) Salsa Verde 4) Black bean Salsa     5) Roasted Corn Salsa 6) Guacamole   7) Sour Cream  8) Queso Fresco         9) Tabasco 10) Chipotle Mayo"},"Gm 14"]
["L3","MEX ITEMS",{"$f":"'Menu Matrix'!I171","v":"1) Chicken & Steak Nachos"},"Lido Hot"]
[null,null,{"$f":"'Menu Matrix'!I172","v":0}]
["L4","BYO- TACOS",{"$f":"'Menu Matrix'!I173","v":"Beef / Chicken / Pork / Peppers / Flour Tortillas"},"Lido Hot"]
[null,null,{"$f":"'Menu Matrix'!I174","v":0}," "]
["M1","M1 - COLD",{"$f":"'Menu Matrix'!I175","v":"CONDIMENT STATION"}]
[null,"Breads",{"$f":"'Menu Matrix'!I176","v":"Crisp Rolls / Sunflower Seed Rolls"}]
[null,null,{"$f":"'Menu Matrix'!I177","v":"Square Rolls / Brioche Rolls"}]
[null,null,{"$f":"'Menu Matrix'!I178","v":"TEX-MEX ITEMS"}]
[null,"Salsas",{"$f":"'Menu Matrix'!I179","v":"Tomato / Black Bean / Verde"}]
[null,"Bottled Sauces",{"$f":"'Menu Matrix'!I180","v":"Tabasco Red & Green / Tapatio"}]
[null,"Condiments",{"$f":"'Menu Matrix'!I181","v":"Lime Wedges / Sour Cream"}]
[null,null,{"$f":"'Menu Matrix'!I182","v":"ASIAN ITEMS"}]
[null,"Craft Sauces",{"$f":"'Menu Matrix'!I183","v":"Spicy Mayo/Korean BBQ/Chili Sauce"}]
[null,"Bottled Sauces",{"$f":"'Menu Matrix'!I184","v":"Soy/Oyster/Sriracha/Ponzu/Peanut"}]
[null,"Condiments",{"$f":"'Menu Matrix'!I185","v":"Pickled Ginger / Peanuts/Sesame"}]
[]
[null,null,null,"Sous chef DK 5 / 6 check off sign                            Time"]
[]
[null,null,null,"Sous Chef recive check off sign                                Time"]
[]
[null,null,null,"Food testing ",null,"Ok","not OK"]

{"sheet":"Day 7 - Production","index":8,"n_rows":191,"n_cols":7,"rows_kept":191,"cut":false,"hidden":false,"merged":[[0,6,0,8],[1,3,1,8],[2,0,3,0],[8,3,8,8],[18,0,18,1],[18,3,18,8],[19,0,20,0],[19,1,20,1],[21,0,22,0],[21,1,22,1],[23,0,24,0],[23,1,24,1],[47,0,51,0],[25,0,26,0],[25,1,26,1],[28,3,28,8],[29,0,30,0],[29,1,30,1],[31,0,32,0],[31,1,32,1],[33,3,33,8],[34,0,38,0],[39,3,39,8],[40,0,45,0],[46,3,46,8],[52,3,52,8],[53,0,58,0],[60,3,60,8],[61,0,66,0],[61,1,64,1],[65,1,66,1],[67,3,67,8],[68,0,70,0],[68,1,69,1],[72,3,72,8],[73,0,96,0],[73,1,87,1],[88,1,96,1],[97,3,97,8],[98,0,102,0],[103,3,103,8],[104,0,107,0],[104,1,105,1],[106,1,107,1],[109,3,109,8],[110,0,111,0],[112,3,112,8],[113,0,118,0],[113,1,115,1],[116,1,117,1],[165,3,165,8],[119,3,119,8],[120,0,123,0],[124,3,124,8],[125,0,129,0],[125,1,127,1],[132,3,132,8],[133,0,136,0],[137,3,137,8],[138,0,156,0],[159,3,159,8],[160,1,161,1],[166,0,168,0],[172,0,173,0],[172,1,173,1],[174,0,184,0],[174,3,174,8]]}
[null,"STATION","LUNCH / DAY 7  x 2","PROD LOCATION","QTY","CREW","SHOPPING LIST"]
[null,null,{"$f":"'Menu Matrix'!J2","v":"WESTERN DESTINATIONS"}]
["A1","GF-PASTA",{"$f":"'Menu Matrix'!J3","v":"Roasted Carrots & Peppers"},"Lido Hot","10 kg"]
[null,"PASTA SAUCE",{"$f":"'Menu Matrix'!J4","v":"Marinara / Mushroom"},"Sauce 6","10 Ltr"]
["A2","HOT SANDWICH",{"$f":"'Menu Matrix'!J5","v":"Italian Salami Panini"},"Grill ","300 pcs"]
["A3","TEX-MEX ITEM",{"$f":"'Menu Matrix'!J6","v":"1) Chicken Enchilada / Cheese"},"Soup 6","80 kg"]
[null,"SIDE ITEM",{"$f":"'Menu Matrix'!J7","v":"2) Crispy Corn Tortilla Strips"},"Gm 14","50 Dozen"]
["A4","TOPPINGS",{"$f":"'Menu Matrix'!J8","v":"1) Jalapeno Slice 2) Tomato Salsa       3) Salsa Verde 4) Black bean Salsa     5) Roasted Corn Salsa 6) Guacamole   7) Sour Cream  8) Queso Fresco         9) Tabasco 10) Chipotle Mayo"},"Gm 14","5 kg"]
[null,null,{"$f":"'Menu Matrix'!J9","v":"LUNCH BAZAAR"}]
["B1","MEAT",{"$f":"'Menu Matrix'!J10","v":"1) Shaved Leg of Lamb Mix"}]
[null,"POTATO DISH",{"$f":"'Menu Matrix'!J11","v":"2) Garlic Mashed Potato"},"Soup 6","80 Kg"]
["B2","ACTION STATION",{"$f":"'Menu Matrix'!J12","v":"Scallions & Spinach w/ Port Reduction, Gorgonzola Garnish"},"Lido Hot"]
[null,"GARNISH ITEM",{"$f":"'Menu Matrix'!J13","v":0}]
["B3","DEEP DISH   CARVING ITEM",{"$f":"'Menu Matrix'!J14","v":"CARAMELIZED PEAR & FIG PIZZA W/ RICOTTA & PARMESAN CHEESE"},"Slice","15 Pcs"]
["B4","FISH/SEAFOOD",{"$f":"'Menu Matrix'!J15","v":"1) Citrus Crusted Tilapia / S-Rice"},"Fish 5","350 pcs"]
[null,"VEGETABLES",{"$f":"'Menu Matrix'!J16","v":"2) Roasted Garlic Tomatoes"},"Lido Hot","300 pcs"]
["B5","CHICKEN DISH",{"$f":"'Menu Matrix'!J17","v":"1) Chicken Piccata /Lemon & Capers"},"Sauce 6","400 pcs"]
[null,"PASTA DISH",{"$f":"'Menu Matrix'!J18","v":"2) Pasta Amatriciana"},"Sauce 6","10 kg"]
["DESTINATIONS",null,{"$f":"'Menu Matrix'!J19","v":"ASIAN   "}]
["C1","CONDIMENTS",{"$f":"'Menu Matrix'!J20","v":"A1 / Mustard / Ketchup / Sriracha"}]
[null,null,{"$f":"'Menu Matrix'!J21","v":"Worchestershire / Soy Sauce / Malt V"}]
["C2","VEGETABLES     SIDE ITEM",{"$f":"'Menu Matrix'!J22","v":"1) Sweet & Sour Broccoli"},"Lido Hot","40 Kg"]
[null,null,{"$f":"'Menu Matrix'!J23","v":"2) Sesame-Soy Bok Choy"},"Lido Hot","30 Kg"]
["C3","PROTEIN             SIDE ITEM",{"$f":"'Menu Matrix'!J24","v":"1) Pork & Shrimp Shumai/Ponzu Sauce"},"Lido Hot","50 Dozen"]
[null,null,{"$f":"'Menu Matrix'!J25","v":"2) Kungpao Chicken Box"},"Lido Hot","60 Kg"]
["C4","STARCH DISH      SIDE ITEM",{"$f":"'Menu Matrix'!J26","v":"1) Asian Sticky Rice Bowl"},"Lido Hot","10 Kg"]
[null,null,{"$f":"'Menu Matrix'!J27","v":"2) Korean Stir-fry Noodles"},"Lido Hot","30 kg"]
["C5","NEUTRAL",{"$f":"'Menu Matrix'!J28","v":0}]
[null,null,{"$f":"'Menu Matrix'!J29","v":"GARDEN SOUP KETTLE"}]
["D1","SOUPS",{"$f":"'Menu Matrix'!J30","v":"1) Daily Soup Main Dining"},"Soup 5","25 Ltr"]
[null,null,{"$f":"'Menu Matrix'!J31","v":"2) Daily Soup Main Dining"},"Soup 5","25 Ltr"]
["D2","TOPPINGS",{"$f":"'Menu Matrix'!J32","v":"Scallions / Bacon Bits / Croutons "},"Bell Box","2 Kg"]
[null,null,{"$f":"'Menu Matrix'!J33","v":"Parmesan / Red Onion / Tofu"},"Bell Box"]
[null,null,{"$f":"'Menu Matrix'!J34","v":"HARVEST SALADS"}]
["E1","Leaf Individual",{"$f":"'Menu Matrix'!J35","v":"Sweet-Chili Cabbage Salad"},"Gm 6","12 kg"]
[null,"Grain Individual",{"$f":"'Menu Matrix'!J36","v":"French Lentil Salad"},"Gm 6","12 kg"]
[null,"Veg Individual ",{"$f":"'Menu Matrix'!J37","v":"Roasted Beet & Goat Cheese"},"Gm 5","20 Kg"]
[null,"Crunch Item",{"$f":"'Menu Matrix'!J38","v":"Sesame Spiced Wontons"},"Gm 14","3 Kg"]
[null,"Garnishes",{"$f":"'Menu Matrix'!J39","v":"Walnuts / Almonds / Pistachio"},"Gm 14","3 Kg"]
[null,null,{"$f":"'Menu Matrix'!J40","v":"COMPOSED SALADS"}]
["E2","Grain Salad LG",{"$f":"'Menu Matrix'!J41","v":"French Lentil Salad"},"Gm 6","10 Kg"]
[null,"Pasta Salad LG",{"$f":"'Menu Matrix'!J42","v":"Asian Noodle-Peanut Salad"},"Gm 5","10 Kg"]
[null,"Fruit Salad LG",{"$f":"'Menu Matrix'!J43","v":"Mango-Sesame-Chili Fruit Salad"},"Fruit 5","15 can"]
[null,"Roasted Veg",{"$f":"'Menu Matrix'!J44","v":"Roasted Carrots & Peppers"},"Gm 14","10 Kg"]
[null,"Cheese Garnish",{"$f":"'Menu Matrix'!J45","v":"Blue Cheese / Parmesan Cheese"},"Gm 14","5 kg"]
[null,"Bread Garnish",{"$f":"'Menu Matrix'!J46","v":"Garlic Bread / Parmesan Bread"},"Gm 14","10 Loaf"]
[null,null,{"$f":"'Menu Matrix'!J47","v":"FRESH MARKET GREENS"}]
["F1","Leaf Lettuce",{"$f":"'Menu Matrix'!J48","v":"Mixed Greens / Iceberg"},"Gm 6","40 Kg"]
[null,"Leaf Lettuce",{"$f":"'Menu Matrix'!J49","v":"Shredded Green & Red Cabbage"},"Gm 5","40 Kg"]
[null,"Tomato Salad",{"$f":"'Menu Matrix'!J50","v":"Sliced Tomato & Red Onion"},"G m14","10 Kg ea"]
[null,"Potato Salad",{"$f":"'Menu Matrix'!J51","v":"Lemon Pepper Potato Salad"},"G m14","5 kg"]
[null,"Crudités",{"$f":"'Menu Matrix'!J52","v":"Cauliflower/Broccoli/Cherry Tomato"},"Veg Prep","5 kg"]
[null,null,{"$f":"'Menu Matrix'!J53","v":"FRESH MARKET MEATS"}]
["F2","Deli Meats",{"$f":"'Menu Matrix'!J54","v":"Mortadella / Paprika Turkey"},"Gm 14","5 kg"]
[null,"Cured Meat",{"$f":"'Menu Matrix'!J55","v":"Bresaola"},"Gm 14","5 kg"]
[null,"Cheeses",{"$f":"'Menu Matrix'!J56","v":"Cheddar / Gouda"},"Gm 14","5 kg"]
[null,"Pickles",{"$f":"'Menu Matrix'!J57","v":"Red Onion-Cornichons-Giardiniera-Green Olives - Kalamata Olives"},"Gm 14","5 kg"]
[null,"Breads",{"$f":"'Menu Matrix'!J58","v":"Garlic Parmesan Bread"},"Gm 14","10 Loaf"]
[null,"Condiments",{"$f":"'Menu Matrix'!J59","v":"Dijon Mustard - Mayonnaise"},"Gm 14","2 Kg"]
[null,"STATION",{"$f":"'Menu Matrix'!J60","v":"DAY 7"}]
[null,null,{"$f":"'Menu Matrix'!J61","v":"ORCHARD JUICE BAR"}]
["G1","JUICES",{"$f":"'Menu Matrix'!J62","v":"1) Watermelon"},"Veg Prep","10 Ltrs"]
[null,null,{"$f":"'Menu Matrix'!J63","v":"2) Cantaloupe"},"Veg Prep","10 Ltrs"]
[null,null,{"$f":"'Menu Matrix'!J64","v":"3) Mixed Fruit"},"Veg Prep","10 Ltrs"]
[null,null,{"$f":"'Menu Matrix'!J65","v":"4) Chef's Special"},"Veg Prep","10 Ltrs"]
[null,"SANGRIA MIX",{"$f":"'Menu Matrix'!J66","v":0}]
[null,null,{"$f":"'Menu Matrix'!J67","v":0}]
[null,null,{"$f":"'Menu Matrix'!J68","v":"SWEET DELIGHTS"}]
["H1","CHOCOLATE DIPPED ITEMS",{"$f":"'Menu Matrix'!J69","v":"Apples / Banana / Pear"}]
[null,null,{"$f":"'Menu Matrix'!J70","v":"Marshmallow / Banana"}]
[null,"CARAMEL FRUIT",{"$f":"'Menu Matrix'!J71","v":"Apples / Pears"}]
[null,"PARFAITS",{"$f":"'Menu Matrix'!J72","v":"Jello Trifle - Raspberry, Lemon, Watermelon Jello w/ Vanilla Custard"},"Pastry"]
[null,null,{"$f":"'Menu Matrix'!J73","v":"FRESH MARKET TOPPINGS"}]
["H2","TOPPINGS",{"$f":"'Menu Matrix'!J74","v":"1) Cherry Tomato Slice"},"Veg Prep","5 KG ea"]
[null,null,{"$f":"'Menu Matrix'!J75","v":"2) Red Onion - Dice"},"Veg Prep","5 KG ea"]
[null,null,{"$f":"'Menu Matrix'!J76","v":"3) Cucumber - Dice"},"Veg Prep","5 KG ea"]
[null,null,{"$f":"'Menu Matrix'!J77","v":"4) Celery Stalk - Dice"},"Veg Prep","5 KG ea"]
[null,null,{"$f":"'Menu Matrix'!J78","v":"5) Carrots - Dice"},"Veg Prep","5 KG ea"]
[null,null,{"$f":"'Menu Matrix'!J79","v":"6) Red Radish - Dice"},"Veg Prep","5 KG ea"]
[null,null,{"$f":"'Menu Matrix'!J80","v":"7) Mixed Bell Pepper - Dice"},"Veg Prep","5 KG ea"]
[null,null,{"$f":"'Menu Matrix'!J81","v":"8) Mushrooms - Sliced"},"Veg Prep","5 KG ea"]
[null,null,{"$f":"'Menu Matrix'!J82","v":"9) Yellow Corn"},"Veg Prep","5 KG ea"]
[null,null,{"$f":"'Menu Matrix'!J83","v":"10) Garbanzo Beans"},"Veg Prep","5 KG ea"]
[null,null,{"$f":"'Menu Matrix'!J84","v":"11) Black Beans"},"Gm 14","5 KG ea"]
[null,null,{"$f":"'Menu Matrix'!J85","v":"12) Green Olives"},"Gm 14","5 KG ea"]
[null,null,{"$f":"'Menu Matrix'!J86","v":"13) Sunflower Seeds"},"Gm 14","2 Kg "]
[null,null,{"$f":"'Menu Matrix'!J87","v":"14) Walnuts"},"Gm 14","2 Kg "]
[null,null,{"$f":"'Menu Matrix'!J88","v":"15) Croutons"},"Gm 14","2 Kg "]
[null,"DRESSINGS",{"$f":"'Menu Matrix'!J89","v":"1) Ranch"},"Gm 14","1 Gal"]
[null,null,{"$f":"'Menu Matrix'!J90","v":"2) Caesar"},"Gm 14","1 Gal"]
[null,null,{"$f":"'Menu Matrix'!J91","v":"3) Balsamic"},"Gm 14","1 Gal"]
[null,null,{"$f":"'Menu Matrix'!J92","v":"4) Italian"},"Gm 14","1 Gal"]
[null,null,{"$f":"'Menu Matrix'!J93","v":"5) Low-Fat Yogurt"},"Gm 14","1 Gal"]
[null,null,{"$f":"'Menu Matrix'!J94","v":"6) Blue Cheese"},"Gm 14","1 Gal"]
[null,null,{"$f":"'Menu Matrix'!J95","v":"7) Thousand Island"},"Gm 14","1 Gal"]
[null,null,{"$f":"'Menu Matrix'!J96","v":"8) Shallot"},"Gm 6","3 Ltr"]
[null,null,{"$f":"'Menu Matrix'!J97","v":"9) Dijon Mustard"},"Gm 14",".5 kg"]
[null,null,{"$f":"'Menu Matrix'!J98","v":"PASTRY COUNTER"}]
["H3","Fruit Tart",{"$f":"'Menu Matrix'!J99","v":"Fresh Fruit Tartlet"},"Pastry"]
[null,"Pastry",{"$f":"'Menu Matrix'!J100","v":"Strawberry Short Cake"},"Pastry"]
[null,"Pastry",{"$f":"'Menu Matrix'!J101","v":"Lemon Cream Cake"},"Pastry"]
[null,"Pastry",{"$f":"'Menu Matrix'!J102","v":"Peach Almond Torte"},"Pastry"]
[null,"Cupcakes",{"$f":"'Menu Matrix'!J103","v":"Peach / Coconut Frosting"},"Pastry"]
[null,null,{"$f":"'Menu Matrix'!J104","v":"FRESH & FAST - GF"}]
["H4","Gluten Free",{"$f":"'Menu Matrix'!J105","v":"1) Cocktail Fruit Mousse Cake"},"Pastry"]
[null,null,{"$f":"'Menu Matrix'!J106","v":"2) Lemon Cream Pudding"},"Pastry"]
[null,"Sugar Free",{"$f":"'Menu Matrix'!J107","v":"1) Black Forest Cake"},"Pastry"]
[null,null,{"$f":"'Menu Matrix'!J108","v":"2) Coconut Cream Pie"},"Pastry"]
["H5","H5 - HOT",{"$f":"'Menu Matrix'!J109","v":"Sticky Toffee Pudding / Caramel S"},"Pastry"]
[null,null,{"$f":"'Menu Matrix'!J110","v":"FRUIT STAND FAVORITES"}]
["I-1","Whole Fruits",{"$f":"'Menu Matrix'!J111","v":"Banana / Red Apple / Pears / Peach   Green Apple / Oranges"},"Gm 14","50 Kg ea"]
[null,"Sliced Fruits",{"$f":"'Menu Matrix'!J112","v":"Watermelon/Pineapple/  Cantaloupe  Honeydew Melon"},"Fruit 5","100 kg ea"]
[null,null,{"$f":"'Menu Matrix'!J113","v":"OVEN BAKED BREADS"}]
["I-2","Current Rolls",{"$f":"'Menu Matrix'!J114","v":"1) Plain Crunchy Rolls"}]
[null,null,{"$f":"'Menu Matrix'!J115","v":"2) Plain Soft Rolls"},"Bakery"]
[null,null,{"$f":"'Menu Matrix'!J116","v":"3) Six Cereal Rolls"},"Bakery"]
[null,"Loafs",{"$f":"'Menu Matrix'!J117","v":"4) Muesli Loaf Sliced"},"Bakery"]
[null,null,{"$f":"'Menu Matrix'!J118","v":"5) Rosemary Focaccia"},"Bakery"]
[null,"Condiments",{"$f":"'Menu Matrix'!J119","v":"Butter & Preserves"},"Bakery"]
[null,null,{"$f":"'Menu Matrix'!J120","v":"SANDWICH SHOP"}]
["I-3","Baguette or Bagel",{"$f":"'Menu Matrix'!J121","v":"Chicken-Bacon Caesar on a Toasted Bagel w/Tomato "},"Gm 5",150]
[null,"Focaccia",{"$f":"'Menu Matrix'!J122","v":"Roasted Vegetables w/ Buffalo Mozz, Sundried Tom Pesto & Spinach"},"Gm 5",150]
[null,"Hamburger Bun",{"$f":"'Menu Matrix'!J123","v":"Ham & Salami with Cheddar Cheese, Tomato, Iceberg lettuce & pickles"},"Gm 5",150]
[null,"Hot Dog Bun",{"$f":"'Menu Matrix'!J124","v":"Roasted Turkey BLT  with Swiss Cheese & Mayonnaise"},"Gm 5",150]
[null,null,{"$f":"'Menu Matrix'!J125","v":"FRESH & FAST STATION - 2"}]
["I-4","Chips",{"$f":"'Menu Matrix'!J126","v":"1) Potato Chips"},"Gm 14","10 Packet"]
[null,null,{"$f":"'Menu Matrix'!J127","v":"2) Salt & Vinegar Chips"},"Gm 14"]
[null,null,{"$f":"'Menu Matrix'!J128","v":"3) Nacho Chips"},"Gm 14","5 pkt"]
[null,"Pickles",{"$f":"'Menu Matrix'!J129","v":"1) Dill Pickles"},"Gm 14","1 Gal"]
[null,"Salsa",{"$f":"'Menu Matrix'!J130","v":"Yello Corn / Tomato / Black Bean"},"Gm 14","10 Kg"]
["I-5","Savory Hot",{"$f":"'Menu Matrix'!J131","v":"Sticky Toffee Pudding / Caramel S"},"Pastry"]
[null,"STATION",{"$f":"'Menu Matrix'!J132","v":"DAY 7"}]
[null,null,{"$f":"'Menu Matrix'!J133","v":"ASIAN STATION "}]
["J1","SALAD",{"$f":"'Menu Matrix'!J134","v":"Sweet-Chili Cabbage Salad"},"Gm 6","12 Kg"]
[null,"SALAD",{"$f":"'Menu Matrix'!J135","v":"French Lentil Salad"},"Gm 5","12 Kg"]
[null,"SALAD",{"$f":"'Menu Matrix'!J136","v":"Roasted Beet & Goat Cheese"},"Gm 5","12 Kg"]
[null,"PASTA SALAD",{"$f":"'Menu Matrix'!J137","v":"Asian Noodle-Peanut Salad"},"Gm 5","12 Kg"]
[null,null,{"$f":"'Menu Matrix'!J138","v":"STIR-FRY RICE & NOODLES"}]
["J2","PROTEINS",{"$f":"'Menu Matrix'!J139","v":"1) Chinese Sausage (sliced)"},"Lido Hot","3 Kg"]
[null,null,{"$f":"'Menu Matrix'!J140","v":"2) Fried Chicken (cubed)"},"Lido Hot","3 Kg"]
[null,null,{"$f":"'Menu Matrix'!J141","v":"3) Fried Beef (cubed)"},"Lido Hot","3 Kg"]
[null,null,{"$f":"'Menu Matrix'!J142","v":"4) Fried Pork (pulled)"},"Lido Hot","3 Kg"]
[null,null,{"$f":"'Menu Matrix'!J143","v":"5) Fried Shrimp (whole)"},"Lido Hot","3 Kg"]
[null,null,{"$f":"'Menu Matrix'!J144","v":"6) Egg Scramble (julienne)"},"Lido Hot","3 Kg"]
[null,"VEGETABLES",{"$f":"'Menu Matrix'!J145","v":"1) Carrot (julienne)"},"Veg Prep","3 Kg"]
[null,null,{"$f":"'Menu Matrix'!J146","v":"2) Red Pepper (diced)"},"Veg Prep","3 Kg"]
[null,null,{"$f":"'Menu Matrix'!J147","v":"3) Green Pepper (diced)"},"Veg Prep","3 Kg"]
[null,null,{"$f":"'Menu Matrix'!J148","v":"4) Green Peas "},"Veg Prep","3 Kg"]
[null,null,{"$f":"'Menu Matrix'!J149","v":"5) Green Cabbage (shredded)"},"Veg Prep","3 Kg"]
[null,null,{"$f":"'Menu Matrix'!J150","v":"6) Bamboo Shoots (sliced, canned)"},"Steamer","3 Kg"]
[null,"TOPPINGS",{"$f":"'Menu Matrix'!J151","v":"1) Tofu (cubed)"},"Steamer","3 Kg"]
[null,null,{"$f":"'Menu Matrix'!J152","v":"2) Onions (diced)"},"Steamer","3 Kg"]
[null,null,{"$f":"'Menu Matrix'!J153","v":"3) Scallions (chopped)"},"Steamer","3 Kg"]
[null,null,{"$f":"'Menu Matrix'!J154","v":"4) Cilantro (rough chop)"},"Steamer","3 Kg"]
[null,null,{"$f":"'Menu Matrix'!J155","v":"5) Jalapeno (sliced)"},"Steamer","3 Kg"]
[null,null,{"$f":"'Menu Matrix'!J156","v":"6) Edamame (pods)"},"Steamer","3 Kg"]
[null,"GARNISHES",{"$f":"'Menu Matrix'!J157","v":"Peanuts/Sesame Seed/Bonito Flakes"},"Steamer","2 Kg"]
["J3","NOODLES",{"$f":"'Menu Matrix'!J158","v":"Udon Noodle / Ramen Noodle"},"Lido Hot","20 Kg"]
["J4","BROTH & GARNISH",{"$f":"'Menu Matrix'!J159","v":"Shrimp / Chicken / Scallops/Broth"},"Lido Hot","5 Kg"]
["K1",null,{"$f":"'Menu Matrix'!J160","v":"STIR-FRY STAGING AREA"}]
["K2","ACTION GARNISH",{"$f":"'Menu Matrix'!J161","v":"Scallions & Spinach w/ Port Reduction, Gorgonzola Garnish"},"Lido Hot"]
[null,null,{"$f":"'Menu Matrix'!J162","v":0}]
["K3","DEEP DISH PIZZA",{"$f":"'Menu Matrix'!J163","v":"CARAMELIZED PEAR & FIG PIZZA W/ RICOTTA & PARMESAN CHEESE"},"Bakery"]
["K4","HOT SANDWICH",{"$f":"'Menu Matrix'!J164","v":"Italian Salami Panini"},"Grill 6"]
["K5","POTATO DISH",{"$f":"'Menu Matrix'!J165","v":" Garlic Mashed Potato"},"Soup 6"]
[null,null,{"$f":"'Menu Matrix'!J166","v":"TEX-MEX STATION"}]
["L1","CAESAR SALAD STATION",{"$f":"'Menu Matrix'!J167","v":"Romaine Lettuce / Parmesan / Crouton  Anchovies/Caesar Dressing"},"Gm 14"]
[null,"WHOLE FRUITS",{"$f":"'Menu Matrix'!J168","v":"Apple/Orange/Pears/Peach/Banana"},"Gm 14"]
[null,"FRUIT SALAD",{"$f":"'Menu Matrix'!J169","v":"Mango-Sesame-Chili Fruit Salad"},"Fruit 5"]
["L2","CHIPS & SALSA STATION",{"$f":"'Menu Matrix'!J170","v":"1) Jalapeno Slice 2) Tomato Salsa       3) Salsa Verde 4) Black bean Salsa     5) Roasted Corn Salsa 6) Guacamole   7) Sour Cream  8) Queso Fresco         9) Tabasco 10) Chipotle Mayo"},"Gm 14"]
["L3","MEX ITEMS",{"$f":"'Menu Matrix'!J171","v":"1)  Chicken Enchilada / Cheese"},"Soup 6"]
[null,null,{"$f":"'Menu Matrix'!J172","v":"1) Buffalo Chicken Wings"}]
["L4","BYO- TACOS",{"$f":"'Menu Matrix'!J173","v":"Beef / Chicken / Pork / Peppers / Flour Tortillas"},"Lido Hot"]
[null,null,{"$f":"'Menu Matrix'!J174","v":0}]
["M1","M1 - COLD",{"$f":"'Menu Matrix'!J175","v":"CONDIMENT STATION"}]
[null,"Breads",{"$f":"'Menu Matrix'!J176","v":"Crisp Rolls / Sunflower Seed Rolls"},"Bakery"]
[null,null,{"$f":"'Menu Matrix'!J177","v":"Square Rolls / Brioche Rolls"},"Bakery"]
[null,null,{"$f":"'Menu Matrix'!J178","v":"TEX-MEX ITEMS"},"Gm 14"]
[null,"Salsas",{"$f":"'Menu Matrix'!J179","v":"Tomato / Black Bean / Verde"}]
[null,"Bottled Sauces",{"$f":"'Menu Matrix'!J180","v":"Tabasco Red & Green / Tapatio"}]
[null,"Condiments",{"$f":"'Menu Matrix'!J181","v":"Lime Wedges / Sour Cream"}]
[null,null,{"$f":"'Menu Matrix'!J182","v":"ASIAN ITEMS"}]
[null,"Craft Sauces",{"$f":"'Menu Matrix'!J183","v":"Spicy Mayo/Korean BBQ/Chili Sauce"}]
[null,"Bottled Sauces",{"$f":"'Menu Matrix'!J184","v":"Soy/Oyster/Sriracha/Ponzu/Peanut"}]
[null,"Condiments",{"$f":"'Menu Matrix'!J185","v":"Pickled Ginger / Peanuts/Sesame"}]
[]
[null,null,null,"Sous chef DK 5 / 6 check off sign                            Time"]
[]
[null,null,null,"Sous Chef recive check off sign                                Time"]
[]
[null,null,null,"Food testing ",null,"Ok","not OK"]

{"sheet":"Menu Vessel List","index":9,"n_rows":154,"n_cols":10,"rows_kept":154,"cut":false,"hidden":true,"merged":[[71,0,78,0],[120,0,126,0],[50,0,54,0],[56,0,61,0],[63,0,64,0],[80,0,84,0],[86,0,89,0],[102,0,105,0],[107,0,111,0],[66,0,68,0],[66,1,67,1],[27,1,28,1],[24,0,24,1],[25,0,26,0],[25,1,26,1],[29,0,30,0],[29,1,30,1],[27,0,28,0],[32,1,33,1],[34,0,35,0],[34,1,35,1],[37,0,41,0],[43,0,48,0],[32,0,33,0],[17,4,18,4],[17,6,18,6],[17,7,18,7],[17,8,18,8],[63,1,64,1],[6,1,13,1],[6,0,13,0],[71,1,75,1],[141,3,142,3],[141,4,142,4],[115,0,118,0],[135,0,137,0],[141,0,142,0],[141,1,142,1],[86,1,87,1],[88,1,89,1],[92,0,93,0],[95,0,100,0],[95,1,97,1],[98,1,99,1],[17,2,18,2],[141,2,142,2],[107,1,109,1],[141,8,142,8],[141,9,142,9],[143,0,153,0],[141,5,142,5],[141,6,142,6],[141,7,142,7]]}
[null,"STATION","LUNCH / DAY 0  x 2","LUNCH / DAY 1","LUNCH / DAY 2","LUNCH / DAY 3","LUNCH / DAY 4","LUNCH / DAY 5","LUNCH / DAY 6","LUNCH / DAY 7"]
[null,null,"WESTERN DESTINATIONS","WESTERN DESTINATIONS","WESTERN DESTINATIONS","WESTERN DESTINATIONS","WESTERN DESTINATIONS","WESTERN DESTINATIONS","WESTERN DESTINATIONS","WESTERN DESTINATIONS"]
["A1","GF-PASTA","Zucchini, Peppers, Basil Pesto","Mushrooms, Basil, Sundried Tomato","Pomodoro Tomato","Garlic, Olives, Cherry Tomato","Spinach, Artichokes, Roasted Pepper","Mushroom, Spinach, Tomato","Garlic, Parsley, Chickpeas, Peppers","Asparagus, Tomato, Garlic, Olive Oil"]
["A2","HOT SANDWICH","  Croque Monsieur - Open Face","Pastrami on Rye","Traditional Cuban Sandwich","Turkey Ciabatta w/Peppers & Mozz","Spicy Chicken & Cheese","Philly Cheese Steak","Royal w/ Cheese Sliders","Italian Salami Panini"]
["A3","TEX-MEX ITEM","1) Chicken Cheese Burritos","1) Crispy Steak & Cheese Tacos","1) Sonoro Hot Dog / Corn Salsa","1) Steak Fajita's","1) Veg Enchilada, Marinara, Mozz","1) Sonoro Hot Dogs","1) Chicken & Steak Nachoes","1) Chicken Enchilada / Cheese"]
[null,"SIDE ITEM","2) Fried Tortilla Chips","2) N/A","Sriracha Mayo Drizzle Over","2) Flour Tortillas","2) Spicy Black Bean Fritters","2) Pineapple, cilantro, jalapeno salsa","black beans, cheese sauce, scallions","2) Crispy Corn Tortilla Strips"]
["A4","CONDIMENT GARNISHES","Jalapeno Sliced","Jalapeno Sliced","Jalapeno Sliced","Jalapeno Sliced","Jalapeno Sliced","Jalapeno Sliced","Jalapeno Sliced","Jalapeno Sliced"]
[null,null,"Tomato Salsa","Tomato Salsa","Tomato Salsa","Tomato Salsa","Tomato Salsa","Tomato Salsa","Tomato Salsa","Tomato Salsa"]
[null,null,"Salsa Verde","Salsa Verde","Salsa Verde","Salsa Verde","Salsa Verde","Salsa Verde","Salsa Verde","Salsa Verde"]
[null,null,"Black Bean Salsa","Black Bean Salsa","Black Bean Salsa","Black Bean Salsa","Black Bean Salsa","Black Bean Salsa","Black Bean Salsa","Black Bean Salsa"]
[null,null,"Roasted Corn Salsa","Roasted Corn Salsa","Roasted Corn Salsa","Roasted Corn Salsa","Roasted Corn Salsa","Roasted Corn Salsa","Roasted Corn Salsa","Roasted Corn Salsa"]
[null,null,"Guacamole","Guacamole","Guacamole","Guacamole","Guacamole","Guacamole","Guacamole","Guacamole"]
[null,null,"Sour Cream","Sour Cream","Sour Cream","Sour Cream","Sour Cream","Sour Cream","Sour Cream","Sour Cream"]
[null,null,"Shredded Cheddar& Provolone","Shredded Cheddar& Provolone","Shredded Cheddar& Provolone","Shredded Cheddar& Provolone","Shredded Cheddar& Provolone","Shredded Cheddar& Provolone","Shredded Cheddar& Provolone","Shredded Cheddar& Provolone"]
[null,null,"LUNCH BAZAAR","LUNCH BAZAAR","LUNCH BAZAAR","LUNCH BAZAAR","LUNCH BAZAAR","LUNCH BAZAAR","LUNCH BAZAAR","LUNCH BAZAAR"]
["B1","MEAT","1) Chili Glazed Pork Butt/ Napa Cab","1) Churrasco Steak w/Chimichurri","1) Chipotle Crusted Pork Butt","1) Breaded Veal Roulades/ Tomato ","1) Sirloin-Prosciutto-Rosemary Sauce","1) Breaded Pork Chops","1) Mushroom-herb Flank Steak Roll","1) Shaved Leg of Lamb Mix"]
[null,"POTATO DISH","2) Roasted Garlic Potatoes","2) Chili-Garlic Steak Fries","2) Crushed Sweet Potato Mash","2) Roasted Bliss & Mushrooms","2) Crushed Potato/Olive Oil & Garlic","2) Sweet Potato Marshmallow Bake","2) Breaded Potato Croquettes","2) Garlic Mashed Potato"]
["B2","ACTION STATION","Chiffonade Caesar Salad, Caesar Dressing & Grated Parmesan","Arugula, Truffle Oil, Proscuitto ","Curry Aioli w/ Tabbouleh Salad Topping for Carving Item","Spinach Salad / Balsamic Dressing","Topped with Pickled Red Onions & Gorgonzola","Shaved roast beef, white truffle mayonnaise, arugula & parmesan","Pickled Vegetable Salad w/ Herbs","Scallions & Spinach / Port Reduction"]
[null,"GARNISH ITEM",null,"Balsamic Reduction",null,"Shaved Coppa Ham",null,null,null,"Gorgonzola Sprinkle"]
["B3","DEEP DISH   CARVING ITEM","SHRIMP CAESAR PIZZA W/ TOMATO GARLIC & OLIVE OIL","ROASTED PEAR, RICOTTA PIZZA W/ PROSCUITTO & GARNISHES","MOROCCAN LEG OF LAMB  W/QUINOA & DRIED FRUIT","CAPRESE PIZZA W/ WHITE GARLIC SAUCE & BASIL PESTO","ROSEMARY FLANK STEAK W/ GARLIC SPINACH & GORGONZOLA","WILD MUSHROOM PIZZA W/ GARLIC SPINACH, MOZZ & PARM","PORK LOIN STUFFED W/ NUTS & DRIED FRUITS, BACON WRAPPED","CARAMELIZED PEAR & FIG PIZZA W/ RICOTTA & PARMESAN "]
["B4","FISH/SEAFOOD","1) English Fried Fish Filets","1) Lemon Caper Tilapia / S-Rice","1) Sesame Crusted Tuna / Bokchoy","1) Grilled Salmon & Cherry Tomato ","1) Blackened Snapper & Corn Salsa","1) Mediterranean Codfish / Tomato Gr","1) Lemon Pepper Salmon/Spinach","1) Citrus Crusted Tilapia / S-Rice"]
[null,"VEGETABLES","2) Peas & Carrots","2) Green Beans w/ Toasted Almonds","2) Roasted Carrots & Walnuts","2) Roasted Parmesan Veggies/ S-Rice","2) Fried Cauliflower Bites / S-Rice","2) Mixed Roasted Vegetables","2) Garlic-Lemon Broccoli","2) Roasted Garlic Tomatoes"]
["B5","CHICKEN DISH","1) Chicken Piccata /Lemon & Capers","1) Stuffed Mozz / Wrapped Bacon","1) Mushroom Crusted Chicken","1) Chicken Parm Puff Tarts","1) Cilantro-Lime Crusted Chicken","1) Apricot Glazed Chicken/ Spinach","1) Chicken Lasagna/Pomodro/Mozz","1) Buttered Sage & Prosciutto Breast"]
[null,"PASTA DISH","2) Rigatoni Alfredo w/ Parmesan","2) Wild Mushroom Cream Elbow Pasta","2) Rigatoni Tuscan Pasta","2) Conchiglie Primavera Pasta","2) Baked Pipe Pomodoro","2) Carbonara Bowtie","2) Macaroni in Creamed Tomato","2) Pasta Amatriciana"]
["DESTINATIONS",null,"ENGLISH","FRENCH","CARIBBEAN","ITALIAN","MEXICAN ","MEDITERRANEAN","SOUTHERN  ","ASIAN   "]
["C2","VEGETABLES     SIDE ITEM","1) Buttered String Beans","1) Sliced Ratatouille","1) Curry Coconut Cauliflower","1) Eggplant Parmesan","1) Roasted Elote Corn","1) Green Beans-tomato-garlic-onion","1) Cajun Roasted Okra/ Red Peppers","1) Sweet & Sour Broccoli"]
[null,null,"2) Roasted Tomatoes","2) Creamed Leeks & Spinach Parm","2) Oven Roasted Brussel Sprouts","2) Roasted Artichokes & Peppers","2) Fajita Peppers & Onions","2) Chickpeas-eggplant-peppers-olive","2) Creamed Corned & Mushrooms","2) Sesame-Soy Bok Choy"]
["C3","PROTEIN             SIDE ITEM","1) Sausage Rolls","1) Steak Au Poivre Baguette","1) Caramelized Jerk Chicken Legs","1) Meatball Mozzarella Bowl","1) Pulled Pork Soft Tacos","1) Beef Kafta - Giardiniere-olive chop","1) Chicken & Waffles-Cranberries","1) Shumai Wontons"]
[null,null,"2) Green Buttered Cabbage","2) Peppercorn Cream Sauce","2) Fried Pineapple ","2) N/A","2) Pineapple Salsa","2) Chili Tahini Sauce","2) Chipotle Maple Syrup ","2) Kungpao Chicken Box"]
["C4","STARCH DISH      SIDE ITEM","1) French Fries","1) Rice Pilaf","1) Caribbean Rice","1) Polenta Fries / Marinara Sauce","1) Mexican Red Rice","1) Yellow Basmati Rice","1) BBQ Bean Casserole/Puff Pastry","1) Asian Sticky Rice Bowl"]
[null,null,"2) Steamed Rice","2) Au Gratin Potatoes","2) Curried Potatoes-Plantain Roasted","2) Jasmine Rice","2) Refried Baked Beans & Cheese","2) Toasted Naan Bread","2) Steamed Rice","2) Korean Stir-fry Noodles"]
[null,null,"GARDEN SOUP KETTLE","GARDEN SOUP KETTLE","GARDEN SOUP KETTLE","GARDEN SOUP KETTLE","GARDEN SOUP KETTLE","GARDEN SOUP KETTLE","GARDEN SOUP KETTLE","GARDEN SOUP KETTLE"]
["D1","SOUPS","1) Daily Soup Main Dining","1) Daily Soup Main Dining","1) Daily Soup Main Dining","1) Daily Soup Main Dining","1) Daily Soup Main Dining","1) Daily Soup Main Dining","1) Daily Soup Main Dining","1) Daily Soup Main Dining"]
[null,null,"2) Daily Soup Main Dining","2) Daily Soup Main Dining","2) Daily Soup Main Dining","2) Daily Soup Main Dining","2) Daily Soup Main Dining","2) Daily Soup Main Dining","2) Daily Soup Main Dining","2) Daily Soup Main Dining"]
["D2","TOPPINGS","Scallions / Bacon Bits / Croutons ","Scallions / Bacon Bits / Croutons ","Scallions / Bacon Bits / Croutons ","Scallions / Bacon Bits / Croutons ","Scallions / Bacon Bits / Croutons ","Scallions / Bacon Bits / Croutons ","Scallions / Bacon Bits / Croutons ","Scallions / Bacon Bits / Croutons "]
[null,null,"Parmesan / Red Onion / Tofu","Parmesan / Red Onion / Tofu","Parmesan / Red Onion / Tofu","Parmesan / Red Onion / Tofu","Parmesan / Red Onion / Tofu","Parmesan / Red Onion / Tofu","Parmesan / Red Onion / Tofu","Parmesan / Red Onion / Tofu"]
[null,null,"HARVEST SALADS","HARVEST SALADS","HARVEST SALADS","HARVEST SALADS","HARVEST SALADS","HARVEST SALADS","HARVEST SALADS","HARVEST SALADS"]
["E1","Leaf Individual","Sweet-Chili Cabbage Salad","California Kale-Cranberry Salad","Tabbouleh - Parsley Salad","Chili Lime Cabbage Salad","California Kale-Cherry Salad","Tabbouleh - Parsley Salad","Chili Lime Cabbage Salad","Sweet-Chili Cabbage Salad"]
[null,"Grain Individual","French Lentil Salad","Tijuana Black Bean Salad","Tunisian Quinoa Salad","Louisiana White Bean Salad","Tijuana Black Bean Salad","Tunisian Quinoa Salad","Louisiana White Bean Salad","French Lentil Salad"]
[null,"Veg Individual ","Roasted Beet & Goat Cheese","Kentucky Cobb Salad","Turkish Chickpea Salad","Caprese Salad w/ Balsamic","Kentucky Cobb Salad","Turkish Chickpea Salad","Caprese Salad w/ Balsamic","Roasted Beet & Goat Cheese"]
[null,"Crunch Item","Sesame Spiced Wontons","Spicy Corn Tortilla Strips","Seasoned Pita Chips","Cajun-Garlic Bites","Spicy Corn Tortilla Strips","Seasoned Pita Chips","Cajun-Garlic Bites","Sesame Spiced Wontons"]
[null,"Garnishes","Walnuts / Almonds / Pistachio","Walnuts / Almonds / Pistachio","Walnuts / Almonds / Pistachio","Walnuts / Almonds / Pistachio","Walnuts / Almonds / Pistachio","Walnuts / Almonds / Pistachio","Walnuts / Almonds / Pistachio","Walnuts / Almonds / Pistachio"]
[null,null,"COMPOSED SALADS","COMPOSED SALADS","COMPOSED SALADS","COMPOSED SALADS","COMPOSED SALADS","COMPOSED SALADS","COMPOSED SALADS","COMPOSED SALADS"]
["E2","Grain Salad LG","French Lentil Salad","Tijuana Black Bean Salad","Turkish Chickpea Salad","Louisiana White Bean Salad","Tijuana Black Bean Salad","Turkish Chickpea Salad","Louisiana White Bean Salad","French Lentil Salad"]
[null,"Pasta Salad LG","Asian Noodle-Peanut Salad","Sicilian Ham & Pasta Salad","Mediterranean Pasta Salad","Tuscan Pasta Salad","Sicilian Ham & Pasta Salad","Mediterranean Pasta Salad","Tuscan Pasta Salad","Asian Noodle-Peanut Salad"]
[null,"Fruit Salad LG","Mango-Sesame-Chili Fruit Salad","Apricot & Cherry Fruit Salad","Spicy Pear & Pineapple Salad","Cajun Peach Salad","Apricot & Cherry Fruit Salad","Spicy Pear & Pineapple Salad","Cajun Peach Salad","Mango-Sesame-Chili Fruit Salad"]
[null,"Roasted Veg","Zucchini-Peppers-Onions","Roasted Asparagus-Tomato-Carrot","Roasted Mushroom & Tomato","Roasted Carrots & Peppers","Mixed Vegetables","Zucchini-Red Pepper- Eggplant","Roasted Mushroom & Tomato","Roasted Carrots & Peppers"]
[null,"Cheese Garnish","Blue Cheese / Parmesan Cheese","Blue Cheese / Parmesan Cheese","Blue Cheese / Parmesan Cheese","Blue Cheese / Parmesan Cheese","Blue Cheese / Parmesan Cheese","Blue Cheese / Parmesan Cheese","Blue Cheese / Parmesan Cheese","Blue Cheese / Parmesan Cheese"]
[null,"Bread Garnish","Garlic Bread / Parmesan Bread","Seasoned Bagel Chips","Garlic Bread / Parmesan Bread","Cheddar Cheese Bread","Seasoned Bagel Chips","Garlic Bread / Parmesan Bread","Cheddar Cheese Bread","Garlic Bread / Parmesan Bread"]
[null,null,"FRESH MARKET GREENS","FRESH MARKET GREENS","FRESH MARKET GREENS","FRESH MARKET GREENS","FRESH MARKET GREENS","FRESH MARKET GREENS","FRESH MARKET GREENS","FRESH MARKET GREENS"]
["F1","Leaf Lettuce","Mixed Greens / Spinach","Mixed Greens / Iceberg","Mixed Greens / Spinach","Mixed Greens / Iceberg","Mixed Greens / Spinach","Mixed Greens / Iceberg","Mixed Greens / Spinach","Mixed Greens / Iceberg"]
[null,"Leaf Lettuce","Shredded Green & Red Cabbage","Shredded Green & Red Cabbage","Shredded Green & Red Cabbage","Shredded Green & Red Cabbage","Shredded Green & Red Cabbage","Shredded Green & Red Cabbage","Shredded Green & Red Cabbage","Shredded Green & Red Cabbage"]
[null,"Tomato Salad","Sliced Tomato & Red Onion","Sliced Tomato & Red Onion","Sliced Tomato & Red Onion","Sliced Tomato & Red Onion","Sliced Tomato & Red Onion","Sliced Tomato & Red Onion","Sliced Tomato & Red Onion","Sliced Tomato & Red Onion"]
[null,"Potato Salad","Smoked Paprika Potato Salad","German Potato Salad","American Potato Salad","Lemon Pepper Potato Salad","German Potato Salad","American Potato Salad","Smoked Paprika Potato Salad","Lemon Pepper Potato Salad"]
[null,"Crudités","Carrots/Celery/Pepper/Radish","Cauliflower/Broccoli/Cherry Tomato","Cucumber/Radish/Peppers/Carrots","Carrots/Celery/Pepper/Radish","Cauliflower/Broccoli/Cherry Tomato","Cucumber/Radish/Peppers/Carrots","Carrots/Celery/Pepper/Radish","Cauliflower/Broccoli/Cherry Tomato"]
[null,null,"FRESH MARKET MEATS","FRESH MARKET MEATS","FRESH MARKET MEATS","FRESH MARKET MEATS","FRESH MARKET MEATS","FRESH MARKET MEATS","FRESH MARKET MEATS","FRESH MARKET MEATS"]
["F2","Deli Meats","Mortadella / Paprika Turkey","Rosemary Beef / Maple Glaze Ham","Mortadella / Turkey / Prosciutto","Mortadella / Paprika Turkey","Mortadella / Paprika Turkey","Mortadella / Paprika Turkey","Mortadella / Paprika Turkey","Mortadella / Paprika Turkey"]
[null,"Cured Meat","Salami ","Bresaola",null,"Salami ","Bresaola","Prosciutto","Salami ","Bresaola"]
[null,"Cheeses","Cheddar / Swiss","Cheddar / Havarti","Cheddar / Gouda","Cheddar / Swiss","Cheddar / Havarti","Cheddar / Gouda","Cheddar / Havarti","Cheddar / Gouda"]
[null,"Pickles","Red Onion-Cornichons-Giardiniera-Green Olives - Kalamata Olives","Red Onion-Cornichons-Giardiniera-Green Olives - Kalamata Olives","Red Onion-Cornichons-Giardiniera-Green Olives - Kalamata Olives","Red Onion-Cornichons-Giardiniera-Green Olives - Kalamata Olives","Red Onion-Cornichons-Giardiniera-Green Olives - Kalamata Olives","Red Onion-Cornichons-Giardiniera-Green Olives - Kalamata Olives","Red Onion-Cornichons-Giardiniera-Green Olives - Kalamata Olives","Red Onion-Cornichons-Giardiniera-Green Olives - Kalamata Olives"]
[null,"Breads","Garlic Parmesan Bread","Garlic Parmesan Bread","Garlic Parmesan Bread","Garlic Parmesan Bread","Garlic Parmesan Bread","Garlic Parmesan Bread","Garlic Parmesan Bread","Garlic Parmesan Bread"]
[null,"Condiments","Dijon Mustard - Mayonnaise","Dijon Mustard - Mayonnaise","Dijon Mustard - Mayonnaise","Dijon Mustard - Mayonnaise","Dijon Mustard - Mayonnaise","Dijon Mustard - Mayonnaise","Dijon Mustard - Mayonnaise","Dijon Mustard - Mayonnaise"]
[null,null,"ORCHARD JUICE BAR","ORCHARD JUICE BAR","ORCHARD JUICE BAR","ORCHARD JUICE BAR","ORCHARD JUICE BAR","ORCHARD JUICE BAR","ORCHARD JUICE BAR","ORCHARD JUICE BAR"]
["G1","JUICES","Watermelon / Cantaloupe/Pineapple","Watermelon / Cantaloupe/Pineapple","Watermelon / Cantaloupe/Pineapple","Watermelon / Cantaloupe/Pineapple","Watermelon / Cantaloupe/Pineapple","Watermelon / Cantaloupe/Pineapple","Watermelon / Cantaloupe/Pineapple","Watermelon / Cantaloupe/Pineapple"]
[null,null,"Chef's Special Mix","Chef's Special Mix","Chef's Special Mix","Chef's Special Mix","Chef's Special Mix","Chef's Special Mix","Chef's Special Mix","Chef's Special Mix"]
[null,null,"SWEET DELIGHTS","SWEET DELIGHTS","SWEET DELIGHTS","SWEET DELIGHTS","SWEET DELIGHTS","SWEET DELIGHTS","SWEET DELIGHTS","SWEET DELIGHTS"]
["H1","CHOCOLATE DIPPED ITEMS","Apples / Banana / Pear","Apples / Banana / Pear","Apples / Banana / Pear","Apples / Banana / Pear","Apples / Banana / Pear","Apples / Banana / Pear","Apples / Banana / Pear","Apples / Banana / Pear"]
[null,null,"Marshmallow / Banana","Marshmallow / Banana","Marshmallow / Banana","Marshmallow / Banana","Marshmallow / Banana","Marshmallow / Banana","Marshmallow / Banana","Marshmallow / Banana"]
[null,"CARAMEL FRUIT","Apples / Pears","Apples / Pears","Apples / Pears","Apples / Pears","Apples / Pears","Apples / Pears","Apples / Pears","Apples / Pears"]
[null,"PARFAITS","Classic Trifle","Jello Trifle","Fruit/Jello Trifle","Classic Trifle","Jello Trifle","Fruit/Jello Trifle","Jello Trifle","Fruit/Jello Trifle"]
[null,null,"FRESH MARKET TOPPINGS","FRESH MARKET TOPPINGS","FRESH MARKET TOPPINGS","FRESH MARKET TOPPINGS","FRESH MARKET TOPPINGS","FRESH MARKET TOPPINGS","FRESH MARKET TOPPINGS","FRESH MARKET TOPPINGS"]
["H2","TOPPINGS","Cherry Tomatoes / Red Onions ","Cherry Tomatoes / Red Onions ","Cherry Tomatoes / Red Onions ","Cherry Tomatoes / Red Onions ","Cherry Tomatoes / Red Onions ","Cherry Tomatoes / Red Onions ","Cherry Tomatoes / Red Onions ","Cherry Tomatoes / Red Onions "]
[null,null,"Cucumber / Celery / Carrots","Cucumber / Celery / Carrots","Cucumber / Celery / Carrots","Cucumber / Celery / Carrots","Cucumber / Celery / Carrots","Cucumber / Celery / Carrots","Cucumber / Celery / Carrots","Cucumber / Celery / Carrots"]
[null,null,"Radish / Peppers / Mushrooms","Radish / Peppers / Mushrooms","Radish / Peppers / Mushrooms","Radish / Peppers / Mushrooms","Radish / Peppers / Mushrooms","Radish / Peppers / Mushrooms","Radish / Peppers / Mushrooms","Radish / Peppers / Mushrooms"]
[null,null,"Corn / Garbanzo / Black Beans","Corn / Garbanzo / Black Beans","Corn / Garbanzo / Black Beans","Corn / Garbanzo / Black Beans","Corn / Garbanzo / Black Beans","Corn / Garbanzo / Black Beans","Corn / Garbanzo / Black Beans","Corn / Garbanzo / Black Beans"]
[null,null,"Olives / Walnuts / Croutons / Sunflwr","Olives / Walnuts / Croutons / Sunflwr","Olives / Walnuts / Croutons / Sunflwr","Olives / Walnuts / Croutons / Sunflwr","Olives / Walnuts / Croutons / Sunflwr","Olives / Walnuts / Croutons / Sunflwr","Olives / Walnuts / Croutons / Sunflwr","Olives / Walnuts / Croutons / Sunflwr"]
[null,"DRESSINGS","Ranch / Ceasar / Balsamic / Italian","Ranch / Ceasar / Balsamic / Italian","Ranch / Ceasar / Balsamic / Italian","Ranch / Ceasar / Balsamic / Italian","Ranch / Ceasar / Balsamic / Italian","Ranch / Ceasar / Balsamic / Italian","Ranch / Ceasar / Balsamic / Italian","Ranch / Ceasar / Balsamic / Italian"]
[null,null,"Low-fat Yogurt / Blue Cheese / ","Low-fat Yogurt / Blue Cheese / ","Low-fat Yogurt / Blue Cheese / ","Low-fat Yogurt / Blue Cheese / ","Low-fat Yogurt / Blue Cheese / ","Low-fat Yogurt / Blue Cheese / ","Low-fat Yogurt / Blue Cheese / ","Low-fat Yogurt / Blue Cheese / "]
[null,null,"Thousand Island","Thousand Island","Thousand Island","Thousand Island","Thousand Island","Thousand Island","Thousand Island","Thousand Island"]
[null,null,"PASTRY COUNTER","PASTRY COUNTER","PASTRY COUNTER","PASTRY COUNTER","PASTRY COUNTER","PASTRY COUNTER","PASTRY COUNTER","PASTRY COUNTER"]
["H3","Fruit Tart","Fresh Fruit Tartlet","Fresh Fruit Tartlet","Fresh Fruit Tartlet","Fresh Fruit Tartlet","Fresh Fruit Tartlet","Fresh Fruit Tartlet","Fresh Fruit Tartlet","Fresh Fruit Tartlet"]
[null,"Pastry","Pecan Pie","Pecan Pie","Carrot Cake","Carrot Cake","Coconut Cream Pie","Coconut Cream Pie","Strawberry Short Cake","Strawberry Short Cake"]
[null,"Pastry","Grand Marnier Cream Horn","Chocolate Eclairs","Chocolate Eclairs","White Chocolate Cheesecake","White Chocolate Cheesecake","Mocha Profiteroles","Mocha Profiteroles","Lemon Cream Cake"]
[null,"Pastry","Macadamia Nut Brownie Mousse Cake","Apple Pie","Apple Pie","Brazilian Nut Torte","Pavlova","Pavlova","Peach Almond Torte","Peach Almond Torte"]
[null,"Cupcakes","Red Velvet / Vanilla Yogurt Frosting","Apple Cinnamon / Vanilla Frosting","Maple Walnut / Banana Frosting","Chocolate Chip / Chocolate Frosting","Carrot / Cream Cheese Frosting","Blueberry / Vanilla Yogurt Frosting","Chocolate / Raspberry Frosting","Peach / Coconut Frosting"]
[null,null,"FRESH & FAST - GF","FRESH & FAST - GF","FRESH & FAST - GF","FRESH & FAST - GF","FRESH & FAST - GF","FRESH & FAST - GF","FRESH & FAST - GF","FRESH & FAST - GF"]
["H4","Gluten Free","1) Mango Cheese Cake","1) Mango Cheesecake","1) Pineapple Fruit Cake","1) Pineapple Fruit Cake","1) Mango Sago Pudding","1) Apple Cranberry Pie","Chocolate Mousse","1) Cocktail Fruit Mousse Cake"]
[null,null,"2) Orange Tapioca Pudding","2) Raspberry Cheesecake","2) Chocolate Ganage Cake","2) Chocolate Crème Catalan","2) Strawberry Mousse Cake","2) Pineapple Upside Down Cake","2) Pineapple Upside Down Cake","2) Lemon Cream Pudding"]
[null,"Sugar Free","1) Key Lime Pie","1) Key Lime Pie","1) Yogurt Blueberry Compote","1) Yogurt Blueberry Compote","1) Chocolate Cream Puff","1) Chocolate Cream Puff","1) Strawberry Cake","1) Black Forest Cake"]
[null,null,"2) Coconut Cream Pie","2) Cappuccino Cake","2) Cappuccino Cake","2) Banana Shortcake","2) Banana Shortcake","2) French Vanilla Mousse","2) Peach Pie","2) Coconut Cream Pie"]
["H5","H5 - HOT","Roasted Banana / Chocolate/Coconut","Cinnamon-Walnut Stuffed Apples","Caramel Roasted Pears w/ Oats","GF - Bread Pudding & Choc Sauce","Roasted Peaches/Cranberries/Cstrd","Chocolate Marshmallow Bake","Vanilla Roasted Pineapple/Coconut ","Sticky Toffee Pudding / Caramel S"]
[null,null,"FRUIT STAND FAVORITES","FRUIT STAND FAVORITES","FRUIT STAND FAVORITES","FRUIT STAND FAVORITES","FRUIT STAND FAVORITES","FRUIT STAND FAVORITES","FRUIT STAND FAVORITES","FRUIT STAND FAVORITES"]
["I-1","Whole Fruits","Banana / Red Apple / Pears / Peach   Green Apple / Oranges","Banana / Red Apple / Pears / Peach   Green Apple / Oranges","Banana / Red Apple / Pears / Peach   Green Apple / Oranges","Banana / Red Apple / Pears / Peach   Green Apple / Oranges","Banana / Red Apple / Pears / Peach   Green Apple / Oranges","Banana / Red Apple / Pears / Peach   Green Apple / Oranges","Banana / Red Apple / Pears / Peach   Green Apple / Oranges","Banana / Red Apple / Pears / Peach   Green Apple / Oranges"]
[null,"Sliced Fruits","Watermelon/Pineapple/  Cantaloupe  Honeydew Melon","Watermelon/Pineapple/  Cantaloupe  Honeydew Melon","Watermelon/Pineapple/  Cantaloupe  Honeydew Melon","Watermelon/Pineapple/  Cantaloupe  Honeydew Melon","Watermelon/Pineapple/  Cantaloupe  Honeydew Melon","Watermelon/Pineapple/  Cantaloupe  Honeydew Melon","Watermelon/Pineapple/  Cantaloupe  Honeydew Melon","Watermelon/Pineapple/  Cantaloupe  Honeydew Melon"]
[null,null,"OVEN BAKED BREADS","OVEN BAKED BREADS","OVEN BAKED BREADS","OVEN BAKED BREADS","OVEN BAKED BREADS","OVEN BAKED BREADS","OVEN BAKED BREADS","OVEN BAKED BREADS"]
["I-2","Current Rolls","1) Plain Crunchy Rolls","1) Plain Crunchy Rolls","1) Plain Crunchy Rolls","1) Plain Crunchy Rolls","1) Plain Crunchy Rolls","1) Plain Crunchy Rolls","1) Plain Crunchy Rolls","1) Plain Crunchy Rolls"]
[null,null,"2) Plain Soft Rolls","2) Plain Soft Rolls","2) Plain Soft Rolls","2) Plain Soft Rolls","2) Plain Soft Rolls","2) Plain Soft Rolls","2) Plain Soft Rolls","2) Plain Soft Rolls"]
[null,null,"3) Six Cereal Rolls","3) Sunflower Seed Rolls","3) Pumpernickel Rolls","3) Sesame Seed Rolls","3) Olive Rolls","3) Whole Wheat Raisin","3) Honey Wheat Rolls","3) Six Cereal Rolls"]
[null,"Loafs","4) Muesli Loaf Sliced","4) Honey Wheat Loaf Slice","4) Six Cereal Loaf Sliced","4) Focaccia Loaf Sliced","4) Pumpernickel Loaf Sliced","4) Rye Loaf Sliced","4) Sourdough Loaf Sliced","4) Muesli Loaf Sliced"]
[null,null,"5) Olive Focaccia","5) Olive Focaccia","5) Olive Focaccia","5) Tomato Focaccia","5) Parmesan Focaccia","5) Sun-Dried Tomato Focaccia","5) Olive Focaccia","5) Rosemary Focaccia"]
[null,"Condiments","Butter & Preserves","Butter & Preserves","Butter & Preserves","Butter & Preserves","Butter & Preserves","Butter & Preserves","Butter & Preserves","Butter & Preserves"]
[null,null,"SANDWICH SHOP","SANDWICH SHOP","SANDWICH SHOP","SANDWICH SHOP","SANDWICH SHOP","SANDWICH SHOP","SANDWICH SHOP","SANDWICH SHOP"]
["I-3","Baguette or Bagel","Roasted Vegetables w/ Sundried Tomato & Basil Pesto / Parmesan","Chicken-Bacon Caesar on a Toasted Bagel w/Tomato ","Prosciutto & Tomato Baguette Sandwich w/Fresh Mozzarella","Roasted Vegetables w/ Sundried Tomato & Basil Pesto / Parmesan","Chicken-Bacon Caesar on a Toasted Bagel w/Tomato ","Prosciutto & Tomato Baguette Sandwich w/Fresh Mozzarella","Roasted Vegetables w/ Sundried Tomato & Basil Pesto / Parmesan","Chicken-Bacon Caesar on a Toasted Bagel w/Tomato "]
[null,"Focaccia","Italian Focaccia w. Prosciutto, Salami Buffalo Mozzarella & Arugula","Roasted Vegetables w/ Buffalo Mozz, Sundried Tom Pesto & Spinach","Roasted Broccoli & Red Pepper Feta Cheese & Arugula","Italian Focaccia w. Prosciutto, Salami Buffalo Mozzarella & Arugula","Roasted Vegetables,Buffalo Mozz, Sundried Tom Pesto & Spinach","Roasted Broccoli & Red Pepper  with Feta Cheese & Arugula","Italian Focaccia w. Prosciutto, Salami Buffalo Mozzarella & Arugula","Roasted Vegetables w/ Buffalo Mozz, Sundried Tom Pesto & Spinach"]
[null,"Hamburger Bun","Roast Beef & Chipotle Mayo w/ Romaine, Pickles & Havarti Cheese","Ham & Salami with Cheddar Cheese, Tomato, Iceberg lettuce & pickles","Lebanese Chicken Sandwich with Tabbouleh, Hummus & Cucumber","Roast Beef & Chipotle Mayo w/ Romaine, Pickles & Havarti Cheese","Ham & Salami with Cheddar Cheese, Tomato, Iceberg lettuce & pickles","Lebanese Chicken Sandwich with Tabbouleh, Hummus & Cucumber","Roast Beef & Chipotle Mayo w/ Romaine, Pickles & Havarti Cheese","Ham & Salami with Cheddar Cheese, Tomato, Iceberg lettuce & pickles"]
[null,"Hot Dog Bun","Roasted Turkey w/ Asian Slaw & Sweet Chili Sauce","Roasted Turkey BLT Sandwich with Swiss Cheese & Mayonnaise","Mortadella & Smoked Gouda Sandwich, Tomato, Giardiniera ","Roasted Turkey w/ Asian Slaw & Sweet Chili Sauce","Roasted Turkey BLT Sandwich with Swiss Cheese & Mayonnaise","Mortadella & Smoked Gouda Sandwich, Tomato, Giardiniera ","Roasted Turkey w/ Asian Slaw & Sweet Chili Sauce","Roasted Turkey BLT Sandwich with Swiss Cheese & Mayonnaise"]
[null,null,"FRESH & FAST STATION - 2","FRESH & FAST STATION - 2","FRESH & FAST STATION - 2","FRESH & FAST STATION - 2","FRESH & FAST STATION - 2","FRESH & FAST STATION - 2","FRESH & FAST STATION - 2","FRESH & FAST STATION - 2"]
["I-4","Chips","1) Potato Chips","1) Potato Chips","1) Potato Chips","1) Potato Chips","1) Potato Chips","1) Potato Chips","1) Potato Chips","1) Potato Chips"]
[null,null,"2) Salt & Vinegar Chips","2) Salt & Vinegar Chips","2) Salt & Vinegar Chips","2) Salt & Vinegar Chips","2) Salt & Vinegar Chips","2) Salt & Vinegar Chips","2) Salt & Vinegar Chips","2) Salt & Vinegar Chips"]
[null,null,"3) Nacho Chips","3) Nacho Chips","3) Nacho Chips","3) Nacho Chips","3) Nacho Chips","3) Nacho Chips","3) Nacho Chips","3) Nacho Chips"]
[null,"Pickles","1) Dill Pickles","1) Dill Pickles","1) Dill Pickles","1) Dill Pickles","1) Dill Pickles","1) Dill Pickles","1) Dill Pickles","1) Dill Pickles"]
[null,"Salsa","2) Yellow Corn Salsa","2) Yellow Corn Salsa","2) Yellow Corn Salsa","2) Yellow Corn Salsa","2) Yellow Corn Salsa","2) Yellow Corn Salsa","2) Yellow Corn Salsa","2) Yellow Corn Salsa"]
["I-5","Savory Hot","Bread & Butter Pudding/Vanilla Custard","Walnut Chocolate Brownie/Choc S","Apple Crumble / Warm Custard","Choc-Banana Strudel / Caramel S","Apple Turnover / Vanilla Sauce","Choc-Bread & Butter Pudding ","Washington Apple Cobbler / Vanilla S","Sticky Toffee Pudding / Caramel S"]
[null,"STATION","DAY 0 ","DAY 1","DAY 2","DAY 3","DAY 4","DAY 5","DAY 6","DAY 7"]
[null,null,"ASIAN STATION ","ASIAN STATION ","ASIAN STATION ","ASIAN STATION ","ASIAN STATION ","ASIAN STATION ","ASIAN STATION ","ASIAN STATION "]
["J1","SALAD","Sweet-Chili Cabbage Salad","California Kale-Cranberry Salad","Tabbouleh - Parsley Salad","Chili Lime Cabbage Salad","California Kale-Cherry Salad","Tabbouleh - Parsley Salad","Chili Lime Cabbage Salad","Sweet-Chili Cabbage Salad"]
[null,"SALAD","French Lentil Salad","Tijuana Black Bean Salad","Tunisian Quinoa Salad","Louisiana White Bean Salad","Tijuana Black Bean Salad","Tunisian Quinoa Salad","Louisiana White Bean Salad","French Lentil Salad"]
[null,"SALAD","Roasted Beet & Goat Cheese","Kentucky Cobb Salad","Turkish Chickpea Salad","Caprese Salad w/ Balsamic","Kentucky Cobb Salad","Turkish Chickpea Salad","Caprese Salad w/ Balsamic","Roasted Beet & Goat Cheese"]
[null,"PASTA SALAD","Asian Noodle-Peanut Salad","Sicilian Ham & Pasta Salad","Mediterranean Pasta Salad","Tuscan Pasta Salad","Sicilian Ham & Pasta Salad","Mediterranean Pasta Salad","Tuscan Pasta Salad","Asian Noodle-Peanut Salad"]
[null,null,"STIR-FRY RICE & NOODLES","STIR-FRY RICE & NOODLES","STIR-FRY RICE & NOODLES","STIR-FRY RICE & NOODLES","STIR-FRY RICE & NOODLES","STIR-FRY RICE & NOODLES","STIR-FRY RICE & NOODLES","STIR-FRY RICE & NOODLES"]
["J2","PROTEINS","Chinese Sausage / Diced Chicken","1) Chinese Sausage (sliced)","1) Chinese Sausage (sliced)","1) Chinese Sausage (sliced)","1) Chinese Sausage (sliced)","1) Chinese Sausage (sliced)","1) Chinese Sausage (sliced)","1) Chinese Sausage (sliced)"]
[null,null,"Beef / Pork / Shrimp / Egg Scramble","2) Fried Chicken (cubed)","2) Fried Chicken (cubed)","2) Fried Chicken (cubed)","2) Fried Chicken (cubed)","2) Fried Chicken (cubed)","2) Fried Chicken (cubed)","2) Fried Chicken (cubed)"]
[null,"VEGETABLES","Carrots / Red Pepper / Green Pepper","1) Carrot (julienne)","1) Carrot (julienne)","1) Carrot (julienne)","1) Carrot (julienne)","1) Carrot (julienne)","1) Carrot (julienne)","1) Carrot (julienne)"]
[null,null,"Green Peas / Cabbage / Bamboo Sht","2) Red Pepper (diced)","2) Red Pepper (diced)","2) Red Pepper (diced)","2) Red Pepper (diced)","2) Red Pepper (diced)","2) Red Pepper (diced)","2) Red Pepper (diced)"]
[null,"TOPPINGS","Tofu / Onions / Scallions / Cilantro","1) Tofu (cubed)","1) Tofu (cubed)","1) Tofu (cubed)","1) Tofu (cubed)","1) Tofu (cubed)","1) Tofu (cubed)","1) Tofu (cubed)"]
[null,null,"Jalapeno / Edamame","2) Onions (diced)","2) Onions (diced)","2) Onions (diced)","2) Onions (diced)","2) Onions (diced)","2) Onions (diced)","2) Onions (diced)"]
[null,"GARNISHES","Peanuts/Sesame Seed/Bonito Flakes","Peanuts/Sesame Seed/Bonito Flakes","Peanuts/Sesame Seed/Bonito Flakes","Peanuts/Sesame Seed/Bonito Flakes","Peanuts/Sesame Seed/Bonito Flakes","Peanuts/Sesame Seed/Bonito Flakes","Peanuts/Sesame Seed/Bonito Flakes","Peanuts/Sesame Seed/Bonito Flakes"]
["J3","NOODLES","Udon Noodle / Ramen Noodle","Udon Noodle / Ramen Noodle","Udon Noodle / Ramen Noodle","Udon Noodle / Ramen Noodle","Udon Noodle / Ramen Noodle","Udon Noodle / Ramen Noodle","Udon Noodle / Ramen Noodle","Udon Noodle / Ramen Noodle"]
["J4","BROTH & GARNISH","Shrimp / Chicken / Scallops/Broth","Shrimp / Chicken / Scallops/Broth","Shrimp / Chicken / Scallops/Broth","Shrimp / Chicken / Scallops/Broth","Shrimp / Chicken / Scallops/Broth","Shrimp / Chicken / Scallops/Broth","Shrimp / Chicken / Scallops/Broth","Shrimp / Chicken / Scallops/Broth"]
["K1",null,"STIR-FRY STAGING AREA","STIR-FRY STAGING AREA","STIR-FRY STAGING AREA","STIR-FRY STAGING AREA","STIR-FRY STAGING AREA","STIR-FRY STAGING AREA","STIR-FRY STAGING AREA","STIR-FRY STAGING AREA"]
["K2","ACTION GARNISH","Chiffonade Caesar Salad, Caesar Dressing & Grated Parmesan","Chiffonade Caesar Salad, Caesar Dressing & Grated Parmesan","Chiffonade Caesar Salad, Caesar Dressing & Grated Parmesan","Chiffonade Caesar Salad, Caesar Dressing & Grated Parmesan","Chiffonade Caesar Salad, Caesar Dressing & Grated Parmesan","Chiffonade Caesar Salad, Caesar Dressing & Grated Parmesan","Chiffonade Caesar Salad, Caesar Dressing & Grated Parmesan","Chiffonade Caesar Salad, Caesar Dressing & Grated Parmesan"]
["K3","DEEP DISH PIZZA","Garlic Shrimp w/ Olive Oil, Tomatoes Scallions, Parmesan Cheese","Garlic Shrimp w/ Olive Oil, Tomatoes Scallions, Parmesan Cheese","Garlic Shrimp w/ Olive Oil, Tomatoes Scallions, Parmesan Cheese","Garlic Shrimp w/ Olive Oil, Tomatoes Scallions, Parmesan Cheese","Garlic Shrimp w/ Olive Oil, Tomatoes Scallions, Parmesan Cheese","Garlic Shrimp w/ Olive Oil, Tomatoes Scallions, Parmesan Cheese","Garlic Shrimp w/ Olive Oil, Tomatoes Scallions, Parmesan Cheese","Garlic Shrimp w/ Olive Oil, Tomatoes Scallions, Parmesan Cheese"]
["K4","HOT SANDWICH","  Croque Monsieur - Open Face","Pastrami on Rye","Traditional Cuban Sandwich","Turkey Ciabatta w/Peppers & Mozz","Spicy Chicken & Cheese","Philly Cheese Steak","Royal w/ Cheese Sliders","Italian Salami Panini"]
["K5","POTATO DISH"," Roasted Garlic Potatoes"," Chili-Garlic Steak Fries","Crushed Sweet Potato Mash"," Roasted Bliss & Mushrooms","Crushed Potato/Olive Oil & Garlic","Sweet Potato Marshmallow Bake","Breaded Potato Croquettes"," Garlic Mashed Potato"]
[null,null,"TEX-MEX STATION","TEX-MEX STATION","TEX-MEX STATION","TEX-MEX STATION","TEX-MEX STATION","TEX-MEX STATION","TEX-MEX STATION","TEX-MEX STATION"]
["L1","CAESAR SALAD STATION","Romaine Lettuce / Parmesan / Crouton  Anchovies/Caesar Dressing","Romaine Lettuce / Parmesan / Crouton  Anchovies/Caesar Dressing","Romaine Lettuce / Parmesan / Crouton  Anchovies/Caesar Dressing","Romaine Lettuce / Parmesan / Crouton  Anchovies/Caesar Dressing","Romaine Lettuce / Parmesan / Crouton  Anchovies/Caesar Dressing","Romaine Lettuce / Parmesan / Crouton  Anchovies/Caesar Dressing","Romaine Lettuce / Parmesan / Crouton  Anchovies/Caesar Dressing","Romaine Lettuce / Parmesan / Crouton  Anchovies/Caesar Dressing"]
[null,"WHOLE FRUITS","Apples/Oranges/Pears/Peaches","Apple/Orange/Pears/Peach/Banana","Apple/Orange/Pears/Peach/Banana","Apple/Orange/Pears/Peach/Banana","Apple/Orange/Pears/Peach/Banana","Apple/Orange/Pears/Peach/Banana","Apple/Orange/Pears/Peach/Banana","Apple/Orange/Pears/Peach/Banana"]
[null,"FRUIT SALAD","Mango-Sesame-Chili Fruit Salad","Apricot & Cherry Fruit Salad","Spicy Pear & Pineapple Salad","Cajun Peach Salad","Apricot & Cherry Fruit Salad","Spicy Pear & Pineapple Salad","Cajun Peach Salad","Mango-Sesame-Chili Fruit Salad"]
["L2","CHIPS & SALSA STATION","1) Jalapeno Slice 2) Tomato Salsa       3) Salsa Verde 4) Black bean Salsa     5) Roasted Corn Salsa 6) Guacamole   7) Sour Cream  8) Queso Fresco         9) Tabasco 10) Chipotle Mayo","1) Jalapeno Slice 2) Tomato Salsa       3) Salsa Verde 4) Black bean Salsa     5) Roasted Corn Salsa 6) Guacamole   7) Sour Cream  8) Queso Fresco         9) Tabasco 10) Chipotle Mayo","1) Jalapeno Slice 2) Tomato Salsa       3) Salsa Verde 4) Black bean Salsa     5) Roasted Corn Salsa 6) Guacamole   7) Sour Cream  8) Queso Fresco         9) Tabasco 10) Chipotle Mayo","1) Jalapeno Slice 2) Tomato Salsa       3) Salsa Verde 4) Black bean Salsa     5) Roasted Corn Salsa 6) Guacamole   7) Sour Cream  8) Queso Fresco         9) Tabasco 10) Chipotle Mayo","1) Jalapeno Slice 2) Tomato Salsa       3) Salsa Verde 4) Black bean Salsa     5) Roasted Corn Salsa 6) Guacamole   7) Sour Cream  8) Queso Fresco         9) Tabasco 10) Chipotle Mayo","1) Jalapeno Slice 2) Tomato Salsa       3) Salsa Verde 4) Black bean Salsa     5) Roasted Corn Salsa 6) Guacamole   7) Sour Cream  8) Queso Fresco         9) Tabasco 10) Chipotle Mayo","1) Jalapeno Slice 2) Tomato Salsa       3) Salsa Verde 4) Black bean Salsa     5) Roasted Corn Salsa 6) Guacamole   7) Sour Cream  8) Queso Fresco         9) Tabasco 10) Chipotle Mayo","1) Jalapeno Slice 2) Tomato Salsa       3) Salsa Verde 4) Black bean Salsa     5) Roasted Corn Salsa 6) Guacamole   7) Sour Cream  8) Queso Fresco         9) Tabasco 10) Chipotle Mayo"]
["L3","MEX ITEMS","1) Chicken Cheese Burritos ","1) Crispy Steak & Cheese Tacos","1) Sonoro Hot Dog / Corn Salsa","1) Steak Fajita's","1) Veg Enchilada, Marinara, Mozz","1) Sonoro Hot Dogs","1) Chicken & Steak Nachos","1)  Chicken Enchilada / Cheese"]
[null,null,null,"2) Buffalo Chicken Wings",null,"2) Buffalo Chicken Wings",null,"2) Buffalo Chicken Wings",null,"1) Buffalo Chicken Wings"]
["L4","BYO- TACOS","Beef / Chicken / Pork / Peppers / Flour Tortillas","Beef / Chicken / Pork / Peppers / Flour Tortillas","Beef / Chicken / Pork / Peppers / Flour Tortillas","Beef / Chicken / Pork / Peppers / Flour Tortillas","Beef / Chicken / Pork / Peppers / Flour Tortillas","Beef / Chicken / Pork / Peppers / Flour Tortillas","Beef / Chicken / Pork / Peppers / Flour Tortillas","Beef / Chicken / Pork / Peppers / Flour Tortillas"]
[]
["M1","M1 - COLD","CONDIMENT STATION","CONDIMENT STATION","CONDIMENT STATION","CONDIMENT STATION","CONDIMENT STATION","CONDIMENT STATION","CONDIMENT STATION","CONDIMENT STATION"]
[null,"Breads","Crisp Rolls / Sunflower Seed Rolls","Crisp Rolls / Sunflower Seed Rolls","Crisp Rolls / Sunflower Seed Rolls","Crisp Rolls / Sunflower Seed Rolls","Crisp Rolls / Sunflower Seed Rolls","Crisp Rolls / Sunflower Seed Rolls","Crisp Rolls / Sunflower Seed Rolls","Crisp Rolls / Sunflower Seed Rolls"]
[null,null,"Square Rolls / Brioche Rolls","Square Rolls / Brioche Rolls","Square Rolls / Brioche Rolls","Square Rolls / Brioche Rolls","Square Rolls / Brioche Rolls","Square Rolls / Brioche Rolls","Square Rolls / Brioche Rolls","Square Rolls / Brioche Rolls"]
[null,null,"TEX-MEX ITEMS","TEX-MEX ITEMS","TEX-MEX ITEMS","TEX-MEX ITEMS","TEX-MEX ITEMS","TEX-MEX ITEMS","TEX-MEX ITEMS","TEX-MEX ITEMS"]
[null,"Salsas","Tomato / Black Bean / Verde","Tomato / Black Bean / Verde","Tomato / Black Bean / Verde","Tomato / Black Bean / Verde","Tomato / Black Bean / Verde","Tomato / Black Bean / Verde","Tomato / Black Bean / Verde","Tomato / Black Bean / Verde"]
[null,"Bottled Sauces","Tabasco Red & Green / Tapatio","Tabasco Red & Green / Tapatio","Tabasco Red & Green / Tapatio","Tabasco Red & Green / Tapatio","Tabasco Red & Green / Tapatio","Tabasco Red & Green / Tapatio","Tabasco Red & Green / Tapatio","Tabasco Red & Green / Tapatio"]
[null,"Condiments","Lime Wedges / Sour Cream","Lime Wedges / Sour Cream","Lime Wedges / Sour Cream","Lime Wedges / Sour Cream","Lime Wedges / Sour Cream","Lime Wedges / Sour Cream","Lime Wedges / Sour Cream","Lime Wedges / Sour Cream"]
[null,null,"ASIAN ITEMS","ASIAN ITEMS","ASIAN ITEMS","ASIAN ITEMS","ASIAN ITEMS","ASIAN ITEMS","ASIAN ITEMS","ASIAN ITEMS"]
[null,"Craft Sauces","Spicy Mayo/Korean BBQ/Chili Sauce","Spicy Mayo/Korean BBQ/Chili Sauce","Spicy Mayo/Korean BBQ/Chili Sauce","Spicy Mayo/Korean BBQ/Chili Sauce","Spicy Mayo/Korean BBQ/Chili Sauce","Spicy Mayo/Korean BBQ/Chili Sauce","Spicy Mayo/Korean BBQ/Chili Sauce","Spicy Mayo/Korean BBQ/Chili Sauce"]
[null,"Bottled Sauces","Soy/Oyster/Sriracha/Ponzu/Peanut","Soy/Oyster/Sriracha/Ponzu/Peanut","Soy/Oyster/Sriracha/Ponzu/Peanut","Soy/Oyster/Sriracha/Ponzu/Peanut","Soy/Oyster/Sriracha/Ponzu/Peanut","Soy/Oyster/Sriracha/Ponzu/Peanut","Soy/Oyster/Sriracha/Ponzu/Peanut","Soy/Oyster/Sriracha/Ponzu/Peanut"]
[null,"Condiments","Pickled Ginger / Peanuts/Sesame","Pickled Ginger / Peanuts/Sesame","Pickled Ginger / Peanuts/Sesame","Pickled Ginger / Peanuts/Sesame","Pickled Ginger / Peanuts/Sesame","Pickled Ginger / Peanuts/Sesame","Pickled Ginger / Peanuts/Sesame","Pickled Ginger / Peanuts/Sesame"]